PAYMENT DATE,DEPARTMENT,SUPPLIER NAME,PAY GROUP,ACCOUNT DESCRIPTION,NET AMOUNT
30-MAY-2022,Chief Executives (P),1 KBW,TRADE SUPPLIER,4905-Legal Expenses,"3,276.67"
27-MAY-2022,Chief Executives (P),11KBW Ltd (11 KBW Holding Account),TRADE SUPPLIER,4905-Legal Expenses,"6,560.00"
26-MAY-2022,Public Health (P),1st Legion Gym Ltd,TRADE SUPPLIER,4908-Grants,700.00
26-MAY-2022,Public Health (P),1st Legion Gym Ltd,TRADE SUPPLIER,4908-Grants,"1,050.00"
27-MAY-2022,Public Health (P),1st Legion Gym Ltd,TRADE SUPPLIER,4908-Grants,"1,000.00"
05-MAY-2022,Environment & Transport (P),1st Select Ltd,TRADE SUPPLIER,3113-Home to Sch Trans Contract Buses Sec,"1,471.77"
05-MAY-2022,Environment & Transport (P),1st Select Ltd,TRADE SUPPLIER,3112-Home to Sch Trans Contract Buses Prim,"1,149.08"
06-MAY-2022,Adults & Communities (P),24/7 FLEX CARE&&ISHC6561,HOME CARE,5505-Homecare,"1,417.51"
13-MAY-2022,Adults & Communities (P),24/7 FLEX CARE&&ISHC6561,HOME CARE,5505-Homecare,"1,346.63"
20-MAY-2022,Adults & Communities (P),24/7 FLEX CARE&&ISHC6561,HOME CARE,5505-Homecare,"1,468.13"
27-MAY-2022,Adults & Communities (P),24/7 FLEX CARE&&ISHC6561,HOME CARE,5505-Homecare,"1,488.38"
19-MAY-2022,Environment & Transport (P),24x7 Ltd,TRADE SUPPLIER,3112-Home to Sch Trans Contract Buses Prim,"1,576.65"
19-MAY-2022,Environment & Transport (P),24x7 Ltd,TRADE SUPPLIER,3113-Home to Sch Trans Contract Buses Sec,"1,664.51"
19-MAY-2022,Environment & Transport (P),24x7 Ltd,TRADE SUPPLIER,3113-Home to Sch Trans Contract Buses Sec,"1,561.47"
19-MAY-2022,Environment & Transport (P),24x7 Ltd,TRADE SUPPLIER,3303-Taxi Hire,"2,544.93"
23-MAY-2022,Environment & Transport (P),24x7 Ltd,TRADE SUPPLIER,3303-Taxi Hire,"2,050.45"
23-MAY-2022,Environment & Transport (P),24x7 Ltd,TRADE SUPPLIER,3303-Taxi Hire,"1,682.91"
06-MAY-2022,Adults & Communities (P),2M HEATH & HOMECARE SERVICES LTD&&ISHC3873,HOME CARE,5505-Homecare,"7,102.76"
13-MAY-2022,Adults & Communities (P),2M HEATH & HOMECARE SERVICES LTD&&ISHC3873,HOME CARE,5505-Homecare,"7,603.94"
20-MAY-2022,Adults & Communities (P),2M HEATH & HOMECARE SERVICES LTD&&ISHC3873,HOME CARE,5505-Homecare,"6,009.25"
27-MAY-2022,Adults & Communities (P),2M HEATH & HOMECARE SERVICES LTD&&ISHC3873,HOME CARE,5505-Homecare,"6,009.25"
06-MAY-2022,Chief Executives (P),36 Group Ltd,TRADE SUPPLIER,4905-Legal Expenses,512.50
11-MAY-2022,Chief Executives (P),36 Group Ltd,TRADE SUPPLIER,4905-Legal Expenses,704.17
12-MAY-2022,Chief Executives (P),36 Group Ltd,TRADE SUPPLIER,4905-Legal Expenses,700.00
19-MAY-2022,Chief Executives (P),36 Group Ltd,TRADE SUPPLIER,4905-Legal Expenses,700.00
23-MAY-2022,Chief Executives (P),36 Group Ltd,TRADE SUPPLIER,4507-Consultants & Specialists,816.67
23-MAY-2022,Chief Executives (P),36 Group Ltd,TRADE SUPPLIER,4905-Legal Expenses,"1,641.70"
25-MAY-2022,Chief Executives (P),36 Group Ltd,TRADE SUPPLIER,4905-Legal Expenses,787.50
26-MAY-2022,Chief Executives (P),36 Group Ltd,TRADE SUPPLIER,4905-Legal Expenses,"1,400.00"
27-MAY-2022,Chief Executives (P),36 Group Ltd,TRADE SUPPLIER,4507-Consultants & Specialists,"2,000.00"
05-MAY-2022,Adults & Communities (P),3D Recruit Ltd,TRADE SUPPLIER,5443-Agency & Contracted Services,"4,220.00"
11-MAY-2022,Adults & Communities (P),3D Recruit Ltd,TRADE SUPPLIER,5443-Agency & Contracted Services,"14,440.00"
19-MAY-2022,Adults & Communities (P),3D Recruit Ltd,TRADE SUPPLIER,5443-Agency & Contracted Services,"8,020.00"
30-MAY-2022,Adults & Communities (P),3D Recruit Ltd,TRADE SUPPLIER,5443-Agency & Contracted Services,"6,460.00"
25-MAY-2022,Chief Executives (P),4PB,TRADE SUPPLIER,4905-Legal Expenses,950.00
26-MAY-2022,C&FS (P),4PureHeart Limited,TRADE SUPPLIER,5411-Private Contractors - General,"15,000.00"
04-MAY-2022,C&FS (P),5ab Care Ltd,TRADE SUPPLIER,5411-Private Contractors - General,"3,567.85"
11-MAY-2022,Environment & Transport (P),A Zoom Taxis,TRADE SUPPLIER,3303-Taxi Hire,"1,223.60"
11-MAY-2022,Environment & Transport (P),A Zoom Taxis,TRADE SUPPLIER,3201-Pooled Transport Recharge Inhouse,"2,493.20"
11-MAY-2022,Environment & Transport (P),A Zoom Taxis,TRADE SUPPLIER,3303-Taxi Hire,"4,002.00"
11-MAY-2022,Environment & Transport (P),A Zoom Taxis,TRADE SUPPLIER,3303-Taxi Hire,"3,505.20"
11-MAY-2022,Environment & Transport (P),A Zoom Taxis,TRADE SUPPLIER,3303-Taxi Hire,"2,860.00"
11-MAY-2022,Environment & Transport (P),A Zoom Taxis,TRADE SUPPLIER,3303-Taxi Hire,"2,011.50"
11-MAY-2022,Environment & Transport (P),A Zoom Taxis,TRADE SUPPLIER,3303-Taxi Hire,"2,396.60"
11-MAY-2022,Environment & Transport (P),A Zoom Taxis,TRADE SUPPLIER,3303-Taxi Hire,"3,197.00"
11-MAY-2022,Environment & Transport (P),A Zoom Taxis,TRADE SUPPLIER,3303-Taxi Hire,"3,112.20"
11-MAY-2022,Environment & Transport (P),A Zoom Taxis,TRADE SUPPLIER,3112-Home to Sch Trans Contract Buses Prim,"2,978.50"
11-MAY-2022,Environment & Transport (P),A Zoom Taxis,TRADE SUPPLIER,3303-Taxi Hire,"1,788.75"
11-MAY-2022,Environment & Transport (P),A Zoom Taxis,TRADE SUPPLIER,3303-Taxi Hire,"2,615.50"
11-MAY-2022,Environment & Transport (P),A Zoom Taxis,TRADE SUPPLIER,3303-Taxi Hire,"2,162.00"
11-MAY-2022,Environment & Transport (P),A Zoom Taxis,TRADE SUPPLIER,3303-Taxi Hire,"3,036.00"
11-MAY-2022,Environment & Transport (P),A Zoom Taxis,TRADE SUPPLIER,3303-Taxi Hire,"1,127.50"
11-MAY-2022,Environment & Transport (P),A Zoom Taxis,TRADE SUPPLIER,3303-Taxi Hire,"2,254.00"
11-MAY-2022,Environment & Transport (P),A Zoom Taxis,TRADE SUPPLIER,3303-Taxi Hire,"2,125.20"
11-MAY-2022,Environment & Transport (P),A Zoom Taxis,TRADE SUPPLIER,3303-Taxi Hire,"2,599.00"
11-MAY-2022,Environment & Transport (P),A Zoom Taxis,TRADE SUPPLIER,3201-Pooled Transport Recharge Inhouse,"2,760.00"
11-MAY-2022,Environment & Transport (P),A Zoom Taxis,TRADE SUPPLIER,3303-Taxi Hire,"2,875.00"
11-MAY-2022,Environment & Transport (P),A Zoom Taxis,TRADE SUPPLIER,3303-Taxi Hire,"2,072.00"
11-MAY-2022,Environment & Transport (P),A Zoom Taxis,TRADE SUPPLIER,3203-Pooled Transport Recharge Contractors,"3,146.40"
11-MAY-2022,Environment & Transport (P),A Zoom Taxis,TRADE SUPPLIER,3303-Taxi Hire,"2,357.50"
11-MAY-2022,Environment & Transport (P),A Zoom Taxis,TRADE SUPPLIER,3303-Taxi Hire,"3,135.00"
11-MAY-2022,Environment & Transport (P),A Zoom Taxis,TRADE SUPPLIER,3303-Taxi Hire,"2,289.12"
11-MAY-2022,Environment & Transport (P),A Zoom Taxis,TRADE SUPPLIER,3303-Taxi Hire,"3,537.40"
11-MAY-2022,Environment & Transport (P),A Zoom Taxis,TRADE SUPPLIER,3303-Taxi Hire,"3,124.80"
11-MAY-2022,Environment & Transport (P),A Zoom Taxis,TRADE SUPPLIER,3303-Taxi Hire,"1,406.00"
11-MAY-2022,Environment & Transport (P),A Zoom Taxis,TRADE SUPPLIER,3303-Taxi Hire,"2,323.00"
11-MAY-2022,Environment & Transport (P),A Zoom Taxis,TRADE SUPPLIER,3201-Pooled Transport Recharge Inhouse,"3,237.50"
27-MAY-2022,Environment & Transport (P),A1 63 Mercia Taxi,TRADE SUPPLIER,3303-Taxi Hire,"1,430.00"
05-MAY-2022,Environment & Transport (P),A1 Cars Ashby Ltd,TRADE SUPPLIER,3303-Taxi Hire,"1,762.26"
05-MAY-2022,Environment & Transport (P),A1 Cars Ashby Ltd,TRADE SUPPLIER,3303-Taxi Hire,"4,697.06"
05-MAY-2022,Environment & Transport (P),A1 Cars Ashby Ltd,TRADE SUPPLIER,3303-Taxi Hire,"2,452.46"
05-MAY-2022,Environment & Transport (P),A1 Cars Ashby Ltd,TRADE SUPPLIER,3303-Taxi Hire,"1,800.00"
05-MAY-2022,Environment & Transport (P),A1 Cars Ashby Ltd,TRADE SUPPLIER,3303-Taxi Hire,"2,235.14"
05-MAY-2022,Environment & Transport (P),A1 Cars Ashby Ltd,TRADE SUPPLIER,3113-Home to Sch Trans Contract Buses Sec,"1,268.68"
04-MAY-2022,Environment & Transport (P),A1 Leicester Cars,TRADE SUPPLIER,3303-Taxi Hire,"3,555.80"
04-MAY-2022,Environment & Transport (P),A1 Leicester Cars,TRADE SUPPLIER,3303-Taxi Hire,"1,728.00"
04-MAY-2022,Environment & Transport (P),A1 Leicester Cars,TRADE SUPPLIER,3303-Taxi Hire,"2,473.80"
04-MAY-2022,Environment & Transport (P),A1 Leicester Cars,TRADE SUPPLIER,3303-Taxi Hire,893.20
04-MAY-2022,Environment & Transport (P),A1 Leicester Cars,TRADE SUPPLIER,3303-Taxi Hire,"2,272.40"
04-MAY-2022,Environment & Transport (P),A1 Leicester Cars,TRADE SUPPLIER,3303-Taxi Hire,"2,144.74"
04-MAY-2022,Environment & Transport (P),A1 Leicester Cars,TRADE SUPPLIER,3303-Taxi Hire,"1,243.20"
04-MAY-2022,Environment & Transport (P),A1 Leicester Cars,TRADE SUPPLIER,3303-Taxi Hire,"1,690.00"
04-MAY-2022,Environment & Transport (P),A1 Leicester Cars,TRADE SUPPLIER,3201-Pooled Transport Recharge Inhouse,"1,323.00"
04-MAY-2022,Environment & Transport (P),A1 Leicester Cars,TRADE SUPPLIER,3303-Taxi Hire,"1,557.40"
04-MAY-2022,Environment & Transport (P),A1 Leicester Cars,TRADE SUPPLIER,3303-Taxi Hire,"2,088.00"
04-MAY-2022,Environment & Transport (P),A1 Leicester Cars,TRADE SUPPLIER,3303-Taxi Hire,"2,591.60"
04-MAY-2022,Environment & Transport (P),A1 Leicester Cars,TRADE SUPPLIER,3201-Pooled Transport Recharge Inhouse,"1,540.00"
04-MAY-2022,Environment & Transport (P),A1 Leicester Cars,TRADE SUPPLIER,3303-Taxi Hire,"1,033.20"
04-MAY-2022,Environment & Transport (P),A1 Leicester Cars,TRADE SUPPLIER,3303-Taxi Hire,511.60
04-MAY-2022,Environment & Transport (P),A1 Leicester Cars,TRADE SUPPLIER,3303-Taxi Hire,"2,110.50"
04-MAY-2022,Environment & Transport (P),A1 Leicester Cars,TRADE SUPPLIER,3303-Taxi Hire,"1,573.00"
04-MAY-2022,Environment & Transport (P),A1 Leicester Cars,TRADE SUPPLIER,3303-Taxi Hire,"4,232.00"
04-MAY-2022,Environment & Transport (P),A1 Leicester Cars,TRADE SUPPLIER,3303-Taxi Hire,"2,622.00"
06-MAY-2022,Environment & Transport (P),A2B Taxis,TRADE SUPPLIER,3112-Home to Sch Trans Contract Buses Prim,"1,941.20"
06-MAY-2022,Environment & Transport (P),A2B Taxis,TRADE SUPPLIER,3113-Home to Sch Trans Contract Buses Sec,"1,915.00"
06-MAY-2022,Environment & Transport (P),A2B Taxis,TRADE SUPPLIER,3303-Taxi Hire,"1,512.00"
06-MAY-2022,Environment & Transport (P),A2B Taxis,TRADE SUPPLIER,3113-Home to Sch Trans Contract Buses Sec,"1,184.50"
06-MAY-2022,Environment & Transport (P),AA Taxis,TRADE SUPPLIER,3303-Taxi Hire,"1,615.74"
06-MAY-2022,Environment & Transport (P),AA Taxis,TRADE SUPPLIER,3303-Taxi Hire,"3,180.00"
19-MAY-2022,Environment & Transport (P),AAA Private Hire(Shephed) Ltd,TRADE SUPPLIER,3303-Taxi Hire,"1,633.50"
19-MAY-2022,Environment & Transport (P),AAA Private Hire(Shephed) Ltd,TRADE SUPPLIER,3303-Taxi Hire,"1,386.00"
19-MAY-2022,Environment & Transport (P),AAA Private Hire(Shephed) Ltd,TRADE SUPPLIER,3303-Taxi Hire,"1,589.94"
18-MAY-2022,Environment & Transport (P),Abbey Cars,TRADE SUPPLIER,3201-Pooled Transport Recharge Inhouse,"1,457.78"
18-MAY-2022,Environment & Transport (P),Abbey Cars,TRADE SUPPLIER,3303-Taxi Hire,589.05
18-MAY-2022,Environment & Transport (P),Abbey Cars,TRADE SUPPLIER,3303-Taxi Hire,628.28
30-MAY-2022,Adults & Communities (P),ABBEY HEALTHCARE (AARON COURT) LTD&&SSARO2996,S/S HOMES,5502-Residential,"1,707.29"
30-MAY-2022,Adults & Communities (P),ABBEY HEALTHCARE (AARON COURT) LTD&&SSARO2996,S/S HOMES,5502-Residential,"71,668.00"
30-MAY-2022,Adults & Communities (P),ABBEYFIELDS EXTRA CARE&&SSAROE52835,S/S HOMES,5502-Residential,"7,356.92"
18-MAY-2022,Environment & Transport (P),REDACTED PERSONAL DATA,NON TRADE,3303-Taxi Hire,864.71
18-MAY-2022,Environment & Transport (P),REDACTED PERSONAL DATA,NON TRADE,3303-Taxi Hire,914.21
06-MAY-2022,Adults & Communities (P),ABSOLUTE CARE AGENCY&&ISHC2620,HOME CARE,5505-Homecare,607.92
13-MAY-2022,Adults & Communities (P),ABSOLUTE CARE AGENCY&&ISHC2620,HOME CARE,5505-Homecare,"11,730.26"
19-MAY-2022,Balance Sheet Cost Centres (P),ABSOLUTE CARE AGENCY&&ISHC2620,GENERAL,9642-Reserved Debtors - Non Public Sector,"6,651.00"
27-MAY-2022,Balance Sheet Cost Centres (P),ABSOLUTE CARE AGENCY&&ISHC2620,GENERAL,9642-Reserved Debtors - Non Public Sector,954.00
17-MAY-2022,C&FS (P),ABSOLUTE HEALTHCARE LTD T/A WESTWARDS NURSERY&&EYRSEY553923,GENERAL,4908-Grants,"1,048.50"
20-MAY-2022,C&FS (P),ABSOLUTE HEALTHCARE LTD T/A WESTWARDS NURSERY&&EYRSEY553923,EARLY YEARS,4908-Grants,"6,793.59"
06-MAY-2022,Adults & Communities (P),ABUNDANT CARE LIMITED&&ISHC6217,HOME CARE,5505-Homecare,"4,168.83"
13-MAY-2022,Adults & Communities (P),ABUNDANT CARE LIMITED&&ISHC6217,HOME CARE,5505-Homecare,"3,389.20"
20-MAY-2022,Adults & Communities (P),ABUNDANT CARE LIMITED&&ISHC6217,HOME CARE,5505-Homecare,"3,422.28"
17-MAY-2022,Balance Sheet Cost Centres (P),Acacia Care (MH) Ltd T/A Rosewood Manor,GENERAL,9642-Reserved Debtors - Non Public Sector,"9,785.00"
30-MAY-2022,Adults & Communities (P),ACACIA CARE (MH) LTD&&SSARO6777,S/S HOMES,5502-Residential,"3,972.00"
30-MAY-2022,Adults & Communities (P),ACACIA CARE (MH) LTD&&SSARO6777,S/S HOMES,5502-Residential,510.00
17-MAY-2022,Balance Sheet Cost Centres (P),ACACIA CARE (NOTTINGHAM) LTD T/A KINGSFIELD COURT&&SSARO8540,GENERAL,9642-Reserved Debtors - Non Public Sector,"35,000.00"
30-MAY-2022,Adults & Communities (P),ACACIA CARE (NOTTINGHAM) LTD T/A KINGSFIELD COURT&&SSARO8540,S/S HOMES,5502-Residential,"22,826.00"
30-MAY-2022,Environment & Transport (P),Access Hire Nationwide Ltd,TRADE SUPPLIER,3301-Vehicle & Plant Hire,"1,386.14"
30-MAY-2022,Environment & Transport (P),Access Hire Nationwide Ltd,TRADE SUPPLIER,3301-Vehicle & Plant Hire,"1,527.86"
06-MAY-2022,Adults & Communities (P),ACCREDO SUPPORT & DEVELOPMENT LTD&&SUPL525,SUPPORTED LIVING,8414-Managed NHS Income (for Mapping use only),"1,926.08"
06-MAY-2022,Adults & Communities (P),ACCREDO SUPPORT & DEVELOPMENT LTD&&SUPL525,SUPPORTED LIVING,5506-Supported Living,"16,291.59"
06-MAY-2022,Adults & Communities (P),ACCREDO SUPPORT & DEVELOPMENT LTD&&SUPL525,SUPPORTED LIVING,5506-Supported Living,"25,035.05"
06-MAY-2022,Adults & Communities (P),ACCREDO SUPPORT & DEVELOPMENT LTD&&SUPL525,SUPPORTED LIVING,5506-Supported Living,654.49
27-MAY-2022,Adults & Communities (P),ACCREDO SUPPORT AND DEVELOPMENT LTD&&CLCD3325,CLC,5504-Day/CLC Services,"1,248.89"
27-MAY-2022,Adults & Communities (P),ACCREDO SUPPORT AND DEVELOPMENT LTD&&CLCD3325,CLC,5504-Day/CLC Services,935.20
27-MAY-2022,Adults & Communities (P),ACCREDO SUPPORT AND DEVELOPMENT LTD&&CLCD3325,CLC,5504-Day/CLC Services,935.20
27-MAY-2022,Adults & Communities (P),ACCREDO SUPPORT AND DEVELOPMENT LTD&&CLCD3325,CLC,5504-Day/CLC Services,748.16
27-MAY-2022,Adults & Communities (P),ACCREDO SUPPORT AND DEVELOPMENT LTD&&CLCD3325,CLC,5504-Day/CLC Services,935.20
27-MAY-2022,Adults & Communities (P),ACCREDO SUPPORT AND DEVELOPMENT LTD&&CLCD3325,CLC,5504-Day/CLC Services,935.20
27-MAY-2022,Adults & Communities (P),ACCREDO SUPPORT AND DEVELOPMENT LTD&&CLCD3325,CLC,5504-Day/CLC Services,935.20
27-MAY-2022,Adults & Communities (P),ACCREDO SUPPORT AND DEVELOPMENT LTD&&CLCD3325,CLC,5504-Day/CLC Services,935.20
27-MAY-2022,Adults & Communities (P),ACCREDO SUPPORT AND DEVELOPMENT LTD&&CLCD3325,CLC,5504-Day/CLC Services,"1,248.89"
27-MAY-2022,Adults & Communities (P),ACCREDO SUPPORT AND DEVELOPMENT LTD&&CLCD3325,CLC,5504-Day/CLC Services,935.20
27-MAY-2022,Adults & Communities (P),ACCREDO SUPPORT AND DEVELOPMENT LTD&&CLCD3325,CLC,5504-Day/CLC Services,"2,497.78"
12-MAY-2022,C&FS (P),Acorn Care & Education Ltd (Sales),TRADE SUPPLIER,5323-External SEN Providers Independent Sch,"17,099.33"
12-MAY-2022,C&FS (P),Acorn Care & Education Ltd (Sales),GENERAL,6101-Support Services,540.00
12-MAY-2022,C&FS (P),Acorn Care & Education Ltd (Sales),TRADE SUPPLIER,5323-External SEN Providers Independent Sch,"18,116.00"
12-MAY-2022,C&FS (P),Acorn Care & Education Ltd (Sales),TRADE SUPPLIER,5323-External SEN Providers Independent Sch,"17,612.67"
12-MAY-2022,C&FS (P),Acorn Care & Education Ltd (Sales),TRADE SUPPLIER,5323-External SEN Providers Independent Sch,"17,099.33"
12-MAY-2022,C&FS (P),Acorn Care & Education Ltd (Sales),TRADE SUPPLIER,5323-External SEN Providers Independent Sch,"22,108.67"
12-MAY-2022,C&FS (P),Acorn Care & Education Ltd (Sales),TRADE SUPPLIER,5323-External SEN Providers Independent Sch,"22,833.33"
12-MAY-2022,C&FS (P),Acorn Care & Education Ltd (Sales),TRADE SUPPLIER,5323-External SEN Providers Independent Sch,"21,666.67"
12-MAY-2022,C&FS (P),Acorn Care & Education Ltd (Sales),TRADE SUPPLIER,5323-External SEN Providers Independent Sch,"17,705.33"
12-MAY-2022,C&FS (P),Acorn Care & Education Ltd (Sales),TRADE SUPPLIER,5323-External SEN Providers Independent Sch,"17,099.33"
20-MAY-2022,C&FS (P),Acorn Care & Education Ltd (Sales),TRADE SUPPLIER,5411-Private Contractors - General,"16,692.86"
20-MAY-2022,C&FS (P),Acorn Care & Education Ltd (Sales),TRADE SUPPLIER,5411-Private Contractors - General,"16,692.86"
24-MAY-2022,C&FS (P),Acorn Care & Education Ltd (Sales),TRADE SUPPLIER,5323-External SEN Providers Independent Sch,"17,099.33"
24-MAY-2022,C&FS (P),Acorn Care & Education Ltd (Sales),TRADE SUPPLIER,5323-External SEN Providers Independent Sch,"9,441.67"
24-MAY-2022,C&FS (P),Acorn Care & Education Ltd (Sales),TRADE SUPPLIER,5323-External SEN Providers Independent Sch,"17,099.33"
24-MAY-2022,C&FS (P),Acorn Care & Education Ltd (Sales),TRADE SUPPLIER,5323-External SEN Providers Independent Sch,"17,099.33"
24-MAY-2022,C&FS (P),Acorn Care & Education Ltd (Sales),TRADE SUPPLIER,5323-External SEN Providers Independent Sch,"17,099.33"
24-MAY-2022,C&FS (P),Acorn Care & Education Ltd (Sales),TRADE SUPPLIER,5323-External SEN Providers Independent Sch,"9,441.67"
24-MAY-2022,C&FS (P),Acorn Care & Education Ltd (Sales),TRADE SUPPLIER,5323-External SEN Providers Independent Sch,"17,099.33"
24-MAY-2022,C&FS (P),Acorn Care & Education Ltd (Sales),TRADE SUPPLIER,5323-External SEN Providers Independent Sch,"10,266.67"
24-MAY-2022,C&FS (P),Acorn Care & Education Ltd (Sales),TRADE SUPPLIER,5323-External SEN Providers Independent Sch,"21,666.67"
24-MAY-2022,C&FS (P),Acorn Care & Education Ltd (Sales),TRADE SUPPLIER,5323-External SEN Providers Independent Sch,"17,612.67"
24-MAY-2022,C&FS (P),Acorn Care & Education Ltd (Sales),TRADE SUPPLIER,5323-External SEN Providers Independent Sch,"17,612.67"
24-MAY-2022,C&FS (P),Acorn Care & Education Ltd (Sales),TRADE SUPPLIER,5323-External SEN Providers Independent Sch,"17,612.67"
24-MAY-2022,C&FS (P),Acorn Care & Education Ltd (Sales),TRADE SUPPLIER,5323-External SEN Providers Independent Sch,"17,099.33"
24-MAY-2022,C&FS (P),Acorn Care & Education Ltd (Sales),TRADE SUPPLIER,5323-External SEN Providers Independent Sch,"21,666.67"
24-MAY-2022,C&FS (P),Acorn Care & Education Ltd (Sales),TRADE SUPPLIER,5323-External SEN Providers Independent Sch,"17,612.67"
24-MAY-2022,C&FS (P),Acorn Care & Education Ltd (Sales),TRADE SUPPLIER,5323-External SEN Providers Independent Sch,"17,099.33"
24-MAY-2022,C&FS (P),Acorn Care & Education Ltd (Sales),TRADE SUPPLIER,5323-External SEN Providers Independent Sch,"18,472.33"
24-MAY-2022,C&FS (P),Acorn Care & Education Ltd (Sales),TRADE SUPPLIER,5323-External SEN Providers Independent Sch,"17,612.67"
24-MAY-2022,C&FS (P),Acorn Care & Education Ltd (Sales),TRADE SUPPLIER,5323-External SEN Providers Independent Sch,"30,000.00"
24-MAY-2022,C&FS (P),Acorn Care & Education Ltd (Sales),TRADE SUPPLIER,5323-External SEN Providers Independent Sch,"17,099.33"
24-MAY-2022,C&FS (P),Acorn Care & Education Ltd (Sales),TRADE SUPPLIER,5323-External SEN Providers Independent Sch,"8,814.67"
24-MAY-2022,C&FS (P),Acorn Care & Education Ltd (Sales),TRADE SUPPLIER,5323-External SEN Providers Independent Sch,"25,960.00"
24-MAY-2022,C&FS (P),Acorn Care & Education Ltd (Sales),TRADE SUPPLIER,5411-Private Contractors - General,"8,918.40"
24-MAY-2022,C&FS (P),Acorn Care & Education Ltd (Sales),TRADE SUPPLIER,5323-External SEN Providers Independent Sch,"9,014.89"
30-MAY-2022,C&FS (P),Acorn Care & Education Ltd (Sales),GENERAL,6101-Support Services,640.00
30-MAY-2022,C&FS (P),Acorn Care & Education Ltd (Sales),GENERAL,6101-Support Services,630.00
31-MAY-2022,C&FS (P),Acorn Fostering Services Ltd,TRADE SUPPLIER,5446-Independent Fostering Agencies,"2,932.47"
31-MAY-2022,C&FS (P),Acorn Fostering Services Ltd,TRADE SUPPLIER,5446-Independent Fostering Agencies,"2,995.93"
31-MAY-2022,C&FS (P),Acorn Fostering Services Ltd,TRADE SUPPLIER,5446-Independent Fostering Agencies,"2,995.93"
30-MAY-2022,Adults & Communities (P),ACORN LODGE&&SSARO3214,S/S HOMES,5502-Residential,"3,400.00"
09-MAY-2022,C&FS (P),ACORN UNDER FIVES (BIRSTALL)&&EYRS1632,GENERAL,4908-Grants,825.00
17-MAY-2022,C&FS (P),ACORN UNDER FIVES (BIRSTALL)&&EYRS1632,GENERAL,4908-Grants,789.92
20-MAY-2022,C&FS (P),ACORN UNDER FIVES (BIRSTALL)&&EYRS1632,EARLY YEARS,4908-Grants,"3,210.03"
19-MAY-2022,Public Health (P),Active Partnerships,NON TRADE,4507-Consultants & Specialists,"2,083.33"
06-MAY-2022,Adults & Communities (P),ADAPTUS CARES LTD&&ISHC5289,HOME CARE,5505-Homecare,"3,180.67"
06-MAY-2022,Adults & Communities (P),ADAPTUS CARES LTD&&ISHC5289,HOME CARE,5505-Homecare,867.47
13-MAY-2022,Adults & Communities (P),ADAPTUS CARES LTD&&ISHC5289,HOME CARE,5505-Homecare,"2,024.07"
13-MAY-2022,Adults & Communities (P),ADAPTUS CARES LTD&&ISHC5289,HOME CARE,5505-Homecare,"2,723.64"
27-MAY-2022,Adults & Communities (P),ADAPTUS CARES LTD&&ISHC5289,HOME CARE,5505-Homecare,"1,614.95"
27-MAY-2022,Adults & Communities (P),ADAPTUS CARES LTD&&ISHC5289,HOME CARE,5505-Homecare,"3,290.63"
20-MAY-2022,C&FS (P),REDACTED PERSONAL DATA,GENERAL,5621-Transfer Payments,580.17
20-MAY-2022,C&FS (P),REDACTED PERSONAL DATA,EARLY YEARS,4908-Grants,754.20
20-MAY-2022,C&FS (P),REDACTED PERSONAL DATA,EARLY YEARS,4908-Grants,737.55
30-MAY-2022,Adults & Communities (P),ADEN HOUSE LTD&&SSARO2794,S/S HOMES,5502-Residential,"2,517.24"
05-MAY-2022,C&FS (P),ADHD Solutions CIC,TRADE SUPPLIER,4908-Grants,"60,000.00"
06-MAY-2022,Adults & Communities (P),ADJUVO CARE & SUPPORT LTD&&SUPL6474,SUPPORTED LIVING,5506-Supported Living,"9,288.20"
06-MAY-2022,Adults & Communities (P),ADJUVO CARE & SUPPORT LTD&&SUPL6474,SUPPORTED LIVING,5506-Supported Living,"6,147.07"
06-MAY-2022,Adults & Communities (P),ADJUVO CARE & SUPPORT LTD&&SUPL6474,SUPPORTED LIVING,5506-Supported Living,"8,409.63"
19-MAY-2022,Balance Sheet Cost Centres (P),ADJUVO CARE & SUPPORT&&SSARO2208,GENERAL,9642-Reserved Debtors - Non Public Sector,"20,354.00"
26-MAY-2022,Balance Sheet Cost Centres (P),ADJUVO CARE & SUPPORT&&SSARO2208,GENERAL,9642-Reserved Debtors - Non Public Sector,"2,544.00"
18-MAY-2022,Environment & Transport (P),REDACTED PERSONAL DATA,NON TRADE,3201-Pooled Transport Recharge Inhouse,674.74
11-MAY-2022,C&FS (P),Adullam Homes Housing Association Ltd     1,TRADE SUPPLIER,5451-LCT/LAC (Not Fostered),"3,861.47"
12-MAY-2022,C&FS (P),Adullam Homes Housing Association Ltd     1,TRADE SUPPLIER,5443-Agency & Contracted Services,"1,989.17"
12-MAY-2022,C&FS (P),Adullam Homes Housing Association Ltd     1,TRADE SUPPLIER,5451-LCT/LAC (Not Fostered),"3,861.47"
12-MAY-2022,C&FS (P),Adullam Homes Housing Association Ltd     1,TRADE SUPPLIER,5451-LCT/LAC (Not Fostered),"3,861.47"
17-MAY-2022,C&FS (P),Adullam Homes Housing Association Ltd     1,TRADE SUPPLIER,5451-LCT/LAC (Not Fostered),"1,967.66"
17-MAY-2022,C&FS (P),Adullam Homes Housing Association Ltd     1,TRADE SUPPLIER,5451-LCT/LAC (Not Fostered),"3,861.60"
31-MAY-2022,C&FS (P),Adullam Homes Housing Association Ltd     1,TRADE SUPPLIER,5443-Agency & Contracted Services,"1,127.20"
31-MAY-2022,C&FS (P),Adullam Homes Housing Association Ltd     1,TRADE SUPPLIER,5451-LCT/LAC (Not Fostered),"1,980.90"
31-MAY-2022,C&FS (P),Adullam Homes Housing Association Ltd     1,TRADE SUPPLIER,5443-Agency & Contracted Services,"1,989.17"
31-MAY-2022,C&FS (P),Adullam Homes Housing Association Ltd     1,TRADE SUPPLIER,5451-LCT/LAC (Not Fostered),"2,046.93"
06-MAY-2022,Adults & Communities (P),ADVANCE HOUSING & SUPPORT LTD T/A ADVANCE&&SUPL5271,SUPPORTED LIVING,5506-Supported Living,826.13
06-MAY-2022,Adults & Communities (P),ADVANCE HOUSING & SUPPORT LTD T/A ADVANCE&&SUPL5271,SUPPORTED LIVING,5506-Supported Living,856.45
06-MAY-2022,Adults & Communities (P),ADVANCE HOUSING & SUPPORT LTD T/A ADVANCE&&SUPL5271,SUPPORTED LIVING,5506-Supported Living,591.11
19-MAY-2022,Balance Sheet Cost Centres (P),ADVANCE HOUSING & SUPPORT LTD T/A ADVANCE&&SUPL5271,GENERAL,9642-Reserved Debtors - Non Public Sector,"3,510.00"
26-MAY-2022,Balance Sheet Cost Centres (P),ADVANCE HOUSING & SUPPORT LTD T/A ADVANCE&&SUPL5271,GENERAL,9642-Reserved Debtors - Non Public Sector,"1,828.00"
30-MAY-2022,Adults & Communities (P),Advanced Business Solutions,TRADE SUPPLIER,4604-IT Equipment Repairs & Maintenance,"2,895.19"
30-MAY-2022,Adults & Communities (P),Advanced Business Solutions,TRADE SUPPLIER,4604-IT Equipment Repairs & Maintenance,"2,895.19"
30-MAY-2022,Adults & Communities (P),Advanced Business Solutions,TRADE SUPPLIER,4604-IT Equipment Repairs & Maintenance,"2,895.19"
30-MAY-2022,Adults & Communities (P),Advanced Business Solutions,TRADE SUPPLIER,4604-IT Equipment Repairs & Maintenance,799.95
30-MAY-2022,Adults & Communities (P),Advanced Business Solutions,TRADE SUPPLIER,4604-IT Equipment Repairs & Maintenance,"2,895.19"
30-MAY-2022,Adults & Communities (P),Advanced Business Solutions,TRADE SUPPLIER,4604-IT Equipment Repairs & Maintenance,"1,699.96"
25-MAY-2022,Chief Executives (P),Advanced Child Care Assessments Ltd,TRADE SUPPLIER,4905-Legal Expenses,"2,852.50"
27-MAY-2022,Adults & Communities (P),Advanced Health & Care Ltd,TRADE SUPPLIER,4603-IT Software Licenses/Subscription,"1,003.60"
27-MAY-2022,Adults & Communities (P),Advanced Health & Care Ltd,TRADE SUPPLIER,4603-IT Software Licenses/Subscription,"5,242.18"
20-MAY-2022,C&FS (P),ADVENTURE PLAYSCHOOL LTD T/A ADVENTURE PLAYSCHOOL&&EYRS2577932,EARLY YEARS,4908-Grants,"1,257.96"
06-MAY-2022,Capital - In Year Spend (P),AECOM Infrastructure & Environment UK Ltd,TRADE SUPPLIER,941G-L&B - Design Fees - External,"36,740.10"
26-MAY-2022,Capital - In Year Spend (P),AECOM Infrastructure & Environment UK Ltd,TRADE SUPPLIER,941G-L&B - Design Fees - External,"1,327.35"
31-MAY-2022,Capital - In Year Spend (P),AECOM Infrastructure & Environment UK Ltd,TRADE SUPPLIER,944A-Infr - Infrastructure Exp,"340,362.14"
31-MAY-2022,Capital - In Year Spend (P),AECOM Infrastructure & Environment UK Ltd,TRADE SUPPLIER,944A-Infr - Infrastructure Exp,"2,204.28"
25-MAY-2022,Environment & Transport (P),AECOM Ltd,TRADE SUPPLIER,4507-Consultants & Specialists,"85,076.66"
27-MAY-2022,Environment & Transport (P),AECOM Ltd,TRADE SUPPLIER,4507-Consultants & Specialists,"3,840.00"
27-MAY-2022,Environment & Transport (P),AECOM Ltd,TRADE SUPPLIER,4507-Consultants & Specialists,"6,088.82"
27-MAY-2022,Environment & Transport (P),AECOM Ltd,TRADE SUPPLIER,4507-Consultants & Specialists,"3,873.75"
27-MAY-2022,Environment & Transport (P),AECOM Ltd,TRADE SUPPLIER,4507-Consultants & Specialists,"1,181.25"
27-MAY-2022,Environment & Transport (P),AECOM Ltd,TRADE SUPPLIER,4507-Consultants & Specialists,"11,773.25"
27-MAY-2022,Environment & Transport (P),AECOM Ltd,TRADE SUPPLIER,4507-Consultants & Specialists,"2,359.38"
27-MAY-2022,Environment & Transport (P),AECOM Ltd,TRADE SUPPLIER,4507-Consultants & Specialists,"1,750.00"
03-MAY-2022,Corporate Resources (CR) (P),AF Blakemore & Son Ltd T/A Blakemore Food Service Ltd,TRADE SUPPLIER,4504-Provisions Purchases,"29,314.20"
18-MAY-2022,Corporate Resources (CR) (P),AF Blakemore & Son Ltd T/A Blakemore Food Service Ltd,TRADE SUPPLIER,4504-Provisions Purchases,"30,202.49"
24-MAY-2022,Corporate Resources (CR) (P),AF Blakemore & Son Ltd T/A Blakemore Food Service Ltd,TRADE SUPPLIER,4504-Provisions Purchases,"3,794.38"
31-MAY-2022,Corporate Resources (CR) (P),AF Blakemore & Son Ltd T/A Blakemore Food Service Ltd,TRADE SUPPLIER,4504-Provisions Purchases,"31,440.27"
06-MAY-2022,Adults & Communities (P),AFFINITY TRUST&&SUPL4188,SUPPORTED LIVING,5506-Supported Living,"1,174.32"
06-MAY-2022,Adults & Communities (P),AFFINITY TRUST&&SUPL4188,SUPPORTED LIVING,5506-Supported Living,"5,716.80"
06-MAY-2022,Adults & Communities (P),AFFINITY TRUST&&SUPL4188,SUPPORTED LIVING,5506-Supported Living,"117,679.42"
06-MAY-2022,Adults & Communities (P),AFFINITY TRUST&&SUPL4188,SUPPORTED LIVING,5506-Supported Living,947.36
06-MAY-2022,Adults & Communities (P),AFFINITY TRUST&&SUPL4188,SUPPORTED LIVING,5506-Supported Living,"143,718.70"
06-MAY-2022,Adults & Communities (P),AFFINITY TRUST&&SUPL4188,SUPPORTED LIVING,5506-Supported Living,"4,049.65"
06-MAY-2022,Adults & Communities (P),AFFINITY TRUST&&SUPL4188,SUPPORTED LIVING,5506-Supported Living,"8,219.75"
06-MAY-2022,Adults & Communities (P),AFFINITY TRUST&&SUPL4188,SUPPORTED LIVING,5506-Supported Living,"1,422.23"
06-MAY-2022,Adults & Communities (P),AFFINITY TRUST&&SUPL4188,SUPPORTED LIVING,5506-Supported Living,"102,134.15"
12-MAY-2022,Corporate Resources (CR) (P),AG Barr Plc,TRADE SUPPLIER,4504-Provisions Purchases,"10,996.71"
31-MAY-2022,Adults & Communities (P),Age Uk Leicester Shire & Rutland Home Help Ltd,TRADE SUPPLIER,5504-Day/CLC Services,"1,204.00"
09-MAY-2022,Adults & Communities (P),Age Uk Leicestershire & Rutland      1,GENERAL,5316-Voluntary Sector Contract Support,"28,399.50"
06-MAY-2022,Adults & Communities (P),AGE UK LEICESTERSHIRE AND RUTLAND&&CLCD3314,CLC,5504-Day/CLC Services,"1,297.44"
13-MAY-2022,Adults & Communities (P),AGE UK LEICESTERSHIRE AND RUTLAND&&CLCD3314,CLC,5504-Day/CLC Services,553.86
13-MAY-2022,Adults & Communities (P),AGE UK LEICESTERSHIRE AND RUTLAND&&CLCD3314,CLC,5504-Day/CLC Services,"3,056.22"
19-MAY-2022,Balance Sheet Cost Centres (P),AGE UK LEICESTERSHIRE AND RUTLAND&&CLCD3314,GENERAL,9642-Reserved Debtors - Non Public Sector,"2,086.00"
20-MAY-2022,Adults & Communities (P),AGE UK LEICESTERSHIRE AND RUTLAND&&CLCD3314,CLC,5504-Day/CLC Services,"2,041.38"
27-MAY-2022,Adults & Communities (P),AGE UK LEICESTERSHIRE AND RUTLAND&&CLCD3314,CLC,5504-Day/CLC Services,"2,783.46"
06-MAY-2022,Environment & Transport (P),Aggregate Industries UK Ltd,SUBCONTRACTOR,4109-Materials,"8,878.11"
06-MAY-2022,Environment & Transport (P),Aggregate Industries UK Ltd,SUBCONTRACTOR,4109-Materials,"10,443.89"
06-MAY-2022,Environment & Transport (P),Aggregate Industries UK Ltd,SUBCONTRACTOR,4109-Materials,562.83
06-MAY-2022,Environment & Transport (P),Aggregate Industries UK Ltd,SUBCONTRACTOR,4109-Materials,"4,083.60"
06-MAY-2022,Environment & Transport (P),Aggregate Industries UK Ltd,SUBCONTRACTOR,4109-Materials,"2,608.25"
06-MAY-2022,Environment & Transport (P),Aggregate Industries UK Ltd,SUBCONTRACTOR,4109-Materials,871.62
06-MAY-2022,Environment & Transport (P),Aggregate Industries UK Ltd,SUBCONTRACTOR,4109-Materials,562.83
06-MAY-2022,Environment & Transport (P),Aggregate Industries UK Ltd,SUBCONTRACTOR,4109-Materials,777.45
06-MAY-2022,Environment & Transport (P),Aggregate Industries UK Ltd,SUBCONTRACTOR,4109-Materials,"1,014.07"
06-MAY-2022,Environment & Transport (P),Aggregate Industries UK Ltd,SUBCONTRACTOR,4109-Materials,538.74
06-MAY-2022,Environment & Transport (P),Aggregate Industries UK Ltd,SUBCONTRACTOR,4109-Materials,682.08
09-MAY-2022,Environment & Transport (P),Aggregate Industries UK Ltd,SUBCONTRACTOR,4109-Materials,534.06
10-MAY-2022,Environment & Transport (P),Aggregate Industries UK Ltd,SUBCONTRACTOR,4109-Materials,"1,104.00"
10-MAY-2022,Environment & Transport (P),Aggregate Industries UK Ltd,SUBCONTRACTOR,4109-Materials,"1,055.70"
10-MAY-2022,Environment & Transport (P),Aggregate Industries UK Ltd,SUBCONTRACTOR,4109-Materials,"1,347.59"
10-MAY-2022,Environment & Transport (P),Aggregate Industries UK Ltd,SUBCONTRACTOR,4109-Materials,654.81
11-MAY-2022,Environment & Transport (P),Aggregate Industries UK Ltd,SUBCONTRACTOR,4109-Materials,"5,577.59"
11-MAY-2022,Environment & Transport (P),Aggregate Industries UK Ltd,SUBCONTRACTOR,4109-Materials,"1,003.02"
12-MAY-2022,Environment & Transport (P),Aggregate Industries UK Ltd,SUBCONTRACTOR,4109-Materials,897.90
12-MAY-2022,Environment & Transport (P),Aggregate Industries UK Ltd,SUBCONTRACTOR,4109-Materials,736.97
12-MAY-2022,Environment & Transport (P),Aggregate Industries UK Ltd,SUBCONTRACTOR,4109-Materials,970.90
12-MAY-2022,Environment & Transport (P),Aggregate Industries UK Ltd,SUBCONTRACTOR,4109-Materials,699.20
12-MAY-2022,Environment & Transport (P),Aggregate Industries UK Ltd,SUBCONTRACTOR,4109-Materials,"5,501.91"
12-MAY-2022,Environment & Transport (P),Aggregate Industries UK Ltd,SUBCONTRACTOR,4109-Materials,"3,841.23"
12-MAY-2022,Environment & Transport (P),Aggregate Industries UK Ltd,SUBCONTRACTOR,4109-Materials,509.18
12-MAY-2022,Environment & Transport (P),Aggregate Industries UK Ltd,SUBCONTRACTOR,4109-Materials,841.70
13-MAY-2022,Environment & Transport (P),Aggregate Industries UK Ltd,SUBCONTRACTOR,4109-Materials,906.66
13-MAY-2022,Environment & Transport (P),Aggregate Industries UK Ltd,SUBCONTRACTOR,4109-Materials,"4,175.23"
13-MAY-2022,Environment & Transport (P),Aggregate Industries UK Ltd,SUBCONTRACTOR,4109-Materials,867.35
13-MAY-2022,Environment & Transport (P),Aggregate Industries UK Ltd,SUBCONTRACTOR,4109-Materials,891.33
13-MAY-2022,Environment & Transport (P),Aggregate Industries UK Ltd,SUBCONTRACTOR,4109-Materials,950.46
13-MAY-2022,Environment & Transport (P),Aggregate Industries UK Ltd,SUBCONTRACTOR,4109-Materials,"1,112.52"
13-MAY-2022,Environment & Transport (P),Aggregate Industries UK Ltd,SUBCONTRACTOR,4109-Materials,"1,362.53"
13-MAY-2022,Environment & Transport (P),Aggregate Industries UK Ltd,SUBCONTRACTOR,4109-Materials,"2,634.14"
20-MAY-2022,Environment & Transport (P),Aggregate Industries UK Ltd,SUBCONTRACTOR,4109-Materials,739.10
20-MAY-2022,Environment & Transport (P),Aggregate Industries UK Ltd,SUBCONTRACTOR,4109-Materials,"6,667.06"
20-MAY-2022,Environment & Transport (P),Aggregate Industries UK Ltd,SUBCONTRACTOR,4109-Materials,571.89
20-MAY-2022,Environment & Transport (P),Aggregate Industries UK Ltd,SUBCONTRACTOR,4109-Materials,"1,951.58"
20-MAY-2022,Environment & Transport (P),Aggregate Industries UK Ltd,SUBCONTRACTOR,4109-Materials,996.45
20-MAY-2022,Environment & Transport (P),Aggregate Industries UK Ltd,SUBCONTRACTOR,4109-Materials,673.03
20-MAY-2022,Environment & Transport (P),Aggregate Industries UK Ltd,SUBCONTRACTOR,4109-Materials,960.45
20-MAY-2022,Environment & Transport (P),Aggregate Industries UK Ltd,SUBCONTRACTOR,4109-Materials,"1,384.44"
20-MAY-2022,Environment & Transport (P),Aggregate Industries UK Ltd,SUBCONTRACTOR,4109-Materials,811.30
20-MAY-2022,Environment & Transport (P),Aggregate Industries UK Ltd,SUBCONTRACTOR,4109-Materials,"7,888.16"
24-MAY-2022,Environment & Transport (P),Aggregate Industries UK Ltd,SUBCONTRACTOR,4109-Materials,950.00
24-MAY-2022,Environment & Transport (P),Aggregate Industries UK Ltd,SUBCONTRACTOR,4109-Materials,752.45
24-MAY-2022,Environment & Transport (P),Aggregate Industries UK Ltd,SUBCONTRACTOR,4109-Materials,987.69
25-MAY-2022,Environment & Transport (P),Aggregate Industries UK Ltd,SUBCONTRACTOR,4109-Materials,"5,102.37"
25-MAY-2022,Environment & Transport (P),Aggregate Industries UK Ltd,SUBCONTRACTOR,4109-Materials,"7,011.50"
25-MAY-2022,Environment & Transport (P),Aggregate Industries UK Ltd,SUBCONTRACTOR,4109-Materials,950.00
26-MAY-2022,Environment & Transport (P),Aggregate Industries UK Ltd,SUBCONTRACTOR,4109-Materials,"4,361.54"
26-MAY-2022,Environment & Transport (P),Aggregate Industries UK Ltd,SUBCONTRACTOR,4109-Materials,870.20
26-MAY-2022,Environment & Transport (P),Aggregate Industries UK Ltd,SUBCONTRACTOR,4109-Materials,"8,281.99"
27-MAY-2022,Environment & Transport (P),Aggregate Industries UK Ltd,SUBCONTRACTOR,4109-Materials,"1,081.86"
27-MAY-2022,Environment & Transport (P),Aggregate Industries UK Ltd,SUBCONTRACTOR,4109-Materials,"5,025.67"
27-MAY-2022,Environment & Transport (P),Aggregate Industries UK Ltd,SUBCONTRACTOR,4109-Materials,"1,036.47"
27-MAY-2022,Environment & Transport (P),Aggregate Industries UK Ltd,SUBCONTRACTOR,4109-Materials,939.28
27-MAY-2022,Environment & Transport (P),Aggregate Industries UK Ltd,SUBCONTRACTOR,4109-Materials,866.40
27-MAY-2022,Environment & Transport (P),Aggregate Industries UK Ltd,SUBCONTRACTOR,4109-Materials,"8,839.06"
27-MAY-2022,Environment & Transport (P),Aggregate Industries UK Ltd,SUBCONTRACTOR,4109-Materials,529.98
30-MAY-2022,Adults & Communities (P),AHAVAH HEALTHCARE LTD&&SSARO1638,S/S HOMES,5502-Residential,"14,957.20"
30-MAY-2022,Adults & Communities (P),AHAVAH HEALTHCARE LTD&&SSARO1638,S/S HOMES,5502-Residential,"1,051.36"
27-MAY-2022,Adults & Communities (P),AIM Awards,TRADE SUPPLIER,8348-Exam Fees,"1,030.00"
13-MAY-2022,Public Health (P),Air IT,TRADE SUPPLIER,4601-IT Equipment Hardware,701.34
27-MAY-2022,Public Health (P),Air IT,TRADE SUPPLIER,4601-IT Equipment Hardware,"3,232.00"
27-MAY-2022,Public Health (P),Air IT,TRADE SUPPLIER,4602-IT Services,"2,270.30"
27-MAY-2022,Environment & Transport (P),Airports 4 U,TRADE SUPPLIER,3303-Taxi Hire,950.00
13-MAY-2022,Environment & Transport (P),Aizel Cabs Ltd,TRADE SUPPLIER,3303-Taxi Hire,617.76
13-MAY-2022,Environment & Transport (P),Aizel Cabs Ltd,TRADE SUPPLIER,3303-Taxi Hire,"1,185.92"
13-MAY-2022,Environment & Transport (P),Aizel Cabs Ltd,TRADE SUPPLIER,3303-Taxi Hire,"1,187.01"
13-MAY-2022,Environment & Transport (P),Aizel Cabs Ltd,TRADE SUPPLIER,3303-Taxi Hire,"1,285.02"
13-MAY-2022,Environment & Transport (P),Aizel Cabs Ltd,TRADE SUPPLIER,3303-Taxi Hire,688.45
13-MAY-2022,Environment & Transport (P),Aizel Cabs Ltd,TRADE SUPPLIER,3303-Taxi Hire,"1,251.26"
13-MAY-2022,Environment & Transport (P),Aizel Cabs Ltd,TRADE SUPPLIER,3303-Taxi Hire,"1,208.68"
13-MAY-2022,Environment & Transport (P),Aizel Cabs Ltd,TRADE SUPPLIER,3303-Taxi Hire,"1,524.60"
13-MAY-2022,Environment & Transport (P),Aizel Cabs Ltd,TRADE SUPPLIER,3201-Pooled Transport Recharge Inhouse,768.24
13-MAY-2022,Environment & Transport (P),Aizel Cabs Ltd,TRADE SUPPLIER,3201-Pooled Transport Recharge Inhouse,522.72
13-MAY-2022,Environment & Transport (P),Aizel Cabs Ltd,TRADE SUPPLIER,3201-Pooled Transport Recharge Inhouse,"1,023.66"
13-MAY-2022,Environment & Transport (P),Aizel Cabs Ltd,TRADE SUPPLIER,3201-Pooled Transport Recharge Inhouse,"1,245.32"
13-MAY-2022,Environment & Transport (P),Aizel Cabs Ltd,TRADE SUPPLIER,3201-Pooled Transport Recharge Inhouse,"1,252.35"
13-MAY-2022,Environment & Transport (P),Aizel Cabs Ltd,TRADE SUPPLIER,3303-Taxi Hire,"1,060.29"
13-MAY-2022,Environment & Transport (P),Aizel Cabs Ltd,TRADE SUPPLIER,3303-Taxi Hire,598.73
13-MAY-2022,Environment & Transport (P),Aizel Cabs Ltd,TRADE SUPPLIER,3303-Taxi Hire,"1,328.47"
13-MAY-2022,Environment & Transport (P),Aizel Cabs Ltd,TRADE SUPPLIER,3303-Taxi Hire,"1,230.46"
13-MAY-2022,Environment & Transport (P),Aizel Cabs Ltd,TRADE SUPPLIER,3303-Taxi Hire,902.72
13-MAY-2022,Environment & Transport (P),Aizel Cabs Ltd,TRADE SUPPLIER,3303-Taxi Hire,871.20
13-MAY-2022,Environment & Transport (P),Aizel Cabs Ltd,TRADE SUPPLIER,3303-Taxi Hire,718.74
13-MAY-2022,Environment & Transport (P),Aizel Cabs Ltd,TRADE SUPPLIER,3303-Taxi Hire,"1,196.81"
13-MAY-2022,Environment & Transport (P),Aizel Cabs Ltd,TRADE SUPPLIER,3303-Taxi Hire,"1,021.58"
13-MAY-2022,Environment & Transport (P),Aizel Cabs Ltd,TRADE SUPPLIER,3303-Taxi Hire,"1,304.62"
05-MAY-2022,Environment & Transport (P),REDACTED PERSONAL DATA,NON TRADE,3303-Taxi Hire,600.00
05-MAY-2022,Environment & Transport (P),REDACTED PERSONAL DATA,NON TRADE,3303-Taxi Hire,650.00
18-MAY-2022,Environment & Transport (P),REDACTED PERSONAL DATA,NON TRADE,3303-Taxi Hire,990.00
30-MAY-2022,Adults & Communities (P),AKARI CARE LTD T/A SEALE PASTURES&&SSAROE47014,S/S HOMES,5502-Residential,"3,745.00"
30-MAY-2022,Adults & Communities (P),AKARI CARE LTD T/A SEALE PASTURES&&SSAROE47014,S/S HOMES,5502-Residential,"13,683.80"
30-MAY-2022,Adults & Communities (P),AKARI CARE LTD T/A SEALE PASTURES&&SSAROE47014,S/S HOMES,5502-Residential,"1,605.00"
10-MAY-2022,Balance Sheet Cost Centres (P),AL Consulting(UK)Ltd T/A Eazywebz UK,GENERAL,9642-Reserved Debtors - Non Public Sector,"6,000.00"
17-MAY-2022,Balance Sheet Cost Centres (P),ALA CARE LTD&&SSAROE1044,GENERAL,9642-Reserved Debtors - Non Public Sector,"19,077.00"
30-MAY-2022,Adults & Communities (P),ALA CARE LTD&&SSAROE1044,S/S HOMES,5502-Residential,"28,776.00"
17-MAY-2022,Balance Sheet Cost Centres (P),ALA CARE LTD&&SSAROE182,GENERAL,9642-Reserved Debtors - Non Public Sector,"16,158.00"
30-MAY-2022,Adults & Communities (P),ALA CARE LTD&&SSAROE182,S/S HOMES,5502-Residential,"1,371.43"
30-MAY-2022,Adults & Communities (P),ALA CARE LTD&&SSAROE182,S/S HOMES,5502-Residential,"35,548.92"
17-MAY-2022,Balance Sheet Cost Centres (P),ALA CARE LTD&&SSAROE40269,GENERAL,9642-Reserved Debtors - Non Public Sector,"19,000.00"
30-MAY-2022,Adults & Communities (P),ALA CARE LTD&&SSAROE40269,S/S HOMES,5502-Residential,"52,309.94"
30-MAY-2022,Adults & Communities (P),ALA CARE LTD&&SSAROE40269,S/S HOMES,5502-Residential,"1,071.14"
30-MAY-2022,Adults & Communities (P),ALA CARE LTD&&SSAROE40269,S/S HOMES,5502-Residential,"1,757.14"
30-MAY-2022,Adults & Communities (P),ALA CARE LTD&&SSAROE40269,S/S HOMES,5502-Residential,966.43
17-MAY-2022,C&FS (P),ALBERT VILLAGE PRIMARY SCHOOL NURSERY&&EYRS1698,GENERAL,4908-Grants,"1,209.32"
30-MAY-2022,Adults & Communities (P),ALEXANDRA CARE (LEICESTER) LTD DANE VIEW CARE HOME&&SSARO5677,S/S HOMES,5502-Residential,"17,306.00"
30-MAY-2022,Adults & Communities (P),ALEXANDRA CARE (LEICESTER) LTD DANE VIEW CARE HOME&&SSARO5677,S/S HOMES,5502-Residential,625.00
27-MAY-2022,Environment & Transport (P),Alfa Tail Lifts Ltd,TRADE SUPPLIER,3102-Vehicle & Plant Repairs & Maintenance,572.66
05-MAY-2022,Environment & Transport (P),Ali Taxis Ltd,TRADE INDIVIDUAL,3303-Taxi Hire,"2,754.55"
05-MAY-2022,Environment & Transport (P),Ali Taxis Ltd,TRADE INDIVIDUAL,3201-Pooled Transport Recharge Inhouse,"1,823.52"
05-MAY-2022,Environment & Transport (P),Ali Taxis Ltd,TRADE INDIVIDUAL,3303-Taxi Hire,"1,773.90"
05-MAY-2022,Environment & Transport (P),Ali Taxis Ltd,TRADE INDIVIDUAL,3303-Taxi Hire,"2,803.64"
05-MAY-2022,Environment & Transport (P),Ali Taxis Ltd,TRADE INDIVIDUAL,3303-Taxi Hire,768.00
05-MAY-2022,Environment & Transport (P),Ali Taxis Ltd,TRADE INDIVIDUAL,3303-Taxi Hire,"2,446.25"
05-MAY-2022,Environment & Transport (P),Ali Taxis Ltd,TRADE INDIVIDUAL,3201-Pooled Transport Recharge Inhouse,"1,419.68"
05-MAY-2022,Environment & Transport (P),Ali Taxis Ltd,TRADE INDIVIDUAL,3201-Pooled Transport Recharge Inhouse,"3,587.81"
30-MAY-2022,Adults & Communities (P),ALICE HOUSE (FLOLLIE INVESTMENTS LIMITED)&&SSARO5641,S/S HOMES,5502-Residential,"2,425.20"
20-MAY-2022,C&FS (P),REDACTED PERSONAL DATA,EARLY YEARS,4908-Grants,"2,980.27"
31-MAY-2022,C&FS (P),REDACTED PERSONAL DATA,GENERAL,4908-Grants,"2,851.92"
20-MAY-2022,C&FS (P),REDACTED PERSONAL DATA,GENERAL,5621-Transfer Payments,881.15
17-MAY-2022,C&FS (P),REDACTED PERSONAL DATA,GENERAL,4908-Grants,754.92
20-MAY-2022,C&FS (P),REDACTED PERSONAL DATA,EARLY YEARS,4908-Grants,"11,298.29"
13-MAY-2022,Environment & Transport (P),REDACTED PERSONAL DATA,NON TRADE,3303-Taxi Hire,871.20
13-MAY-2022,Corporate Resources (CR) (P),All Purpose Cleaning Supplies Ltd,TRADE SUPPLIER,4102-General Equipment - Purchase & Repairs,815.40
20-MAY-2022,Corporate Resources (CR) (P),All Purpose Cleaning Supplies Ltd,TRADE SUPPLIER,2401-Cleaning Materials,762.30
27-MAY-2022,Corporate Resources (CR) (P),All Purpose Cleaning Supplies Ltd,TRADE SUPPLIER,2401-Cleaning Materials,519.09
27-MAY-2022,Corporate Resources (CR) (P),All Purpose Cleaning Supplies Ltd,TRADE SUPPLIER,2401-Cleaning Materials,770.29
27-MAY-2022,Corporate Resources (CR) (P),All Purpose Cleaning Supplies Ltd,TRADE SUPPLIER,2401-Cleaning Materials,531.15
31-MAY-2022,C&FS (P),All Saints CE Primary School Sapcote (Inspiring Primaries Academy Trust),GENERAL,5325-External SEN Providers Top Up Fee,"6,425.00"
30-MAY-2022,Adults & Communities (P),ALLAG CARE LIMITED  GWENDOLEN&&SSARO3351,S/S HOMES,5502-Residential,"3,552.00"
30-MAY-2022,Adults & Communities (P),ALLAG CARE LIMITED  GWENDOLEN&&SSARO3351,S/S HOMES,5502-Residential,"31,080.76"
30-MAY-2022,Adults & Communities (P),ALLAG CARE LTD T/A SYCAMORE COTTAGE&&SSAROE44469,S/S HOMES,5502-Residential,"11,240.64"
30-MAY-2022,Adults & Communities (P),ALLCONTRAST LTD & GIVECARE LTD&&SSAROE2374,S/S HOMES,5502-Residential,"63,927.52"
10-MAY-2022,Environment & Transport (P),REDACTED PERSONAL DATA,TRADE SUPPLIER,3303-Taxi Hire,"1,941.69"
06-MAY-2022,Adults & Communities (P),ALLIANCE SC LTD&&ISHC6700,HOME CARE,5505-Homecare,"2,405.08"
13-MAY-2022,Adults & Communities (P),ALLIANCE SC LTD&&ISHC6700,HOME CARE,5505-Homecare,"2,405.08"
20-MAY-2022,Adults & Communities (P),ALLIANCE SC LTD&&ISHC6700,HOME CARE,5505-Homecare,"2,405.08"
27-MAY-2022,Adults & Communities (P),ALLIANCE SC LTD&&ISHC6700,HOME CARE,5505-Homecare,"2,405.08"
23-MAY-2022,Corporate Resources (CR) (P),AllStar Business Solutions Ltd,TRADE SUPPLIER,3104-Petrol / Oil / Types / Spares,"3,509.30"
24-MAY-2022,C&FS (P),ALP Schools Ltd,TRADE SUPPLIER,5323-External SEN Providers Independent Sch,"16,371.66"
24-MAY-2022,C&FS (P),ALP Schools Ltd,TRADE SUPPLIER,5323-External SEN Providers Independent Sch,"16,371.66"
24-MAY-2022,C&FS (P),ALP Schools Ltd,TRADE SUPPLIER,5323-External SEN Providers Independent Sch,"16,802.50"
24-MAY-2022,C&FS (P),ALP Schools Ltd,TRADE SUPPLIER,5323-External SEN Providers Independent Sch,"16,371.66"
25-MAY-2022,Capital - In Year Spend (P),Alpen Signs Ltd,TRADE SUPPLIER,941D-L&B - Building Costs,645.00
30-MAY-2022,Adults & Communities (P),ALPHA CARE MANAGEMENT SERVICES NO 2 LTD&&SSARO1217,S/S HOMES,5502-Residential,"9,756.80"
20-MAY-2022,C&FS (P),REDACTED PERSONAL DATA,EARLY YEARS,4908-Grants,"1,397.88"
12-MAY-2022,Environment & Transport (P),REDACTED PERSONAL DATA,NON TRADE,3303-Taxi Hire,880.00
20-MAY-2022,C&FS (P),REDACTED PERSONAL DATA,GENERAL,5621-Transfer Payments,"1,726.49"
17-MAY-2022,Balance Sheet Cost Centres (P),AMBERWOOD CARE HOME LTD&&SSAROE40398,GENERAL,9642-Reserved Debtors - Non Public Sector,"7,336.00"
30-MAY-2022,Adults & Communities (P),AMBERWOOD CARE HOME LTD&&SSAROE40398,S/S HOMES,5502-Residential,"29,230.00"
06-MAY-2022,Adults & Communities (P),AMICARE DOMICILIRY CARE SERVICES LTD&&ISHC2524,HOME CARE,5505-Homecare,"8,146.37"
13-MAY-2022,Adults & Communities (P),AMICARE DOMICILIRY CARE SERVICES LTD&&ISHC2524,HOME CARE,5505-Homecare,"9,030.68"
19-MAY-2022,Balance Sheet Cost Centres (P),AMICARE DOMICILIRY CARE SERVICES LTD&&ISHC2524,GENERAL,9642-Reserved Debtors - Non Public Sector,530.00
20-MAY-2022,Adults & Communities (P),AMICARE DOMICILIRY CARE SERVICES LTD&&ISHC2524,HOME CARE,5505-Homecare,"9,573.35"
27-MAY-2022,Adults & Communities (P),AMICARE DOMICILIRY CARE SERVICES LTD&&ISHC2524,HOME CARE,5505-Homecare,"9,739.42"
27-MAY-2022,Balance Sheet Cost Centres (P),AMICARE DOMICILIRY CARE SERVICES LTD&&ISHC2524,GENERAL,9642-Reserved Debtors - Non Public Sector,"3,162.00"
30-MAY-2022,Adults & Communities (P),AMICURA LTD&&SSARO6112,S/S HOMES,5502-Residential,"2,316.00"
30-MAY-2022,Adults & Communities (P),AMS CARE SERVICE LTD&&SSARO2055 T/A APRIL COTTAGE,S/S HOMES,5502-Residential,"7,908.00"
27-MAY-2022,Balance Sheet Cost Centres (P),AMS CARE SERVICE LTD&&SSARO2055 T/A APRIL COTTAGE,GENERAL,9642-Reserved Debtors - Non Public Sector,"1,274.00"
20-MAY-2022,C&FS (P),REDACTED PERSONAL DATA,GENERAL,5323-External SEN Providers Independent Sch,"2,821.05"
20-MAY-2022,C&FS (P),REDACTED PERSONAL DATA,EARLY YEARS,4908-Grants,984.02
20-MAY-2022,C&FS (P),REDACTED PERSONAL DATA,EARLY YEARS,4908-Grants,"1,090.19"
20-MAY-2022,Corporate Resources (CR) (P),Andy Kirk Contractors Ltd,SUBCONTRACTOR,2101-R&M Buildings,"1,085.00"
26-MAY-2022,Corporate Resources (CR) (P),Andy Kirk Contractors Ltd,SUBCONTRACTOR,2101-R&M Buildings,"7,200.00"
27-MAY-2022,Corporate Resources (CR) (P),Andy Kirk Contractors Ltd,SUBCONTRACTOR,2101-R&M Buildings,995.00
27-MAY-2022,Corporate Resources (CR) (P),Andy Kirk Contractors Ltd,SUBCONTRACTOR,2101-R&M Buildings,"3,110.00"
27-MAY-2022,Corporate Resources (CR) (P),Andy Kirk Contractors Ltd,SUBCONTRACTOR,2101-R&M Buildings,"1,420.00"
06-MAY-2022,C&FS (P),Anew Young People Services Ltd,TRADE SUPPLIER,5451-LCT/LAC (Not Fostered),"1,991.66"
06-MAY-2022,C&FS (P),Anew Young People Services Ltd,TRADE SUPPLIER,5451-LCT/LAC (Not Fostered),"2,018.66"
11-MAY-2022,C&FS (P),Anew Young People Services Ltd,TRADE SUPPLIER,5451-LCT/LAC (Not Fostered),"2,654.66"
16-MAY-2022,C&FS (P),Anew Young People Services Ltd,TRADE SUPPLIER,5451-LCT/LAC (Not Fostered),"2,526.08"
16-MAY-2022,C&FS (P),Anew Young People Services Ltd,TRADE SUPPLIER,5451-LCT/LAC (Not Fostered),"2,400.08"
30-MAY-2022,C&FS (P),Anew Young People Services Ltd,TRADE SUPPLIER,5451-LCT/LAC (Not Fostered),"2,569.80"
30-MAY-2022,C&FS (P),Anew Young People Services Ltd,TRADE SUPPLIER,5451-LCT/LAC (Not Fostered),"2,142.50"
30-MAY-2022,C&FS (P),Anew Young People Services Ltd,TRADE SUPPLIER,5451-LCT/LAC (Not Fostered),"1,927.80"
30-MAY-2022,C&FS (P),Anew Young People Services Ltd,TRADE SUPPLIER,5451-LCT/LAC (Not Fostered),"1,927.80"
30-MAY-2022,C&FS (P),Anew Young People Services Ltd,TRADE SUPPLIER,5451-LCT/LAC (Not Fostered),"1,927.80"
30-MAY-2022,C&FS (P),Anew Young People Services Ltd,TRADE SUPPLIER,5451-LCT/LAC (Not Fostered),"1,945.80"
30-MAY-2022,C&FS (P),Anew Young People Services Ltd,TRADE SUPPLIER,5411-Private Contractors - General,"2,185.80"
20-MAY-2022,C&FS (P),REDACTED PERSONAL DATA,EARLY YEARS,4908-Grants,"1,448.70"
31-MAY-2022,C&FS (P),Anglia Fostering Agency Ltd,TRADE SUPPLIER,5446-Independent Fostering Agencies,"3,534.00"
31-MAY-2022,C&FS (P),Anglia Fostering Agency Ltd,TRADE SUPPLIER,5446-Independent Fostering Agencies,"3,534.00"
03-MAY-2022,Adults & Communities (P),Animal Care Services Ltd,TRADE SUPPLIER,5508-Other Support,951.98
03-MAY-2022,Adults & Communities (P),Animal Care Services Ltd,TRADE SUPPLIER,5508-Other Support,837.00
03-MAY-2022,Adults & Communities (P),Animal Care Services Ltd,TRADE SUPPLIER,5508-Other Support,"1,032.00"
03-MAY-2022,Adults & Communities (P),Animal Care Services Ltd,TRADE SUPPLIER,5508-Other Support,770.67
03-MAY-2022,Adults & Communities (P),Animal Care Services Ltd,TRADE SUPPLIER,5508-Other Support,837.00
04-MAY-2022,Adults & Communities (P),Animal Care Services Ltd,TRADE SUPPLIER,5508-Other Support,"1,255.50"
04-MAY-2022,Adults & Communities (P),Animal Care Services Ltd,TRADE SUPPLIER,5508-Other Support,972.81
04-MAY-2022,Adults & Communities (P),Animal Care Services Ltd,TRADE SUPPLIER,5508-Other Support,504.21
04-MAY-2022,Adults & Communities (P),Animal Care Services Ltd,TRADE SUPPLIER,5508-Other Support,721.92
04-MAY-2022,Adults & Communities (P),Animal Care Services Ltd,TRADE SUPPLIER,5508-Other Support,"2,216.42"
30-MAY-2022,Adults & Communities (P),Animal Care Services Ltd,TRADE SUPPLIER,5508-Other Support,"3,170.13"
10-MAY-2022,C&FS (P),REDACTED PERSONAL DATA,NON TRADE,5445-Adoption Support,910.00
06-MAY-2022,Adults & Communities (P),REDACTED PERSONAL DATA,NON TRADE,4508-Medical Fees & Treatment,557.70
16-MAY-2022,Schools Revenue Cost Centres (P),Anstey Latimer CP School,GENERAL,9667-Cash - School Allowances,"14,684.00"
31-MAY-2022,C&FS (P),Anstey Martin High Academy,GENERAL,5325-External SEN Providers Top Up Fee,"4,882.92"
05-MAY-2022,Corporate Resources (CR) (P),Antalis Ltd,TRADE SUPPLIER,4405-Stationery,652.80
05-MAY-2022,Corporate Resources (CR) (P),Antalis Ltd,TRADE SUPPLIER,4405-Stationery,786.94
06-MAY-2022,Adults & Communities (P),ANYTIME CARE 2020&&ISHC6533,HOME CARE,5505-Homecare,"1,341.62"
06-MAY-2022,Adults & Communities (P),ANYTIME CARE 2020&&ISHC6533,HOME CARE,5505-Homecare,"3,718.99"
06-MAY-2022,Adults & Communities (P),ANYTIME CARE 2020&&ISHC6533,HOME CARE,5505-Homecare,"1,664.58"
06-MAY-2022,Adults & Communities (P),ANYTIME CARE 2020&&ISHC6533,HOME CARE,5505-Homecare,"2,433.81"
06-MAY-2022,Adults & Communities (P),ANYTIME CARE 2020&&ISHC6533,HOME CARE,5505-Homecare,"2,774.75"
13-MAY-2022,Adults & Communities (P),ANYTIME CARE 2020&&ISHC6533,HOME CARE,5505-Homecare,"1,766.03"
19-MAY-2022,Balance Sheet Cost Centres (P),ANYTIME CARE 2020&&ISHC6533,GENERAL,9642-Reserved Debtors - Non Public Sector,550.00
19-MAY-2022,Balance Sheet Cost Centres (P),ANYTIME CARE 2020&&ISHC6533,GENERAL,9642-Reserved Debtors - Non Public Sector,"1,300.00"
19-MAY-2022,Balance Sheet Cost Centres (P),ANYTIME CARE 2020&&ISHC6533,GENERAL,9642-Reserved Debtors - Non Public Sector,"3,250.00"
26-MAY-2022,Balance Sheet Cost Centres (P),ANYTIME CARE 2020&&ISHC6533,GENERAL,9642-Reserved Debtors - Non Public Sector,586.00
26-MAY-2022,Corporate Resources (CR) (P),Aon UK Ltd,TRADE SUPPLIER,2601-Premises Insurance,"2,000.00"
09-MAY-2022,Corporate Resources (CR) (P),APB,TRADE SUPPLIER,4507-Consultants & Specialists,"25,174.04"
06-MAY-2022,Adults & Communities (P),APOLLO CARE & SUPPORT LTD&&SUPL6508,SUPPORTED LIVING,5506-Supported Living,"8,924.27"
06-MAY-2022,Adults & Communities (P),APOLLO CARE & SUPPORT LTD&&SUPL6508,SUPPORTED LIVING,5506-Supported Living,"9,816.70"
06-MAY-2022,Adults & Communities (P),APOLLO CARE & SUPPORT LTD&&SUPL6508,SUPPORTED LIVING,5506-Supported Living,574.43
06-MAY-2022,Adults & Communities (P),APOLLO CARE & SUPPORT LTD&&SUPL6508,SUPPORTED LIVING,5506-Supported Living,"6,649.60"
03-MAY-2022,C&FS (P),Apollo Partnership Trust,GENERAL,6101-Support Services,"74,249.00"
17-MAY-2022,Balance Sheet Cost Centres (P),APPLE HOUSE LEICESTER LTD&&SSAROE185,GENERAL,9642-Reserved Debtors - Non Public Sector,"4,500.00"
30-MAY-2022,Adults & Communities (P),APPLE HOUSE LEICESTER LTD&&SSAROE185,S/S HOMES,5502-Residential,"2,616.00"
30-MAY-2022,Adults & Communities (P),APPLE HOUSE LEICESTER LTD&&SSAROE185,S/S HOMES,5502-Residential,560.57
18-MAY-2022,C&FS (P),APPLE TREE DAY NURSERY&&EYRS1507,EARLY YEARS,4908-Grants,"5,420.25"
16-MAY-2022,Schools Revenue Cost Centres (P),Appleby Magna Sir John Moore CP School,GENERAL,9667-Cash - School Allowances,"6,043.00"
12-MAY-2022,C&FS (P),Appropriate Adult Service Ltd,TRADE SUPPLIER,5443-Agency & Contracted Services,"1,386.00"
10-MAY-2022,Adults & Communities (P),AQA Education,TRADE SUPPLIER,4912-Educational Bodies Exam Fees,958.40
20-MAY-2022,Environment & Transport (P),Aquam Water Services Ltd,TRADE SUPPLIER,4901-Other Expenditure,"1,230.00"
30-MAY-2022,Environment & Transport (P),Aquam Water Services Ltd,TRADE SUPPLIER,4901-Other Expenditure,735.00
06-MAY-2022,Environment & Transport (P),AR Parrish Plant Hire,SUBCONTRACTOR,3301-Vehicle & Plant Hire,"1,015.00"
06-MAY-2022,Environment & Transport (P),AR Parrish Plant Hire,SUBCONTRACTOR,3301-Vehicle & Plant Hire,"2,294.00"
06-MAY-2022,Environment & Transport (P),AR Parrish Plant Hire,SUBCONTRACTOR,5411-Private Contractors - General,542.00
19-MAY-2022,Environment & Transport (P),AR Parrish Plant Hire,SUBCONTRACTOR,3301-Vehicle & Plant Hire,"1,094.75"
19-MAY-2022,Environment & Transport (P),AR Parrish Plant Hire,SUBCONTRACTOR,3301-Vehicle & Plant Hire,784.25
19-MAY-2022,Environment & Transport (P),AR Parrish Plant Hire,SUBCONTRACTOR,3301-Vehicle & Plant Hire,930.00
19-MAY-2022,Environment & Transport (P),AR Parrish Plant Hire,SUBCONTRACTOR,3301-Vehicle & Plant Hire,"1,694.00"
13-MAY-2022,Corporate Resources (CR) (P),AR Smith & Sons Ltd,SUBCONTRACTOR,4102-General Equipment - Purchase & Repairs,569.86
27-MAY-2022,Environment & Transport (P),Arcadis Consulting UK Ltd,TRADE SUPPLIER,4507-Consultants & Specialists,"8,011.00"
06-MAY-2022,Corporate Resources (CR) (P),Arcelle Consulting,TRADE SUPPLIER,2105-Reactive Maintenance M&E,500.00
25-MAY-2022,Corporate Resources (CR) (P),Arcelle Consulting,TRADE SUPPLIER,2112-Programmed Work,720.00
30-MAY-2022,Corporate Resources (CR) (P),Arcelle Consulting,TRADE SUPPLIER,2105-Reactive Maintenance M&E,550.00
30-MAY-2022,Adults & Communities (P),ARK CARE LODGE&&SSAROE699,S/S HOMES,5502-Residential,"8,821.96"
12-MAY-2022,Environment & Transport (P),Arriva Midlands Ltd,TRADE SUPPLIER,3113-Home to Sch Trans Contract Buses Sec,"15,902.25"
13-MAY-2022,Environment & Transport (P),Arriva Midlands Ltd,TRADE SUPPLIER,3113-Home to Sch Trans Contract Buses Sec,"15,902.25"
20-MAY-2022,Environment & Transport (P),Arriva Midlands Ltd,TRADE SUPPLIER,5428-Minimum Cost Contracts,"186,329.90"
23-MAY-2022,Environment & Transport (P),Arriva Midlands Ltd,TRADE SUPPLIER,3113-Home to Sch Trans Contract Buses Sec,"7,600.00"
24-MAY-2022,Environment & Transport (P),Arriva Midlands Ltd,TRADE SUPPLIER,3124-Other Transport Costs,"2,340.00"
24-MAY-2022,Environment & Transport (P),Arriva Midlands Ltd,TRADE SUPPLIER,3124-Other Transport Costs,"2,340.00"
27-MAY-2022,Environment & Transport (P),Arriva Midlands Ltd,TRADE SUPPLIER,3124-Other Transport Costs,750.00
27-MAY-2022,Environment & Transport (P),Arriva Midlands Ltd,TRADE SUPPLIER,3124-Other Transport Costs,"1,500.00"
09-MAY-2022,Balance Sheet Cost Centres (P),Arts Marketing Association,TRADE SUPPLIER,9641-Debtors Control,"4,800.00"
03-MAY-2022,Central Items (NCS) (P),Arval UK Ltd,TRADE SUPPLIER,3302-Vehicle Operational Lease,575.02
13-MAY-2022,Environment & Transport (P),ASA Transport Services Ltd,TRADE SUPPLIER,3303-Taxi Hire,"3,084.30"
13-MAY-2022,Environment & Transport (P),ASA Transport Services Ltd,TRADE SUPPLIER,3303-Taxi Hire,"1,311.00"
13-MAY-2022,Environment & Transport (P),ASA Transport Services Ltd,TRADE SUPPLIER,3303-Taxi Hire,"1,222.00"
13-MAY-2022,Environment & Transport (P),ASA Transport Services Ltd,TRADE SUPPLIER,3303-Taxi Hire,"1,899.30"
13-MAY-2022,Environment & Transport (P),ASA Transport Services Ltd,TRADE SUPPLIER,3303-Taxi Hire,630.00
13-MAY-2022,Environment & Transport (P),ASA Transport Services Ltd,TRADE SUPPLIER,3303-Taxi Hire,912.66
13-MAY-2022,Environment & Transport (P),ASA Transport Services Ltd,TRADE SUPPLIER,3303-Taxi Hire,"2,678.50"
13-MAY-2022,Environment & Transport (P),ASA Transport Services Ltd,TRADE SUPPLIER,3303-Taxi Hire,"1,032.00"
13-MAY-2022,Environment & Transport (P),ASA Transport Services Ltd,TRADE SUPPLIER,3303-Taxi Hire,"2,654.15"
19-MAY-2022,Environment & Transport (P),ASA Transport Services Ltd,TRADE SUPPLIER,3201-Pooled Transport Recharge Inhouse,920.00
24-MAY-2022,C&FS (P),ASD Learning (Midlands) Ltd,TRADE SUPPLIER,5323-External SEN Providers Independent Sch,"16,371.66"
24-MAY-2022,C&FS (P),ASD Learning (Midlands) Ltd,TRADE SUPPLIER,5323-External SEN Providers Independent Sch,"16,371.66"
24-MAY-2022,C&FS (P),ASD Learning (Midlands) Ltd,TRADE SUPPLIER,5323-External SEN Providers Independent Sch,"16,371.66"
24-MAY-2022,C&FS (P),ASD Learning (Midlands) Ltd,TRADE SUPPLIER,5323-External SEN Providers Independent Sch,"16,371.66"
24-MAY-2022,C&FS (P),ASD Learning (Midlands) Ltd,TRADE SUPPLIER,5323-External SEN Providers Independent Sch,"16,371.66"
24-MAY-2022,C&FS (P),ASD Learning (Midlands) Ltd,TRADE SUPPLIER,5323-External SEN Providers Independent Sch,"9,165.00"
24-MAY-2022,C&FS (P),ASD Learning (Midlands) Ltd,TRADE SUPPLIER,5323-External SEN Providers Independent Sch,"16,371.66"
24-MAY-2022,C&FS (P),ASD Learning (Midlands) Ltd,TRADE SUPPLIER,5323-External SEN Providers Independent Sch,"16,371.66"
24-MAY-2022,C&FS (P),ASD Learning (Midlands) Ltd,TRADE SUPPLIER,5323-External SEN Providers Independent Sch,"16,371.66"
24-MAY-2022,C&FS (P),ASD Learning (Midlands) Ltd,TRADE SUPPLIER,5323-External SEN Providers Independent Sch,"16,371.66"
24-MAY-2022,C&FS (P),ASD Learning (Midlands) Ltd,TRADE SUPPLIER,5323-External SEN Providers Independent Sch,"16,371.66"
24-MAY-2022,C&FS (P),ASD Learning (Midlands) Ltd,TRADE SUPPLIER,5323-External SEN Providers Independent Sch,"16,371.66"
24-MAY-2022,C&FS (P),ASD Learning (Midlands) Ltd,TRADE SUPPLIER,5323-External SEN Providers Independent Sch,"16,371.66"
26-MAY-2022,Adults & Communities (P),ASD SUPPORT LIMITED &&AASRO 6167,S/S HOMES,5502-Residential,"105,979.17"
17-MAY-2022,Balance Sheet Cost Centres (P),ASD SUPPORT LIMITED &&AASRO 6167,GENERAL,9642-Reserved Debtors - Non Public Sector,500.00
26-MAY-2022,Balance Sheet Cost Centres (P),ASD SUPPORT LIMITED &&AASRO 6167,GENERAL,9642-Reserved Debtors - Non Public Sector,"1,120.00"
06-MAY-2022,Adults & Communities (P),ASD SUPPORT LTD&&SUPL6853,SUPPORTED LIVING,5506-Supported Living,"4,159.50"
06-MAY-2022,Adults & Communities (P),ASD SUPPORT LTD&&SUPL6853,SUPPORTED LIVING,5506-Supported Living,"24,541.05"
06-MAY-2022,Adults & Communities (P),ASD SUPPORT LTD&&SUPL6853,SUPPORTED LIVING,5506-Supported Living,"3,099.39"
27-MAY-2022,Public Health (P),Asda Pharmacy,NON TRADE,5448-Pharmacy,610.65
16-MAY-2022,C&FS (P),Asfordby Captains Close Primary School Academy T/A Discovery Schools Academies Trust,GENERAL,4524-Transfers to Schools,"2,776.67"
31-MAY-2022,C&FS (P),Asfordby Captains Close Primary School Academy T/A Discovery Schools Academies Trust,GENERAL,5325-External SEN Providers Top Up Fee,"5,477.00"
31-MAY-2022,C&FS (P),Asfordby Captains Close Primary School Academy T/A Discovery Schools Academies Trust,GENERAL,5325-External SEN Providers Top Up Fee,"16,387.00"
31-MAY-2022,C&FS (P),Asfordby Captains Close Primary School Academy T/A Discovery Schools Academies Trust,GENERAL,5324-External SEN Providers Place Fee,"5,222.00"
31-MAY-2022,C&FS (P),Asfordby Hill Primary School Academy,GENERAL,5325-External SEN Providers Top Up Fee,"3,452.00"
30-MAY-2022,Adults & Communities (P),ASH TREE&&SSAROE424,S/S HOMES,5502-Residential,"21,780.80"
16-MAY-2022,Schools Revenue Cost Centres (P),Ashby CE Primary School,GENERAL,9667-Cash - School Allowances,"11,872.00"
06-MAY-2022,Balance Sheet Cost Centres (P),ASHBY COURT NURSING HOME&&SSAROE40195,GENERAL,9642-Reserved Debtors - Non Public Sector,"6,691.87"
06-MAY-2022,Balance Sheet Cost Centres (P),ASHBY COURT NURSING HOME&&SSAROE40195,GENERAL,9642-Reserved Debtors - Non Public Sector,"43,245.51"
17-MAY-2022,Balance Sheet Cost Centres (P),ASHBY COURT NURSING HOME&&SSAROE40195,GENERAL,9642-Reserved Debtors - Non Public Sector,"30,000.00"
30-MAY-2022,Adults & Communities (P),ASHBY COURT NURSING HOME&&SSAROE40195,S/S HOMES,5502-Residential,"32,279.44"
27-MAY-2022,Balance Sheet Cost Centres (P),ASHBY COURT NURSING HOME&&SSAROE40195,GENERAL,9642-Reserved Debtors - Non Public Sector,"3,177.00"
17-MAY-2022,C&FS (P),ASHBY DAY NURSERY & PRE-SCHOOL&&EYRS223188,GENERAL,4908-Grants,671.04
31-MAY-2022,C&FS (P),Ashby Hill Top Primary School Academy,GENERAL,5325-External SEN Providers Top Up Fee,522.00
23-MAY-2022,Corporate Resources (CR) (P),Ashby Life Ltd,TRADE SUPPLIER,"4503-Advertising, Publicity & Marketing",570.00
17-MAY-2022,Environment & Transport (P),Ashby Parva Parish Meeting,NON TRADE,4908-Grants,"2,000.00"
20-MAY-2022,C&FS (P),ASHBY PRESCHOOL ACADEMY&&EYRS2665072,EARLY YEARS,4908-Grants,"41,444.30"
31-MAY-2022,C&FS (P),Ashby School (LIFE Multi Academy Trust),GENERAL,6101-Support Services,700.00
31-MAY-2022,C&FS (P),Ashby School (LIFE Multi Academy Trust),GENERAL,5325-External SEN Providers Top Up Fee,"17,402.20"
16-MAY-2022,Schools Revenue Cost Centres (P),Ashby Woodcote CP School,GENERAL,9667-Cash - School Allowances,"8,251.00"
06-MAY-2022,Adults & Communities (P),ASHRAY CARE SERVICES LTD T/A SURECARE LEICESTER&&ISHC6337,HOME CARE,5505-Homecare,"1,119.83"
13-MAY-2022,Adults & Communities (P),ASHRAY CARE SERVICES LTD T/A SURECARE LEICESTER&&ISHC6337,HOME CARE,5505-Homecare,"1,119.83"
20-MAY-2022,Adults & Communities (P),ASHRAY CARE SERVICES LTD T/A SURECARE LEICESTER&&ISHC6337,HOME CARE,5505-Homecare,"1,119.83"
27-MAY-2022,Adults & Communities (P),ASHRAY CARE SERVICES LTD T/A SURECARE LEICESTER&&ISHC6337,HOME CARE,5505-Homecare,"1,119.83"
30-MAY-2022,Adults & Communities (P),ASHTON LODGE&&SSAROE40467,S/S HOMES,5502-Residential,"16,092.00"
30-MAY-2022,Adults & Communities (P),ASHTON LODGE&&SSAROE40467,S/S HOMES,5502-Residential,"1,565.57"
30-MAY-2022,Adults & Communities (P),ASHTON LODGE&&SSAROE40467,S/S HOMES,5502-Residential,539.14
04-MAY-2022,Corporate Resources (CR) (P),Ashwell Maintenance Ltd,TRADE SUPPLIER,2105-Reactive Maintenance M&E,"3,658.00"
05-MAY-2022,Corporate Resources (CR) (P),Ashwell Maintenance Ltd,TRADE SUPPLIER,2105-Reactive Maintenance M&E,652.00
05-MAY-2022,Corporate Resources (CR) (P),Ashwell Maintenance Ltd,TRADE SUPPLIER,2105-Reactive Maintenance M&E,"1,009.50"
06-MAY-2022,Corporate Resources (CR) (P),Ashwell Maintenance Ltd,TRADE SUPPLIER,2112-Programmed Work,500.11
06-MAY-2022,Corporate Resources (CR) (P),Ashwell Maintenance Ltd,TRADE SUPPLIER,2105-Reactive Maintenance M&E,547.04
06-MAY-2022,Corporate Resources (CR) (P),Ashwell Maintenance Ltd,TRADE SUPPLIER,2105-Reactive Maintenance M&E,809.66
06-MAY-2022,Corporate Resources (CR) (P),Ashwell Maintenance Ltd,TRADE SUPPLIER,2112-Programmed Work,"2,157.99"
10-MAY-2022,Corporate Resources (CR) (P),Ashwell Maintenance Ltd,TRADE SUPPLIER,2105-Reactive Maintenance M&E,"1,198.36"
11-MAY-2022,Corporate Resources (CR) (P),Ashwell Maintenance Ltd,TRADE SUPPLIER,2105-Reactive Maintenance M&E,515.60
11-MAY-2022,Corporate Resources (CR) (P),Ashwell Maintenance Ltd,TRADE SUPPLIER,2105-Reactive Maintenance M&E,"1,030.42"
13-MAY-2022,Corporate Resources (CR) (P),Ashwell Maintenance Ltd,TRADE SUPPLIER,2105-Reactive Maintenance M&E,553.75
24-MAY-2022,Corporate Resources (CR) (P),Ashwell Maintenance Ltd,TRADE SUPPLIER,2105-Reactive Maintenance M&E,"1,935.85"
24-MAY-2022,Corporate Resources (CR) (P),Ashwell Maintenance Ltd,TRADE SUPPLIER,2105-Reactive Maintenance M&E,694.42
24-MAY-2022,Corporate Resources (CR) (P),Ashwell Maintenance Ltd,TRADE SUPPLIER,2105-Reactive Maintenance M&E,684.26
27-MAY-2022,Corporate Resources (CR) (P),Ashwell Maintenance Ltd,TRADE SUPPLIER,2105-Reactive Maintenance M&E,690.00
11-MAY-2022,Adults & Communities (P),Askews & Holts Library Services Ltd,TRADE SUPPLIER,4111-Books & Audio Visual,520.18
06-MAY-2022,Adults & Communities (P),ASPIRATIONS CARE LTD&&SUPL4189,SUPPORTED LIVING,5506-Supported Living,"61,978.12"
06-MAY-2022,Adults & Communities (P),ASPIRATIONS CARE LTD&&SUPL4189,SUPPORTED LIVING,5506-Supported Living,"65,737.50"
06-MAY-2022,Adults & Communities (P),ASPIRATIONS CARE LTD&&SUPL4189,SUPPORTED LIVING,5506-Supported Living,735.30
06-MAY-2022,Adults & Communities (P),ASPIRATIONS CARE LTD&&SUPL4189,SUPPORTED LIVING,5506-Supported Living,"46,409.09"
13-MAY-2022,Corporate Resources (CR) (P),Aspire Development UK Ltd,TRADE SUPPLIER,1703-Training Expenses,"5,660.00"
30-MAY-2022,Adults & Communities (P),ASPIRE HEALTH & CARE LTD CHILLWEL HOUSE&&SSARO3332,S/S HOMES,5502-Residential,"3,129.00"
24-MAY-2022,C&FS (P),Aspire Lifeskills Ltd,TRADE SUPPLIER,5323-External SEN Providers Independent Sch,"28,333.34"
06-MAY-2022,Adults & Communities (P),ASSISTED LIVING CARE GROUP LTD&&SUPL6184,SUPPORTED LIVING,5506-Supported Living,"5,040.00"
06-MAY-2022,Adults & Communities (P),ASSISTED LIVING CARE GROUP LTD&&SUPL6184,SUPPORTED LIVING,5506-Supported Living,"5,544.00"
06-MAY-2022,Adults & Communities (P),ASSISTED LIVING CARE GROUP LTD&&SUPL6184,SUPPORTED LIVING,5506-Supported Living,"3,754.80"
30-MAY-2022,C&FS (P),Association of Directors of Childrens Services,NON TRADE,4909-Subscriptions,"3,653.00"
06-MAY-2022,Adults & Communities (P),ATHENA CARE LTD&&ISHCHC673,HOME CARE,5505-Homecare,"1,118.88"
13-MAY-2022,Adults & Communities (P),ATHENA CARE LTD&&ISHCHC673,HOME CARE,5505-Homecare,"1,118.88"
20-MAY-2022,Adults & Communities (P),ATHENA CARE LTD&&ISHCHC673,HOME CARE,5505-Homecare,"1,118.88"
27-MAY-2022,Adults & Communities (P),ATHENA CARE LTD&&ISHCHC673,HOME CARE,5505-Homecare,"1,118.88"
27-MAY-2022,Environment & Transport (P),Ausden Clark Ltd,TRADE SUPPLIER,3113-Home to Sch Trans Contract Buses Sec,"2,200.00"
27-MAY-2022,Environment & Transport (P),Ausden Clark Ltd,TRADE SUPPLIER,3113-Home to Sch Trans Contract Buses Sec,"2,200.00"
27-MAY-2022,Environment & Transport (P),Ausden Clark Ltd,TRADE SUPPLIER,3113-Home to Sch Trans Contract Buses Sec,"2,400.00"
27-MAY-2022,Environment & Transport (P),Ausden Clark Ltd,TRADE SUPPLIER,3113-Home to Sch Trans Contract Buses Sec,"2,200.00"
27-MAY-2022,Environment & Transport (P),Ausden Clark Ltd,TRADE SUPPLIER,3113-Home to Sch Trans Contract Buses Sec,"2,200.00"
27-MAY-2022,Environment & Transport (P),Ausden Clark Ltd,TRADE SUPPLIER,3113-Home to Sch Trans Contract Buses Sec,"2,200.00"
30-MAY-2022,Adults & Communities (P),AUTISM CARE (UK) LTD&&SSAROE1335,S/S HOMES,5502-Residential,"9,392.00"
30-MAY-2022,Adults & Communities (P),AUTISM EAST MIDLANDS&&SARO6582,S/S HOMES,5502-Residential,"4,744.36"
17-MAY-2022,Balance Sheet Cost Centres (P),AVERY HOMES HINCKLEY LTD&&SSARO2898,GENERAL,9642-Reserved Debtors - Non Public Sector,"30,000.00"
30-MAY-2022,Adults & Communities (P),AVERY HOMES HINCKLEY LTD&&SSARO2898,S/S HOMES,5502-Residential,"55,188.00"
30-MAY-2022,Adults & Communities (P),AVERY HOMES HINCKLEY LTD&&SSARO2898,S/S HOMES,5502-Residential,"1,990.00"
27-MAY-2022,Balance Sheet Cost Centres (P),AVERY HOMES HINCKLEY LTD&&SSARO2898,GENERAL,9642-Reserved Debtors - Non Public Sector,"4,870.00"
30-MAY-2022,Adults & Communities (P),AVERY HOMES NELSON LTD T/A GLENMOOR HOUSE CARE HOME&&SSARO3190,S/S HOMES,5502-Residential,"3,400.00"
30-MAY-2022,Adults & Communities (P),AVVISIM CARE LTD T/A FERNLEIGH CARE HOME&&SSAROE40336,S/S HOMES,5502-Residential,"1,613.80"
30-MAY-2022,Adults & Communities (P),AVVISIM CARE LTD T/A FERNLEIGH CARE HOME&&SSAROE40336,S/S HOMES,5502-Residential,"3,839.20"
30-MAY-2022,Adults & Communities (P),AVVISIM CARE LTD T/A FERNLEIGH CARE HOME&&SSAROE40336,S/S HOMES,5502-Residential,756.14
30-MAY-2022,Adults & Communities (P),AVVISIM CARE LTD T/A FERNLEIGH CARE HOME&&SSAROE40336,S/S HOMES,5502-Residential,"39,335.20"
30-MAY-2022,Adults & Communities (P),AVVISIM CARE LTD T/A FERNLEIGH CARE HOME&&SSAROE40336,S/S HOMES,5502-Residential,"3,839.20"
30-MAY-2022,Adults & Communities (P),AVVISIM CARE LTD T/A FERNLEIGH CARE HOME&&SSAROE40336,S/S HOMES,5502-Residential,"3,702.08"
30-MAY-2022,Adults & Communities (P),AVVISIM CARE LTD T/A FERNLEIGH CARE HOME&&SSAROE40336,S/S HOMES,5502-Residential,"1,508.26"
30-MAY-2022,Adults & Communities (P),AVVISIM CARE LTD T/A FERNLEIGH CARE HOME&&SSAROE40336,S/S HOMES,5502-Residential,"5,896.34"
30-MAY-2022,Adults & Communities (P),AVVISIM CARE LTD T/A FERNLEIGH CARE HOME&&SSAROE40336,S/S HOMES,5502-Residential,"3,839.20"
06-MAY-2022,Balance Sheet Cost Centres (P),AYLESHAM COURT NURSING HOME&&SSAROE59696,GENERAL,9642-Reserved Debtors - Non Public Sector,"5,216.43"
06-MAY-2022,Balance Sheet Cost Centres (P),AYLESHAM COURT NURSING HOME&&SSAROE59696,GENERAL,9642-Reserved Debtors - Non Public Sector,"46,884.84"
17-MAY-2022,Balance Sheet Cost Centres (P),AYLESHAM COURT NURSING HOME&&SSAROE59696,GENERAL,9642-Reserved Debtors - Non Public Sector,"30,000.00"
30-MAY-2022,Adults & Communities (P),AYLESHAM COURT NURSING HOME&&SSAROE59696,S/S HOMES,5502-Residential,"2,828.57"
30-MAY-2022,Adults & Communities (P),AYLESHAM COURT NURSING HOME&&SSAROE59696,S/S HOMES,5502-Residential,"31,604.00"
27-MAY-2022,Balance Sheet Cost Centres (P),AYLESHAM COURT NURSING HOME&&SSAROE59696,GENERAL,9642-Reserved Debtors - Non Public Sector,"3,104.00"
30-MAY-2022,Adults & Communities (P),AYLESTONE GRANGE LTD&&SSARO3251,S/S HOMES,5502-Residential,"9,064.19"
05-MAY-2022,Environment & Transport (P),REDACTED PERSONAL DATA,NON TRADE,3201-Pooled Transport Recharge Inhouse,803.60
05-MAY-2022,Environment & Transport (P),REDACTED PERSONAL DATA,NON TRADE,3201-Pooled Transport Recharge Inhouse,855.00
06-MAY-2022,Environment & Transport (P),B B Fencing Ltd,TRADE SUPPLIER,4901-Other Expenditure,"5,651.61"
06-MAY-2022,Environment & Transport (P),B B Fencing Ltd,TRADE SUPPLIER,4901-Other Expenditure,"5,443.29"
06-MAY-2022,Environment & Transport (P),B B Fencing Ltd,TRADE SUPPLIER,4901-Other Expenditure,"4,766.00"
06-MAY-2022,Environment & Transport (P),B B Fencing Ltd,TRADE SUPPLIER,4901-Other Expenditure,"8,142.55"
06-MAY-2022,Environment & Transport (P),B B Fencing Ltd,TRADE SUPPLIER,4901-Other Expenditure,"14,643.78"
06-MAY-2022,Environment & Transport (P),B B Fencing Ltd,TRADE SUPPLIER,4901-Other Expenditure,"4,769.51"
30-MAY-2022,Environment & Transport (P),B B Fencing Ltd,TRADE SUPPLIER,5411-Private Contractors - General,"8,297.34"
19-MAY-2022,Public Health (P),REDACTED PERSONAL DATA,TRADE SUPPLIER,5447-General Practioners,"1,800.00"
06-MAY-2022,Environment & Transport (P),B N Gibson Ltd,TRADE SUPPLIER,3303-Taxi Hire,"5,860.63"
06-MAY-2022,Environment & Transport (P),B N Gibson Ltd,TRADE SUPPLIER,3201-Pooled Transport Recharge Inhouse,566.76
30-MAY-2022,Adults & Communities (P),BABA SAWAN LODGE LTD&&SSARO6451,S/S HOMES,5502-Residential,"2,460.00"
20-MAY-2022,C&FS (P),BABBLEBROOKE LTD&&EYRS1772,EARLY YEARS,4908-Grants,"16,448.57"
11-MAY-2022,C&FS (P),Baby T Workshops Ltd,TRADE SUPPLIER,5323-External SEN Providers Independent Sch,"3,120.00"
03-MAY-2022,C&FS (P),Baca Charity,TRADE SUPPLIER,5411-Private Contractors - General,"2,812.14"
03-MAY-2022,C&FS (P),Baca Charity,TRADE SUPPLIER,5411-Private Contractors - General,"2,812.14"
03-MAY-2022,C&FS (P),Baca Charity,TRADE SUPPLIER,5411-Private Contractors - General,"2,812.14"
06-MAY-2022,C&FS (P),Baca Charity,TRADE SUPPLIER,5451-LCT/LAC (Not Fostered),"2,812.14"
06-MAY-2022,C&FS (P),Baca Charity,TRADE SUPPLIER,5411-Private Contractors - General,"2,812.14"
09-MAY-2022,C&FS (P),Baca Charity,TRADE SUPPLIER,5411-Private Contractors - General,"2,812.14"
09-MAY-2022,C&FS (P),Baca Charity,TRADE SUPPLIER,5411-Private Contractors - General,"2,812.14"
09-MAY-2022,C&FS (P),Baca Charity,TRADE SUPPLIER,5411-Private Contractors - General,"2,812.14"
09-MAY-2022,C&FS (P),Baca Charity,TRADE SUPPLIER,5411-Private Contractors - General,"2,812.14"
09-MAY-2022,C&FS (P),Baca Charity,TRADE SUPPLIER,5411-Private Contractors - General,"2,103.57"
09-MAY-2022,C&FS (P),Baca Charity,TRADE SUPPLIER,5411-Private Contractors - General,"2,812.14"
11-MAY-2022,C&FS (P),Baca Charity,TRADE SUPPLIER,5411-Private Contractors - General,"2,812.14"
16-MAY-2022,C&FS (P),Baca Charity,TRADE SUPPLIER,5411-Private Contractors - General,"2,300.00"
16-MAY-2022,C&FS (P),Baca Charity,TRADE SUPPLIER,5411-Private Contractors - General,"1,887.06"
16-MAY-2022,C&FS (P),Baca Charity,TRADE SUPPLIER,5411-Private Contractors - General,"2,721.43"
16-MAY-2022,C&FS (P),Baca Charity,TRADE SUPPLIER,5411-Private Contractors - General,"2,721.43"
16-MAY-2022,C&FS (P),Baca Charity,TRADE SUPPLIER,5411-Private Contractors - General,"2,721.43"
16-MAY-2022,C&FS (P),Baca Charity,TRADE SUPPLIER,5411-Private Contractors - General,"2,124.29"
16-MAY-2022,C&FS (P),Baca Charity,TRADE SUPPLIER,5411-Private Contractors - General,"2,721.43"
16-MAY-2022,C&FS (P),Baca Charity,TRADE SUPPLIER,5411-Private Contractors - General,"2,546.43"
17-MAY-2022,C&FS (P),Baca Charity,TRADE SUPPLIER,5411-Private Contractors - General,"2,721.43"
17-MAY-2022,C&FS (P),Baca Charity,TRADE SUPPLIER,5411-Private Contractors - General,"2,721.43"
17-MAY-2022,C&FS (P),Baca Charity,TRADE SUPPLIER,5411-Private Contractors - General,"2,035.71"
17-MAY-2022,C&FS (P),Baca Charity,TRADE SUPPLIER,5411-Private Contractors - General,"2,721.43"
20-MAY-2022,C&FS (P),Baca Charity,TRADE SUPPLIER,5411-Private Contractors - General,"2,721.43"
20-MAY-2022,C&FS (P),Baca Charity,TRADE SUPPLIER,5622-Transfer Payments Pocket Money,"3,900.00"
20-MAY-2022,C&FS (P),Baca Charity,TRADE SUPPLIER,5411-Private Contractors - General,"2,721.43"
20-MAY-2022,C&FS (P),Baca Charity,TRADE SUPPLIER,5411-Private Contractors - General,"2,721.43"
20-MAY-2022,C&FS (P),Baca Charity,TRADE SUPPLIER,5411-Private Contractors - General,"2,721.43"
20-MAY-2022,C&FS (P),Baca Charity,TRADE SUPPLIER,5411-Private Contractors - General,"1,451.43"
24-MAY-2022,C&FS (P),Baca Charity,TRADE SUPPLIER,5411-Private Contractors - General,"2,721.43"
25-MAY-2022,C&FS (P),Baca Charity,TRADE SUPPLIER,5411-Private Contractors - General,"2,721.43"
25-MAY-2022,C&FS (P),Baca Charity,TRADE SUPPLIER,5411-Private Contractors - General,"2,721.43"
25-MAY-2022,C&FS (P),Baca Charity,TRADE SUPPLIER,5411-Private Contractors - General,"2,721.43"
25-MAY-2022,C&FS (P),Baca Charity,TRADE SUPPLIER,5411-Private Contractors - General,"2,721.43"
25-MAY-2022,C&FS (P),Baca Charity,TRADE SUPPLIER,5411-Private Contractors - General,"2,464.29"
06-MAY-2022,C&FS (P),Back Care Solutions Ltd,TRADE SUPPLIER,4901-Other Expenditure,801.99
30-MAY-2022,Adults & Communities (P),BADBY PARK LTD&&SSARO3105,S/S HOMES,5502-Residential,"5,518.82"
06-MAY-2022,Environment & Transport (P),Bagnalls Coaches,TRADE SUPPLIER,3113-Home to Sch Trans Contract Buses Sec,"8,993.00"
18-MAY-2022,Environment & Transport (P),Bains Travel,TRADE SUPPLIER,3303-Taxi Hire,"1,971.09"
18-MAY-2022,Environment & Transport (P),Bains Travel,TRADE SUPPLIER,3303-Taxi Hire,"1,032.38"
18-MAY-2022,Environment & Transport (P),Bains Travel,TRADE SUPPLIER,3303-Taxi Hire,"1,633.50"
18-MAY-2022,Environment & Transport (P),Bains Travel,TRADE SUPPLIER,3303-Taxi Hire,"1,202.85"
18-MAY-2022,Environment & Transport (P),Bains Travel,TRADE SUPPLIER,3303-Taxi Hire,"1,579.05"
18-MAY-2022,Environment & Transport (P),Bains Travel,TRADE SUPPLIER,3303-Taxi Hire,"1,687.95"
18-MAY-2022,Environment & Transport (P),Bains Travel,TRADE SUPPLIER,3303-Taxi Hire,"2,325.51"
18-MAY-2022,Environment & Transport (P),Bains Travel,TRADE SUPPLIER,3303-Taxi Hire,"1,579.05"
18-MAY-2022,Environment & Transport (P),Bains Travel,TRADE SUPPLIER,3303-Taxi Hire,"1,470.15"
18-MAY-2022,Environment & Transport (P),Bains Travel,TRADE SUPPLIER,3303-Taxi Hire,"1,056.33"
30-MAY-2022,Adults & Communities (P),BARCHESTER HEALTHCARE HOME LTD T/A MARPLE DALE WINDSOR&&SSAROE350,S/S HOMES,5502-Residential,"2,679.72"
30-MAY-2022,Adults & Communities (P),BARCHESTER HEALTHCARE HOMES LTD LANCASTER GRANGE&&SARO3353,S/S HOMES,5502-Residential,"2,700.00"
30-MAY-2022,Adults & Communities (P),BARCHESTER HEALTHCARE HOMES LTD OVERSLADE HOUSE RECEIPTS ACCOUNT&&SSARO3228,S/S HOMES,5501-Nursing,"2,419.20"
30-MAY-2022,Adults & Communities (P),BARCHESTER HEALTHCARE HOMES LTD&&SAROE59408,S/S HOMES,5502-Residential,"3,857.14"
30-MAY-2022,Adults & Communities (P),BARCHESTER HEALTHCARE HOMES LTD&&SSARO6393,S/S HOMES,5502-Residential,"2,390.00"
06-MAY-2022,Environment & Transport (P),Barhale Construction Services Ltd,TRADE SUPPLIER,4901-Other Expenditure,580.00
31-MAY-2022,C&FS (P),Barlestone CE Primary School Academy,GENERAL,5325-External SEN Providers Top Up Fee,"1,863.00"
17-MAY-2022,C&FS (P),BARROW PRE SCHOOL PLAYGROUPSS&&EYRS1565,GENERAL,4908-Grants,503.28
20-MAY-2022,C&FS (P),BARROW PRE SCHOOL PLAYGROUPSS&&EYRS1565,EARLY YEARS,4908-Grants,"6,658.50"
13-MAY-2022,Adults & Communities (P),Barrow Upon Soar Community Association,OTHER LOCAL AUTHORITIES,4101-Furniture,"1,038.00"
05-MAY-2022,Environment & Transport (P),REDACTED PERSONAL DATA,TRADE INDIVIDUAL,3201-Pooled Transport Recharge Inhouse,520.00
05-MAY-2022,Environment & Transport (P),REDACTED PERSONAL DATA,TRADE INDIVIDUAL,3113-Home to Sch Trans Contract Buses Sec,"1,150.00"
05-MAY-2022,Environment & Transport (P),REDACTED PERSONAL DATA,TRADE INDIVIDUAL,3112-Home to Sch Trans Contract Buses Prim,"1,150.00"
30-MAY-2022,Capital - In Year Spend (P),REDACTED PERSONAL DATA,TRADE SUPPLIER,941G-L&B - Design Fees - External,774.00
31-MAY-2022,C&FS (P),Barwell CE Academy,GENERAL,5325-External SEN Providers Top Up Fee,"3,654.00"
16-MAY-2022,Schools Revenue Cost Centres (P),Barwell County Infants School,GENERAL,9667-Cash - School Allowances,"7,119.00"
16-MAY-2022,Schools Revenue Cost Centres (P),Barwell Newlands CP School,GENERAL,9667-Cash - School Allowances,"11,753.00"
20-MAY-2022,C&FS (P),BARWELL VILLAGE HALL PLAYGROUP&&EYRS1694,EARLY YEARS,4908-Grants,551.44
06-MAY-2022,Capital - In Year Spend (P),Bates Office Services Ltd,TRADE SUPPLIER,943C-VPE - Equipment (Furniture/ IT) Exp,"3,960.00"
31-MAY-2022,C&FS (P),Battling Brook Primary School Academy,GENERAL,5325-External SEN Providers Top Up Fee,"9,703.00"
06-MAY-2022,Capital - In Year Spend (P),BDA Surveying Ltd,TRADE SUPPLIER,941D-L&B - Building Costs,700.00
11-MAY-2022,Capital - In Year Spend (P),BDA Surveying Ltd,TRADE SUPPLIER,941D-L&B - Building Costs,"1,000.00"
12-MAY-2022,Capital - In Year Spend (P),BDA Surveying Ltd,TRADE SUPPLIER,941D-L&B - Building Costs,700.00
12-MAY-2022,Capital - In Year Spend (P),BDA Surveying Ltd,TRADE SUPPLIER,941D-L&B - Building Costs,"1,000.00"
12-MAY-2022,Capital - In Year Spend (P),BDA Surveying Ltd,TRADE SUPPLIER,941D-L&B - Building Costs,"1,350.00"
12-MAY-2022,Capital - In Year Spend (P),BDA Surveying Ltd,TRADE SUPPLIER,941D-L&B - Building Costs,700.00
12-MAY-2022,Capital - In Year Spend (P),BDA Surveying Ltd,TRADE SUPPLIER,941D-L&B - Building Costs,700.00
13-MAY-2022,Capital - In Year Spend (P),BDA Surveying Ltd,TRADE SUPPLIER,941D-L&B - Building Costs,700.00
13-MAY-2022,Capital - In Year Spend (P),BDA Surveying Ltd,TRADE SUPPLIER,941D-L&B - Building Costs,500.00
24-MAY-2022,Capital - In Year Spend (P),BDA Surveying Ltd,TRADE SUPPLIER,941D-L&B - Building Costs,500.00
24-MAY-2022,Capital - In Year Spend (P),BDA Surveying Ltd,TRADE SUPPLIER,941D-L&B - Building Costs,700.00
27-MAY-2022,Corporate Resources (CR) (P),BDA Surveying Ltd,TRADE SUPPLIER,2109-Asbestos,725.00
31-MAY-2022,C&FS (P),Beacon Academy,GENERAL,5325-External SEN Providers Top Up Fee,"14,310.00"
31-MAY-2022,C&FS (P),Beacon Academy,GENERAL,5325-External SEN Providers Top Up Fee,"16,398.00"
31-MAY-2022,C&FS (P),Beacon Academy,GENERAL,6109-SEN Maintained Sch Top Up Fee,"3,087.00"
20-MAY-2022,C&FS (P),BEACON ACADEMY NURSERY&&EYRS1751,EARLY YEARS,4908-Grants,"3,038.10"
13-MAY-2022,Adults & Communities (P),Beacon Care & Advice CIC,TRADE SUPPLIER,5411-Private Contractors - General,"6,124.25"
11-MAY-2022,C&FS (P),Beacon Childcare Ltd,TRADE SUPPLIER,5411-Private Contractors - General,"15,000.00"
31-MAY-2022,C&FS (P),Beauchamp Academy,GENERAL,5325-External SEN Providers Top Up Fee,"8,435.10"
31-MAY-2022,C&FS (P),Beauchamp Academy,GENERAL,6101-Support Services,700.00
31-MAY-2022,C&FS (P),Beauchamp Academy,GENERAL,5325-External SEN Providers Top Up Fee,"1,902.00"
06-MAY-2022,Environment & Transport (P),Beaver Bus,TRADE SUPPLIER,3115-Home to Sch Trans Contract Buses FE,"8,480.00"
06-MAY-2022,Environment & Transport (P),Beaver Bus,TRADE SUPPLIER,3113-Home to Sch Trans Contract Buses Sec,"8,480.00"
06-MAY-2022,Environment & Transport (P),Beaver Bus,TRADE SUPPLIER,3113-Home to Sch Trans Contract Buses Sec,"8,480.00"
09-MAY-2022,Environment & Transport (P),Beaver Bus,TRADE SUPPLIER,3112-Home to Sch Trans Contract Buses Prim,"4,370.00"
09-MAY-2022,Environment & Transport (P),Beaver Bus,TRADE SUPPLIER,3112-Home to Sch Trans Contract Buses Prim,"3,910.00"
17-MAY-2022,C&FS (P),BEAVER CHILDCARE LTD T/A CHARNWOOD  PRE SCHOOL & OUT OF SCHOOL CLUB&&EYRS2598042,GENERAL,4908-Grants,838.80
20-MAY-2022,C&FS (P),BEAVER CHILDCARE LTD T/A CHARNWOOD  PRE SCHOOL & OUT OF SCHOOL CLUB&&EYRS2598042,EARLY YEARS,4908-Grants,"7,181.19"
17-MAY-2022,C&FS (P),BEAVER CHILDCARE LTD T/A CHARNWOOD NURSERY  & PRE SCHOOL&&EYRS1519,GENERAL,4908-Grants,629.10
20-MAY-2022,C&FS (P),BEAVER CHILDCARE LTD T/A CHARNWOOD NURSERY  & PRE SCHOOL&&EYRS1519,EARLY YEARS,4908-Grants,"71,125.02"
31-MAY-2022,C&FS (P),BEAVER CHILDCARE LTD T/A CHARNWOOD NURSERY  & PRE SCHOOL&&EYRS1519,GENERAL,4908-Grants,"2,138.94"
17-MAY-2022,C&FS (P),BEAVER CHILDCARE LTD T/A CHARNWOOD PRESCHOOL&&EYRSEY562091,GENERAL,4908-Grants,"1,342.00"
20-MAY-2022,C&FS (P),BEAVER CHILDCARE LTD T/A CHARNWOOD PRESCHOOL&&EYRSEY562091,EARLY YEARS,4908-Grants,"9,414.09"
20-MAY-2022,C&FS (P),BEAVER CHILDCARE T/A CHARNWOOD NURSERY AND PRE SCHOOL (ROTHLEY)&&EYRS2633577,EARLY YEARS,4908-Grants,"30,819.72"
16-MAY-2022,Schools Revenue Cost Centres (P),Belton CP School,GENERAL,9667-Cash - School Allowances,"4,925.00"
17-MAY-2022,C&FS (P),BELTON PLAYGROUP&&EYRS1562,GENERAL,4908-Grants,"1,090.44"
20-MAY-2022,C&FS (P),BELTON PLAYGROUP&&EYRS1562,EARLY YEARS,4908-Grants,"6,378.37"
11-MAY-2022,Public Health (P),REDACTED PERSONAL DATA,TRADE SUPPLIER,4908-Grants,500.00
30-MAY-2022,Adults & Communities (P),BENTLEY HOUSE LTD&&SSAROE140,S/S HOMES,5502-Residential,"3,200.00"
27-MAY-2022,C&FS (P),Berrick Computing Ltd,TRADE SUPPLIER,4603-IT Software Licenses/Subscription,"1,390.00"
17-MAY-2022,Capital - In Year Spend (P),Berrys,TRADE SUPPLIER,941A-L&B - Acquistion Costs,"1,200.00"
17-MAY-2022,Balance Sheet Cost Centres (P),BESTCARE LTD&&SSAROE1281,GENERAL,9642-Reserved Debtors - Non Public Sector,"4,750.00"
30-MAY-2022,Adults & Communities (P),BESTCARE LTD&&SSAROE1281,S/S HOMES,5502-Residential,"1,736.57"
30-MAY-2022,Adults & Communities (P),BESTCARE LTD&&SSAROE1281,S/S HOMES,5502-Residential,"7,556.40"
30-MAY-2022,Adults & Communities (P),BESTCARE LTD&&SSAROE1281,S/S HOMES,5502-Residential,654.00
30-MAY-2022,Adults & Communities (P),BESTCARE LTD&&SSAROE1281,S/S HOMES,5502-Residential,"51,538.70"
20-MAY-2022,C&FS (P),REDACTED PERSONAL DATA,EARLY YEARS,4908-Grants,594.65
17-MAY-2022,Balance Sheet Cost Centres (P),BETHEL RESIDENTIAL HOME&&SSAROE40459,GENERAL,9642-Reserved Debtors - Non Public Sector,"9,114.00"
17-MAY-2022,Balance Sheet Cost Centres (P),BETHEL RESIDENTIAL HOME&&SSAROE40459,GENERAL,9642-Reserved Debtors - Non Public Sector,"1,580.00"
30-MAY-2022,Adults & Communities (P),BETHEL RESIDENTIAL HOME&&SSAROE40459,S/S HOMES,5502-Residential,"50,797.14"
30-MAY-2022,Adults & Communities (P),BETHEL RESIDENTIAL HOME&&SSAROE40459,S/S HOMES,5502-Residential,"1,588.28"
17-MAY-2022,Balance Sheet Cost Centres (P),BETHESDA CAREHOMES LTD TA PINGLENOOK&&SSAROE40346,GENERAL,9642-Reserved Debtors - Non Public Sector,"8,000.00"
30-MAY-2022,Adults & Communities (P),BETHESDA CAREHOMES LTD TA PINGLENOOK&&SSAROE40346,S/S HOMES,5502-Residential,"20,928.00"
13-MAY-2022,Environment & Transport (P),Bevan Brittan,TRADE SUPPLIER,5411-Private Contractors - General,"3,641.50"
27-MAY-2022,Chief Executives (P),Bevan Brittan,TRADE SUPPLIER,4905-Legal Expenses,"14,259.30"
05-MAY-2022,Corporate Resources (CR) (P),BFS Group Ltd T/A Bidfood,TRADE SUPPLIER,4504-Provisions Purchases,517.93
06-MAY-2022,Corporate Resources (CR) (P),BFS Group Ltd T/A Bidfood,TRADE SUPPLIER,4504-Provisions Purchases,561.61
06-MAY-2022,Corporate Resources (CR) (P),BFS Group Ltd T/A Bidfood,TRADE SUPPLIER,4504-Provisions Purchases,576.36
09-MAY-2022,Adults & Communities (P),BFS Group Ltd T/A Bidfood,TRADE SUPPLIER,4109-Materials,626.36
13-MAY-2022,Corporate Resources (CR) (P),BFS Group Ltd T/A Bidfood,TRADE SUPPLIER,4504-Provisions Purchases,"1,079.09"
13-MAY-2022,Corporate Resources (CR) (P),BFS Group Ltd T/A Bidfood,TRADE SUPPLIER,4504-Provisions Purchases,"1,398.76"
13-MAY-2022,Corporate Resources (CR) (P),BFS Group Ltd T/A Bidfood,TRADE SUPPLIER,4504-Provisions Purchases,706.26
20-MAY-2022,Corporate Resources (CR) (P),BFS Group Ltd T/A Bidfood,TRADE SUPPLIER,4504-Provisions Purchases,"1,025.36"
27-MAY-2022,Corporate Resources (CR) (P),BFS Group Ltd T/A Bidfood,TRADE SUPPLIER,4504-Provisions Purchases,799.14
27-MAY-2022,Corporate Resources (CR) (P),BFS Group Ltd T/A Bidfood,TRADE SUPPLIER,4504-Provisions Purchases,667.34
27-MAY-2022,Corporate Resources (CR) (P),BFS Group Ltd T/A Bidfood,TRADE SUPPLIER,4504-Provisions Purchases,905.29
27-MAY-2022,Corporate Resources (CR) (P),BFS Group Ltd T/A Bidfood,TRADE SUPPLIER,4504-Provisions Purchases,"1,584.09"
20-MAY-2022,C&FS (P),BHFS LTD T/A WINDMILL DAY NURSERY&&EYRSEY281008,EARLY YEARS,4908-Grants,"53,331.17"
19-MAY-2022,Balance Sheet Cost Centres (P),Bi Flexi Support Ltd,GENERAL,9642-Reserved Debtors - Non Public Sector,"1,495.00"
06-MAY-2022,Environment & Transport (P),Biffa Waste Services Ltd,TRADE SUPPLIER,5411-Private Contractors - General,"2,415.32"
06-MAY-2022,Environment & Transport (P),Biffa Waste Services Ltd,TRADE SUPPLIER,5411-Private Contractors - General,"8,164.32"
06-MAY-2022,Environment & Transport (P),Biffa Waste Services Ltd,TRADE SUPPLIER,5411-Private Contractors - General,"14,210.57"
06-MAY-2022,Environment & Transport (P),Biffa Waste Services Ltd,TRADE SUPPLIER,5411-Private Contractors - General,"1,364.26"
06-MAY-2022,Environment & Transport (P),Biffa Waste Services Ltd,TRADE SUPPLIER,5411-Private Contractors - General,775.03
13-MAY-2022,Environment & Transport (P),Biffa Waste Services Ltd,TRADE SUPPLIER,5411-Private Contractors - General,"3,582.07"
13-MAY-2022,Environment & Transport (P),Biffa Waste Services Ltd,TRADE SUPPLIER,5411-Private Contractors - General,"3,617.46"
20-MAY-2022,Environment & Transport (P),Biffa Waste Services Ltd,TRADE SUPPLIER,5411-Private Contractors - General,"6,746.97"
20-MAY-2022,Environment & Transport (P),Biffa Waste Services Ltd,TRADE SUPPLIER,5411-Private Contractors - General,"8,596.96"
20-MAY-2022,Environment & Transport (P),Biffa Waste Services Ltd,TRADE SUPPLIER,5411-Private Contractors - General,"3,057.64"
20-MAY-2022,Environment & Transport (P),Biffa Waste Services Ltd,TRADE SUPPLIER,5411-Private Contractors - General,"7,575.09"
20-MAY-2022,Environment & Transport (P),Biffa Waste Services Ltd,TRADE SUPPLIER,5411-Private Contractors - General,"11,750.18"
20-MAY-2022,Environment & Transport (P),Biffa Waste Services Ltd,TRADE SUPPLIER,5411-Private Contractors - General,"11,338.73"
23-MAY-2022,Environment & Transport (P),Biffa Waste Services Ltd,TRADE SUPPLIER,5411-Private Contractors - General,"11,566.15"
25-MAY-2022,Environment & Transport (P),Biffa Waste Services Ltd,TRADE SUPPLIER,5411-Private Contractors - General,"2,200.33"
25-MAY-2022,Environment & Transport (P),Biffa Waste Services Ltd,TRADE SUPPLIER,5411-Private Contractors - General,"13,811.24"
25-MAY-2022,Environment & Transport (P),Biffa Waste Services Ltd,TRADE SUPPLIER,5411-Private Contractors - General,"27,712.50"
27-MAY-2022,Environment & Transport (P),Biffa Waste Services Ltd,TRADE SUPPLIER,5411-Private Contractors - General,"9,045.51"
27-MAY-2022,Environment & Transport (P),Biffa Waste Services Ltd,TRADE SUPPLIER,5411-Private Contractors - General,"21,854.23"
27-MAY-2022,Environment & Transport (P),Biffa Waste Services Ltd,TRADE SUPPLIER,5411-Private Contractors - General,"12,039.45"
27-MAY-2022,Environment & Transport (P),Biffa Waste Services Ltd,TRADE SUPPLIER,5411-Private Contractors - General,"1,417.34"
20-MAY-2022,C&FS (P),BIG ADVENTURES CHILDRENS NURSERY LTD T/A DAISY CHAIN CHILDRENS NURSERY&&EYRS1731,EARLY YEARS,4908-Grants,"12,647.33"
20-MAY-2022,C&FS (P),BIG ADVENTURES CHILDRENS NURSERY T/A DAISY CHAIN&&EYRS1587,EARLY YEARS,4908-Grants,"1,439.27"
20-MAY-2022,Environment & Transport (P),REDACTED PERSONAL DATA,TRADE SUPPLIER,3303-Taxi Hire,"2,645.00"
20-MAY-2022,C&FS (P),BILINGUAL DAY NURSERY ASHBY&&EYRSEY551087,EARLY YEARS,4908-Grants,"27,662.48"
16-MAY-2022,Schools Revenue Cost Centres (P),Billesdon Parochial Primary School,GENERAL,9667-Cash - School Allowances,"4,459.00"
16-MAY-2022,C&FS (P),Birkett House School Academy,GENERAL,5325-External SEN Providers Top Up Fee,"947,269.00"
16-MAY-2022,C&FS (P),Birkett House School Academy,GENERAL,5324-External SEN Providers Place Fee,"29,167.00"
06-MAY-2022,Environment & Transport (P),Birstall Cabs,TRADE SUPPLIER,3113-Home to Sch Trans Contract Buses Sec,743.13
06-MAY-2022,Environment & Transport (P),Birstall Cabs,TRADE SUPPLIER,3201-Pooled Transport Recharge Inhouse,845.00
06-MAY-2022,Environment & Transport (P),Birstall Cabs,TRADE SUPPLIER,3201-Pooled Transport Recharge Inhouse,"2,237.82"
06-MAY-2022,Environment & Transport (P),Birstall Cabs,TRADE SUPPLIER,3303-Taxi Hire,"1,535.56"
06-MAY-2022,Environment & Transport (P),Birstall Cabs,TRADE SUPPLIER,3303-Taxi Hire,"1,673.94"
06-MAY-2022,Environment & Transport (P),Birstall Cabs,TRADE SUPPLIER,3303-Taxi Hire,"2,637.41"
06-MAY-2022,Environment & Transport (P),Birstall Cabs,TRADE SUPPLIER,3303-Taxi Hire,"2,527.24"
06-MAY-2022,Environment & Transport (P),Birstall Cabs,TRADE SUPPLIER,3303-Taxi Hire,"1,719.94"
06-MAY-2022,Environment & Transport (P),Birstall Cabs,TRADE SUPPLIER,3303-Taxi Hire,"2,685.94"
06-MAY-2022,Environment & Transport (P),Birstall Cabs,TRADE SUPPLIER,3303-Taxi Hire,"2,507.00"
06-MAY-2022,Environment & Transport (P),Birstall Cabs,TRADE SUPPLIER,3303-Taxi Hire,"2,061.00"
06-MAY-2022,Environment & Transport (P),Birstall Cabs,TRADE SUPPLIER,3303-Taxi Hire,"1,952.16"
06-MAY-2022,Environment & Transport (P),Birstall Cabs,TRADE SUPPLIER,3303-Taxi Hire,"3,220.00"
06-MAY-2022,Environment & Transport (P),Birstall Cabs,TRADE SUPPLIER,3303-Taxi Hire,"1,860.70"
06-MAY-2022,Environment & Transport (P),Birstall Cabs,TRADE SUPPLIER,3303-Taxi Hire,965.01
06-MAY-2022,Environment & Transport (P),Birstall Cabs,TRADE SUPPLIER,3201-Pooled Transport Recharge Inhouse,"3,520.00"
06-MAY-2022,Environment & Transport (P),Birstall Cabs,TRADE SUPPLIER,3201-Pooled Transport Recharge Inhouse,"1,512.00"
06-MAY-2022,Environment & Transport (P),Birstall Cabs,TRADE SUPPLIER,3201-Pooled Transport Recharge Inhouse,"1,552.50"
06-MAY-2022,Environment & Transport (P),Birstall Cabs,TRADE SUPPLIER,3303-Taxi Hire,"3,054.40"
06-MAY-2022,Environment & Transport (P),Birstall Cabs,TRADE SUPPLIER,3303-Taxi Hire,"2,920.88"
06-MAY-2022,Environment & Transport (P),Birstall Cabs,TRADE SUPPLIER,3303-Taxi Hire,"2,504.47"
06-MAY-2022,Environment & Transport (P),Birstall Cabs,TRADE SUPPLIER,3303-Taxi Hire,"1,061.01"
06-MAY-2022,Environment & Transport (P),Birstall Cabs,TRADE SUPPLIER,3112-Home to Sch Trans Contract Buses Prim,"1,955.00"
27-MAY-2022,Environment & Transport (P),Birstall Cabs,TRADE SUPPLIER,3113-Home to Sch Trans Contract Buses Sec,"1,121.94"
27-MAY-2022,Environment & Transport (P),Birstall Cabs,TRADE SUPPLIER,3303-Taxi Hire,"1,749.00"
11-MAY-2022,Balance Sheet Cost Centres (P),BIRSTALL CARE SERVICES LTD&&SSARO3339,GENERAL,9642-Reserved Debtors - Non Public Sector,"12,045.00"
17-MAY-2022,Balance Sheet Cost Centres (P),BIRSTALL CARE SERVICES LTD&&SSARO3339,GENERAL,9642-Reserved Debtors - Non Public Sector,"27,056.00"
30-MAY-2022,Adults & Communities (P),BIRSTALL CARE SERVICES LTD&&SSARO3339,S/S HOMES,5502-Residential,"75,331.25"
27-MAY-2022,Balance Sheet Cost Centres (P),BIRSTALL CARE SERVICES LTD&&SSARO3339,GENERAL,9642-Reserved Debtors - Non Public Sector,"8,322.00"
06-MAY-2022,Environment & Transport (P),Birstall Cars Ltd,TRADE SUPPLIER,3303-Taxi Hire,810.90
06-MAY-2022,Environment & Transport (P),Birstall Cars Ltd,TRADE SUPPLIER,3303-Taxi Hire,"1,770.04"
06-MAY-2022,Environment & Transport (P),Birstall Cars Ltd,TRADE SUPPLIER,3303-Taxi Hire,"2,005.15"
06-MAY-2022,Environment & Transport (P),Birstall Cars Ltd,TRADE SUPPLIER,3201-Pooled Transport Recharge Inhouse,"2,600.00"
09-MAY-2022,Environment & Transport (P),Birstall Cars Ltd,TRADE SUPPLIER,3303-Taxi Hire,"2,527.76"
09-MAY-2022,Environment & Transport (P),Birstall Cars Ltd,TRADE SUPPLIER,3303-Taxi Hire,"2,548.82"
09-MAY-2022,Environment & Transport (P),Birstall Cars Ltd,TRADE SUPPLIER,3303-Taxi Hire,"1,645.44"
09-MAY-2022,Environment & Transport (P),Birstall Cars Ltd,TRADE SUPPLIER,3112-Home to Sch Trans Contract Buses Prim,"1,361.60"
09-MAY-2022,Environment & Transport (P),Birstall Cars Ltd,TRADE SUPPLIER,3303-Taxi Hire,"2,616.94"
18-MAY-2022,Environment & Transport (P),Birstall Cars Ltd,TRADE SUPPLIER,3303-Taxi Hire,"2,792.20"
20-MAY-2022,C&FS (P),BIRSTALL RAINBOW NURSERY&&EYRS1480,EARLY YEARS,4908-Grants,"29,734.06"
05-MAY-2022,Environment & Transport (P),Bitteswell With Bittesby Parish Council,TRADE SUPPLIER,4901-Other Expenditure,805.27
20-MAY-2022,C&FS (P),BIZZY BEES PRESCHOOL&&EYRSEY558811,EARLY YEARS,4908-Grants,"2,552.49"
04-MAY-2022,Environment & Transport (P),Blaby District Council,OTHER LOCAL AUTHORITIES,5211-Other Local Authorities,"27,442.12"
13-MAY-2022,C&FS (P),Blaby District Council,OTHER LOCAL AUTHORITIES,2403-Refuse Removal & Hygiene Disposal,"1,461.85"
26-MAY-2022,Environment & Transport (P),Blaby District Council,OTHER LOCAL AUTHORITIES,5211-Other Local Authorities,"2,500.00"
27-MAY-2022,Environment & Transport (P),Blaby District Council,OTHER LOCAL AUTHORITIES,5211-Other Local Authorities,"19,861.78"
17-MAY-2022,C&FS (P),BLABY PRE SCHOOL&&EYRS1517,GENERAL,4908-Grants,754.92
20-MAY-2022,C&FS (P),BLABY PRE SCHOOL&&EYRS1517,EARLY YEARS,4908-Grants,"1,234.50"
31-MAY-2022,C&FS (P),Blaby Stokes CE Primary School (Academy),GENERAL,5325-External SEN Providers Top Up Fee,"3,782.00"
16-MAY-2022,Schools Revenue Cost Centres (P),Blaby Thistly Meadow CP School,GENERAL,9667-Cash - School Allowances,"9,378.00"
31-MAY-2022,C&FS (P),Blackfordby St Margarets CE Primary School (Academy),GENERAL,5325-External SEN Providers Top Up Fee,746.00
03-MAY-2022,Corporate Resources (CR) (P),Blue Arrow Ltd,TRADE SUPPLIER,1201-Agency Costs,815.84
12-MAY-2022,Corporate Resources (CR) (P),Blue Arrow Ltd,TRADE SUPPLIER,1201-Agency Costs,615.60
31-MAY-2022,Corporate Resources (CR) (P),Blue Arrow Ltd,TRADE SUPPLIER,1201-Agency Costs,706.96
27-MAY-2022,C&FS (P),Blue Mountain Homes Ltd,TRADE SUPPLIER,5411-Private Contractors - General,"20,922.86"
27-MAY-2022,C&FS (P),Blue Mountain Homes Ltd,TRADE SUPPLIER,5411-Private Contractors - General,"2,357.14"
27-MAY-2022,C&FS (P),Blue Mountain Homes Ltd,TRADE SUPPLIER,5411-Private Contractors - General,"23,280.00"
27-MAY-2022,C&FS (P),Blue Mountain Homes Ltd,TRADE SUPPLIER,5411-Private Contractors - General,"34,808.57"
27-MAY-2022,C&FS (P),Blue Mountain Homes Ltd,TRADE SUPPLIER,5411-Private Contractors - General,"27,637.03"
27-MAY-2022,C&FS (P),Blue Mountain Homes Ltd,TRADE SUPPLIER,5411-Private Contractors - General,"39,780.00"
27-MAY-2022,C&FS (P),Blue Mountain Homes Ltd,TRADE SUPPLIER,5411-Private Contractors - General,"23,280.00"
27-MAY-2022,C&FS (P),Blue Mountain Homes Ltd,TRADE SUPPLIER,5411-Private Contractors - General,"20,922.86"
27-MAY-2022,C&FS (P),Blue Mountain Homes Ltd,TRADE SUPPLIER,5411-Private Contractors - General,665.55
27-MAY-2022,C&FS (P),Blue Mountain Homes Ltd,TRADE SUPPLIER,5411-Private Contractors - General,"31,692.86"
27-MAY-2022,C&FS (P),Blue Mountain Homes Ltd,TRADE SUPPLIER,5411-Private Contractors - General,"34,928.57"
30-MAY-2022,Adults & Communities (P),BLUE OPAL LTD T/A THE MEADOWS&&SSARO5335,S/S HOMES,5502-Residential,"4,838.96"
17-MAY-2022,C&FS (P),BLUEBELL NURSERY SCHOOL&&EYRS1748,GENERAL,4908-Grants,838.80
20-MAY-2022,C&FS (P),BLUEBELL NURSERY SCHOOL&&EYRS1748,EARLY YEARS,4908-Grants,"3,654.14"
17-MAY-2022,C&FS (P),BLUEBELLS OF RATBY LTD&&EYRS2649491,GENERAL,4908-Grants,"1,831.48"
17-MAY-2022,C&FS (P),BLUEBELLS OF RATBY LTD&&EYRS2649491,GENERAL,4908-Grants,629.10
20-MAY-2022,C&FS (P),BLUEBELLS OF RATBY LTD&&EYRS2649491,EARLY YEARS,4908-Grants,"11,491.34"
20-MAY-2022,C&FS (P),BLUEBERRY BUSH T/A BUSH BABIES CHILDRENS NURSERIES LTD&&EYRS1567,EARLY YEARS,4908-Grants,"9,995.77"
06-MAY-2022,Adults & Communities (P),BLUEWOOD RECRUITMENT LTD&&ISHC3933,HOME CARE,5505-Homecare,"2,799.58"
13-MAY-2022,Adults & Communities (P),BLUEWOOD RECRUITMENT LTD&&ISHC3933,HOME CARE,5505-Homecare,"2,799.58"
20-MAY-2022,Adults & Communities (P),BLUEWOOD RECRUITMENT LTD&&ISHC3933,HOME CARE,5505-Homecare,"2,799.58"
27-MAY-2022,Adults & Communities (P),BLUEWOOD RECRUITMENT LTD&&ISHC3933,HOME CARE,5505-Homecare,"2,799.58"
26-MAY-2022,Public Health (P),Boardie Ltd,TRADE SUPPLIER,4507-Consultants & Specialists,"1,035.55"
27-MAY-2022,Adults & Communities (P),Bolinda UK Ltd,TRADE SUPPLIER,4111-Books & Audio Visual,"2,095.86"
30-MAY-2022,Adults & Communities (P),Bolinda UK Ltd,TRADE SUPPLIER,4111-Books & Audio Visual,"1,261.65"
27-MAY-2022,Environment & Transport (P),Book a Cab Ltd,TRADE SUPPLIER,3303-Taxi Hire,"1,034.00"
13-MAY-2022,Adults & Communities (P),Bookseller Media Ltd,TRADE SUPPLIER,4109-Materials,689.60
20-MAY-2022,C&FS (P),BOSWORTH ACADEMY (BA SERVICES)&&EYRS1743,EARLY YEARS,4908-Grants,"2,614.70"
31-MAY-2022,C&FS (P),Bosworth Academy (Life Multi Academy Trust),GENERAL,5325-External SEN Providers Top Up Fee,"10,220.46"
31-MAY-2022,C&FS (P),Bottesford CE Primary School Academy,GENERAL,5325-External SEN Providers Top Up Fee,"3,356.00"
20-MAY-2022,C&FS (P),BOTTESFORD PRE SCHOOL PLAYGROUP&&EYRS1102,EARLY YEARS,4908-Grants,531.41
06-MAY-2022,Environment & Transport (P),Boughton Engineering Ltd,TRADE SUPPLIER,3102-Vehicle & Plant Repairs & Maintenance,745.46
12-MAY-2022,Environment & Transport (P),Boughton Engineering Ltd,TRADE SUPPLIER,3102-Vehicle & Plant Repairs & Maintenance,973.46
26-MAY-2022,Environment & Transport (P),Boughton Engineering Ltd,TRADE SUPPLIER,3102-Vehicle & Plant Repairs & Maintenance,938.61
30-MAY-2022,Adults & Communities (P),BRACKENDALE HOUSE(PRIME LIFE LTD)&&SSARO6642,S/S HOMES,5502-Residential,"2,166.36"
03-MAY-2022,Section 106 Contributions (P),Brackley Property Developments Ltd,TRADE SUPPLIER,9862-LT Revenue Grants RIA,"6,300.00"
20-MAY-2022,C&FS (P),BRADGATE CHILDCARE KARA UNWIN&&EYRS2038,EARLY YEARS,4908-Grants,"1,435.50"
20-MAY-2022,C&FS (P),BRADGATE EDUCATION PARTNERSHIP EASTFIELD PRIMARY SCHOOL TIDDLYWINKS&&EYRS1353,EARLY YEARS,4908-Grants,"2,166.90"
31-MAY-2022,C&FS (P),Bradgate Education Partnership T/A Gaddesby Primary School,GENERAL,5325-External SEN Providers Top Up Fee,"1,156.00"
31-MAY-2022,C&FS (P),Bradgate Education Partnership T/A Great Dalby Primary School,GENERAL,5325-External SEN Providers Top Up Fee,"2,463.00"
31-MAY-2022,C&FS (P),Bradgate Education Partnership T/A Highgate Primary School,GENERAL,5325-External SEN Providers Top Up Fee,"1,504.00"
16-MAY-2022,Schools Revenue Cost Centres (P),Braunstone Ravenhurst CP School,GENERAL,9667-Cash - School Allowances,"17,841.00"
06-MAY-2022,Adults & Communities (P),BREAKING THE CYCLE CONSULTANCY LTD&&CLCD3093-20-6038,SUPPORTED LIVING,5504-Day/CLC Services,"1,140.00"
27-MAY-2022,Adults & Communities (P),BREAKING THE CYCLE CONSULTANCY LTD&&CLCD3093-20-6038,SUPPORTED LIVING,5504-Day/CLC Services,"1,140.00"
27-MAY-2022,Adults & Communities (P),BREAKING THE CYCLE CONSULTANCY LTD&&CLCD3093-20-6038,SUPPORTED LIVING,5504-Day/CLC Services,570.00
25-MAY-2022,Corporate Resources (CR) (P),Breakwell Sumner Partnership Ltd,TRADE SUPPLIER,4507-Consultants & Specialists,675.00
16-MAY-2022,Schools Revenue Cost Centres (P),Breedon on the Hill CP School,GENERAL,9667-Cash - School Allowances,"3,445.00"
30-MAY-2022,Adults & Communities (P),BRIARS & ROSE LODGE&&SSAROE1126,S/S HOMES,5502-Residential,"13,543.16"
30-MAY-2022,Adults & Communities (P),BRIARS&&SSAROE425,S/S HOMES,5502-Residential,"18,261.28"
30-MAY-2022,Adults & Communities (P),BRIDGEFOOT DEVELOPMENTS LTD JASON HYLTON COURT&&SSARO3277,S/S HOMES,5502-Residential,"3,764.29"
06-MAY-2022,Adults & Communities (P),BRIGHT INTERGRATED CARE LTD&&ISHC3324,HOME CARE,5505-Homecare,"4,789.05"
13-MAY-2022,Adults & Communities (P),BRIGHT INTERGRATED CARE LTD&&ISHC3324,HOME CARE,5505-Homecare,"5,223.52"
20-MAY-2022,Adults & Communities (P),BRIGHT INTERGRATED CARE LTD&&ISHC3324,HOME CARE,5505-Homecare,"5,762.85"
20-MAY-2022,C&FS (P),BRIGHT SPARKS DAY NURSERY&&EYRS1385,EARLY YEARS,4908-Grants,"1,391.05"
30-MAY-2022,Environment & Transport (P),Brindley Lift Truck Services Ltd,TRADE SUPPLIER,3301-Vehicle & Plant Hire,609.00
17-MAY-2022,C&FS (P),BRITANNIA FIELDS PLAYGROUP&&EYRS1387,GENERAL,4908-Grants,"1,509.84"
20-MAY-2022,C&FS (P),BRITANNIA FIELDS PLAYGROUP&&EYRS1387,EARLY YEARS,4908-Grants,"1,757.35"
03-MAY-2022,Environment & Transport (P),Britcab Ltd,TRADE SUPPLIER,2321-Rent & Room Hire,"10,225.00"
09-MAY-2022,Corporate Resources (CR) (P),British Telecommunications Plc,TRADE SUPPLIER,4606-IT Telecommunications Line Rental,581.15
26-MAY-2022,Corporate Resources (CR) (P),British Telecommunications Plc,TRADE SUPPLIER,4606-IT Telecommunications Line Rental,"26,003.33"
27-MAY-2022,Corporate Resources (CR) (P),British Telecommunications Plc,TRADE SUPPLIER,4606-IT Telecommunications Line Rental,"6,278.13"
30-MAY-2022,Adults & Communities (P),BROADLANDS RESIDENTIAL CARE HOME&&SARO8403,S/S HOMES,5502-Residential,"2,328.00"
17-MAY-2022,Balance Sheet Cost Centres (P),BROADOAK GRANGE RESIDENTIAL HOME&&SSAROE40338,GENERAL,9642-Reserved Debtors - Non Public Sector,"11,005.00"
26-MAY-2022,Balance Sheet Cost Centres (P),BROADOAK GRANGE RESIDENTIAL HOME&&SSAROE40338,GENERAL,9642-Reserved Debtors - Non Public Sector,"26,073.00"
30-MAY-2022,Adults & Communities (P),BROADOAK GRANGE RESIDENTIAL HOME&&SSAROE40338,S/S HOMES,5502-Residential,"1,971.43"
30-MAY-2022,Adults & Communities (P),BROADOAK GRANGE RESIDENTIAL HOME&&SSAROE40338,S/S HOMES,5502-Residential,"2,760.00"
30-MAY-2022,Adults & Communities (P),BROADOAK GRANGE RESIDENTIAL HOME&&SSAROE40338,S/S HOMES,5502-Residential,"1,084.29"
30-MAY-2022,Adults & Communities (P),BROADOAK GRANGE RESIDENTIAL HOME&&SSAROE40338,S/S HOMES,5502-Residential,"3,873.29"
30-MAY-2022,Adults & Communities (P),BROADOAK GRANGE RESIDENTIAL HOME&&SSAROE40338,S/S HOMES,5502-Residential,"28,120.00"
30-MAY-2022,Adults & Communities (P),BROADOAK GRANGE RESIDENTIAL HOME&&SSAROE40338,S/S HOMES,5502-Residential,985.71
30-MAY-2022,Adults & Communities (P),BROADOAK GRANGE RESIDENTIAL HOME&&SSAROE40338,S/S HOMES,5502-Residential,"1,978.71"
30-MAY-2022,Adults & Communities (P),BROADOAK GRANGE RESIDENTIAL HOME&&SSAROE40338,S/S HOMES,5502-Residential,734.00
17-MAY-2022,Balance Sheet Cost Centres (P),BROADOAK LODGE&&SSAROE66479,GENERAL,9642-Reserved Debtors - Non Public Sector,"9,474.00"
26-MAY-2022,Balance Sheet Cost Centres (P),BROADOAK LODGE&&SSAROE66479,GENERAL,9642-Reserved Debtors - Non Public Sector,"24,498.00"
30-MAY-2022,Adults & Communities (P),BROADOAK LODGE&&SSAROE66479,S/S HOMES,5502-Residential,"35,864.00"
31-MAY-2022,C&FS (P),Brocks Hill Primary School Academy,GENERAL,5325-External SEN Providers Top Up Fee,"3,283.00"
17-MAY-2022,Balance Sheet Cost Centres (P),BROOK HOUSE&&SSAROE40313,GENERAL,9642-Reserved Debtors - Non Public Sector,"14,114.39"
17-MAY-2022,Balance Sheet Cost Centres (P),BROOK HOUSE&&SSAROE40313,GENERAL,9642-Reserved Debtors - Non Public Sector,"12,162.00"
26-MAY-2022,Balance Sheet Cost Centres (P),BROOK HOUSE&&SSAROE40313,GENERAL,9642-Reserved Debtors - Non Public Sector,"4,481.00"
30-MAY-2022,Adults & Communities (P),BROOK HOUSE&&SSAROE40313,S/S HOMES,5502-Residential,"1,240.00"
30-MAY-2022,Adults & Communities (P),BROOK HOUSE&&SSAROE40313,S/S HOMES,5502-Residential,"4,384.00"
30-MAY-2022,Adults & Communities (P),BROOK HOUSE&&SSAROE40313,S/S HOMES,5502-Residential,"1,240.00"
12-MAY-2022,Corporate Resources (CR) (P),Brookside Construction (Leicester) Ltd,SUBCONTRACTOR,2101-R&M Buildings,780.00
13-MAY-2022,Corporate Resources (CR) (P),Brookside Construction (Leicester) Ltd,SUBCONTRACTOR,2101-R&M Buildings,"14,109.00"
20-MAY-2022,Corporate Resources (CR) (P),Brookside Construction (Leicester) Ltd,SUBCONTRACTOR,2101-R&M Buildings,"9,612.00"
20-MAY-2022,Corporate Resources (CR) (P),Brookside Construction (Leicester) Ltd,SUBCONTRACTOR,2101-R&M Buildings,"1,673.00"
27-MAY-2022,Corporate Resources (CR) (P),Brookside Construction (Leicester) Ltd,SUBCONTRACTOR,2101-R&M Buildings,"1,000.00"
30-MAY-2022,Adults & Communities (P),BROOKSIDE RESIDENTIAL CAR HOME (BRAYBROOKE) LTD&&SSARO6026,S/S HOMES,5502-Residential,"3,540.00"
03-MAY-2022,Environment & Transport (P),Brookvale Groby Learning Trust (Groby Community College),TRADE SUPPLIER,3113-Home to Sch Trans Contract Buses Sec,"4,706.00"
13-MAY-2022,Adults & Communities (P),Brookvale Groby Learning Trust (Groby Community College),TRADE SUPPLIER,2321-Rent & Room Hire,500.00
31-MAY-2022,C&FS (P),Brookvale Groby Learning Trust (Groby Community College),GENERAL,5325-External SEN Providers Top Up Fee,"17,638.99"
30-MAY-2022,Adults & Communities (P),BROOKVALE&&SSAROE56,S/S HOMES,5502-Residential,"2,533.84"
31-MAY-2022,C&FS (P),Broom Leys Academy,GENERAL,5325-External SEN Providers Top Up Fee,"7,678.00"
19-MAY-2022,Public Health (P),Broom Leys Surgery,NON TRADE,5447-General Practioners,"9,991.00"
16-MAY-2022,Schools Revenue Cost Centres (P),Broughton Astley CE Primary School,GENERAL,9667-Cash - School Allowances,"7,489.00"
11-MAY-2022,Chief Executives (P),Browne Jacobson Llp,TRADE SUPPLIER,4507-Consultants & Specialists,"3,000.00"
31-MAY-2022,Chief Executives (P),Browne Jacobson Llp,TRADE SUPPLIER,4905-Legal Expenses,999.50
20-MAY-2022,C&FS (P),BUBBLES ACTIVE PLAY AND BLUE BUBBLES PRE-SCHOOL LTD&&EYRS497949,EARLY YEARS,4908-Grants,"5,494.99"
16-MAY-2022,Schools Revenue Cost Centres (P),Buckminster CP School,GENERAL,9667-Cash - School Allowances,"4,295.00"
20-MAY-2022,C&FS (P),BUCKMINSTER PRE SCHOOL&&EYRSEXMT0076,EARLY YEARS,4908-Grants,"3,755.97"
27-MAY-2022,Environment & Transport (P),Building Software Ltd,TRADE SUPPLIER,4909-Subscriptions,"21,679.40"
30-MAY-2022,Adults & Communities (P),BUPA CARE HOMES T/A THE SPRNGS CARE HOME&&SARO3407,S/S HOMES,5502-Residential,"2,216.00"
16-MAY-2022,Schools Revenue Cost Centres (P),Burbage CE Infants School,GENERAL,9667-Cash - School Allowances,"10,134.00"
06-MAY-2022,Adults & Communities (P),BURBAGE HOMECARE LTD&&ISHCHC455,HOME CARE,5505-Homecare,"5,185.30"
06-MAY-2022,Balance Sheet Cost Centres (P),BURBAGE HOMECARE LTD&&ISHCHC455,GENERAL,9642-Reserved Debtors - Non Public Sector,"14,167.65"
13-MAY-2022,Adults & Communities (P),BURBAGE HOMECARE LTD&&ISHCHC455,HOME CARE,5505-Homecare,"4,958.05"
20-MAY-2022,Adults & Communities (P),BURBAGE HOMECARE LTD&&ISHCHC455,HOME CARE,5505-Homecare,"4,914.21"
27-MAY-2022,Adults & Communities (P),BURBAGE HOMECARE LTD&&ISHCHC455,HOME CARE,5505-Homecare,"4,754.24"
16-MAY-2022,Schools Revenue Cost Centres (P),Burbage Junior School,GENERAL,9667-Cash - School Allowances,"14,289.00"
17-MAY-2022,C&FS (P),BURBAGE PRESCHOOL&&EYRS2529002,GENERAL,4908-Grants,503.28
20-MAY-2022,C&FS (P),BURBAGE PRESCHOOL&&EYRS2529002,EARLY YEARS,4908-Grants,556.10
20-MAY-2022,C&FS (P),BURBAGE PRESCHOOL&&EYRS2529002,EARLY YEARS,4908-Grants,"5,626.77"
16-MAY-2022,Schools Revenue Cost Centres (P),Burbage Sketchley Hill CP School,GENERAL,9667-Cash - School Allowances,"21,014.00"
16-MAY-2022,Schools Revenue Cost Centres (P),Burton On The Wolds CP School,GENERAL,9667-Cash - School Allowances,"7,515.00"
17-MAY-2022,C&FS (P),BURTON ON THE WOLDS PRE SCHOOL&&EYRS1640,GENERAL,4908-Grants,838.80
20-MAY-2022,C&FS (P),BURTON ON THE WOLDS PRE SCHOOL&&EYRS1640,EARLY YEARS,4908-Grants,766.48
20-MAY-2022,C&FS (P),BUSH BABIES CHILDRENS NURSERIES LTD T/A LILAC BUSH NURSERY&&EYRS1739,EARLY YEARS,4908-Grants,"6,954.50"
17-MAY-2022,C&FS (P),BUSY BEES AT MARKET HARBOROUGH&&EYRS1656,GENERAL,4908-Grants,"1,006.56"
20-MAY-2022,C&FS (P),BUSY BEES AT MARKET HARBOROUGH&&EYRS1656,EARLY YEARS,4908-Grants,"21,812.76"
17-MAY-2022,C&FS (P),BUSY BEES DAY NURSERY AT LOUGHBOROUGH&&EYRS1334,GENERAL,4908-Grants,587.16
20-MAY-2022,C&FS (P),BUSY BEES DAY NURSERY AT LOUGHBOROUGH&&EYRS1334,EARLY YEARS,4908-Grants,"9,332.48"
17-MAY-2022,C&FS (P),BUSY BEES DAY NURSERY&&EYRS1599,GENERAL,4908-Grants,"1,258.20"
20-MAY-2022,C&FS (P),BUSY BEES DAY NURSERY&&EYRS1599,EARLY YEARS,4908-Grants,"40,918.47"
20-MAY-2022,C&FS (P),BUSY BEES DAY NURSERY&&EYRS1617,EARLY YEARS,4908-Grants,"2,028.64"
20-MAY-2022,C&FS (P),BUSY BEES DAY NURSERY&&EYRS1617,EARLY YEARS,4908-Grants,"29,163.10"
31-MAY-2022,C&FS (P),BUSY BEES DAY NURSERY&&EYRS1617,GENERAL,4908-Grants,"4,036.62"
20-MAY-2022,C&FS (P),BUSY BEES NURSERIES LTD T/A BLACKBERRY BUSH DAY NURSERY&&EYRS223194,EARLY YEARS,4908-Grants,"9,043.28"
20-MAY-2022,C&FS (P),BUSY BEES NURSERIES LTD T/A BUSY BEES DAY NURSERY AT BITTESWELL&&EYRSEY482339,EARLY YEARS,4908-Grants,"32,072.75"
20-MAY-2022,C&FS (P),BUSY BUGS&&EYRS1661,EARLY YEARS,4908-Grants,"5,429.82"
31-MAY-2022,C&FS (P),By The Bridge Ltd,TRADE SUPPLIER,5446-Independent Fostering Agencies,"4,309.00"
31-MAY-2022,C&FS (P),By The Bridge Ltd,TRADE SUPPLIER,5446-Independent Fostering Agencies,"3,568.10"
31-MAY-2022,C&FS (P),By The Bridge Ltd,TRADE SUPPLIER,5446-Independent Fostering Agencies,"3,397.60"
31-MAY-2022,C&FS (P),By The Bridge Ltd,TRADE SUPPLIER,5446-Independent Fostering Agencies,"7,001.57"
31-MAY-2022,C&FS (P),By The Bridge Ltd,TRADE SUPPLIER,5446-Independent Fostering Agencies,"6,672.00"
31-MAY-2022,C&FS (P),By The Bridge Ltd,TRADE SUPPLIER,5446-Independent Fostering Agencies,"6,864.00"
31-MAY-2022,C&FS (P),By The Bridge Ltd,TRADE SUPPLIER,5411-Private Contractors - General,"3,156.91"
31-MAY-2022,C&FS (P),By The Bridge Ltd,TRADE SUPPLIER,5446-Independent Fostering Agencies,"4,291.87"
31-MAY-2022,C&FS (P),By The Bridge Ltd,TRADE SUPPLIER,5446-Independent Fostering Agencies,"4,667.71"
31-MAY-2022,C&FS (P),By The Bridge Ltd,TRADE SUPPLIER,5446-Independent Fostering Agencies,"4,309.00"
31-MAY-2022,C&FS (P),By The Bridge Ltd,TRADE SUPPLIER,5446-Independent Fostering Agencies,"4,667.71"
31-MAY-2022,C&FS (P),By The Bridge Ltd,TRADE SUPPLIER,5446-Independent Fostering Agencies,"4,667.71"
31-MAY-2022,C&FS (P),By The Bridge Ltd,TRADE SUPPLIER,5446-Independent Fostering Agencies,"4,135.62"
31-MAY-2022,C&FS (P),By The Bridge Ltd,TRADE SUPPLIER,5446-Independent Fostering Agencies,"3,397.60"
20-MAY-2022,C&FS (P),REDACTED PERSONAL DATA,GENERAL,5621-Transfer Payments,"2,279.07"
16-MAY-2022,C&FS (P),CADEBY LANE STEPPING STONES&&EYRS1609,GENERAL,4908-Grants,"1,579.84"
20-MAY-2022,C&FS (P),CADEBY LANE STEPPING STONES&&EYRS1609,EARLY YEARS,4908-Grants,942.70
11-MAY-2022,Corporate Resources (CR) (P),Calor Gas Ltd,TRADE SUPPLIER,2204-Energy Gas,638.72
09-MAY-2022,C&FS (P),Cambian Childcare Ltd,TRADE SUPPLIER,5411-Private Contractors - General,"22,500.00"
09-MAY-2022,C&FS (P),Cambian Childcare Ltd,TRADE SUPPLIER,5411-Private Contractors - General,"34,020.00"
09-MAY-2022,C&FS (P),Cambian Childcare Ltd,TRADE SUPPLIER,5411-Private Contractors - General,"23,357.10"
09-MAY-2022,C&FS (P),Cambian Childcare Ltd,TRADE SUPPLIER,5411-Private Contractors - General,"32,400.00"
09-MAY-2022,C&FS (P),Cambian Childcare Ltd,TRADE SUPPLIER,5411-Private Contractors - General,"20,477.10"
09-MAY-2022,C&FS (P),Cambian Childcare Ltd,TRADE SUPPLIER,5411-Private Contractors - General,"19,928.70"
09-MAY-2022,C&FS (P),Cambian Childcare Ltd,TRADE SUPPLIER,5411-Private Contractors - General,"19,285.80"
24-MAY-2022,C&FS (P),Cambian Childcare Ltd,TRADE SUPPLIER,5323-External SEN Providers Independent Sch,"6,633.33"
24-MAY-2022,C&FS (P),Cambian Childcare Ltd,TRADE SUPPLIER,5323-External SEN Providers Independent Sch,"14,675.66"
30-MAY-2022,C&FS (P),Cambian Childcare Ltd,TRADE SUPPLIER,5411-Private Contractors - General,542.84
06-MAY-2022,Adults & Communities (P),CAMDEN SOCIETY&&CLCD3181173310,SUPPORTED LIVING,5504-Day/CLC Services,601.11
06-MAY-2022,Adults & Communities (P),CAMDEN SOCIETY&&CLCD3181173310,SUPPORTED LIVING,5504-Day/CLC Services,925.70
06-MAY-2022,Adults & Communities (P),CAMDEN SOCIETY&&CLCD3181173310,SUPPORTED LIVING,5504-Day/CLC Services,643.52
19-MAY-2022,Balance Sheet Cost Centres (P),CAMDEN SOCIETY&&CLCD3181173310,GENERAL,9642-Reserved Debtors - Non Public Sector,"6,750.00"
26-MAY-2022,Balance Sheet Cost Centres (P),CAMDEN SOCIETY&&CLCD3181173310,GENERAL,9642-Reserved Debtors - Non Public Sector,"4,704.00"
27-MAY-2022,Adults & Communities (P),CAMDEN SOCIETY&&CLCD3181173310,SUPPORTED LIVING,5504-Day/CLC Services,591.89
27-MAY-2022,Adults & Communities (P),CAMDEN SOCIETY&&CLCD3181173310,SUPPORTED LIVING,5504-Day/CLC Services,"1,385.69"
27-MAY-2022,Adults & Communities (P),CAMDEN SOCIETY&&CLCD3181173310,SUPPORTED LIVING,5504-Day/CLC Services,680.64
20-MAY-2022,C&FS (P),REDACTED PERSONAL DATA,GENERAL,5621-Transfer Payments,"1,842.99"
09-MAY-2022,Corporate Resources (CR) (P),Capital Compactors Ltd,TRADE SUPPLIER,2102-R&M Buildings Service Contracts,524.00
31-MAY-2022,C&FS (P),Capstone Foster Care (Midlands) Ltd,TRADE SUPPLIER,5446-Independent Fostering Agencies,"3,848.43"
31-MAY-2022,C&FS (P),Capstone Foster Care (Midlands) Ltd,TRADE SUPPLIER,5446-Independent Fostering Agencies,"3,715.57"
31-MAY-2022,C&FS (P),Capstone Foster Care (Midlands) Ltd,TRADE SUPPLIER,5446-Independent Fostering Agencies,"3,715.57"
31-MAY-2022,C&FS (P),Capstone Foster Care (Midlands) Ltd,TRADE SUPPLIER,5446-Independent Fostering Agencies,"3,715.57"
31-MAY-2022,C&FS (P),Capstone Foster Care (Midlands) Ltd,TRADE SUPPLIER,5446-Independent Fostering Agencies,"3,405.57"
31-MAY-2022,C&FS (P),Capstone Foster Care (Midlands) Ltd,TRADE SUPPLIER,5446-Independent Fostering Agencies,"3,405.57"
31-MAY-2022,C&FS (P),Capstone Foster Care (Midlands) Ltd,TRADE SUPPLIER,5446-Independent Fostering Agencies,"3,715.57"
31-MAY-2022,C&FS (P),Capstone Foster Care (Midlands) Ltd,TRADE SUPPLIER,5446-Independent Fostering Agencies,"4,614.00"
31-MAY-2022,C&FS (P),Capstone Foster Care (Midlands) Ltd,TRADE SUPPLIER,5446-Independent Fostering Agencies,"3,396.45"
31-MAY-2022,C&FS (P),Capstone Foster Care (Midlands) Ltd,TRADE SUPPLIER,5446-Independent Fostering Agencies,"3,428.60"
31-MAY-2022,C&FS (P),Capstone Foster Care (Midlands) Ltd,TRADE SUPPLIER,5446-Independent Fostering Agencies,"3,559.73"
20-MAY-2022,C&FS (P),CAPTAINS CABIN PRE-SCHOOL&&EXMT0138,EARLY YEARS,4908-Grants,"1,188.27"
30-MAY-2022,Adults & Communities (P),CARE 24 7 (BODNANT HOUSE)&&SSARO3231,S/S HOMES,5502-Residential,"20,536.00"
06-MAY-2022,Adults & Communities (P),CARE 4 U (LEICESTERSHIRE) LTD&&ISHC2529,HOME CARE,5505-Homecare,"12,823.35"
13-MAY-2022,Adults & Communities (P),CARE 4 U (LEICESTERSHIRE) LTD&&ISHC2529,HOME CARE,5505-Homecare,"12,075.11"
13-MAY-2022,Adults & Communities (P),CARE 4 U (LEICESTERSHIRE) LTD&&ISHC2529,HOME CARE,5505-Homecare,785.82
13-MAY-2022,Adults & Communities (P),CARE 4 U (LEICESTERSHIRE) LTD&&ISHC2529,HOME CARE,5505-Homecare,"1,020.54"
13-MAY-2022,Adults & Communities (P),CARE 4 U (LEICESTERSHIRE) LTD&&ISHC2529,HOME CARE,5505-Homecare,765.40
20-MAY-2022,Adults & Communities (P),CARE 4 U (LEICESTERSHIRE) LTD&&ISHC2529,HOME CARE,5505-Homecare,"12,752.49"
27-MAY-2022,Adults & Communities (P),CARE 4 U (LEICESTERSHIRE) LTD&&ISHC2529,HOME CARE,5505-Homecare,"13,375.19"
06-MAY-2022,Adults & Communities (P),CARE AT HOME (MIDLANDS) LTD&&ISHC2753,HOME CARE,5505-Homecare,"17,311.46"
13-MAY-2022,Adults & Communities (P),CARE AT HOME (MIDLANDS) LTD&&ISHC2753,HOME CARE,5505-Homecare,"17,801.45"
19-MAY-2022,Balance Sheet Cost Centres (P),CARE AT HOME (MIDLANDS) LTD&&ISHC2753,GENERAL,9642-Reserved Debtors - Non Public Sector,"5,272.00"
20-MAY-2022,Adults & Communities (P),CARE AT HOME (MIDLANDS) LTD&&ISHC2753,HOME CARE,5505-Homecare,"18,732.56"
27-MAY-2022,Adults & Communities (P),CARE AT HOME (MIDLANDS) LTD&&ISHC2753,HOME CARE,5505-Homecare,"18,872.56"
27-MAY-2022,Balance Sheet Cost Centres (P),CARE AT HOME (MIDLANDS) LTD&&ISHC2753,GENERAL,9642-Reserved Debtors - Non Public Sector,"2,906.00"
30-MAY-2022,Adults & Communities (P),CARE HOME CONSULTANCY SERVICE LTD T/A RUSHEY MEAD MANOR&&SARO1913,S/S HOMES,5502-Residential,"15,542.00"
06-MAY-2022,Adults & Communities (P),CARE STAFFING LTD&&ISHC6650,HOME CARE,5505-Homecare,"6,395.93"
06-MAY-2022,Adults & Communities (P),CARE STAFFING LTD&&ISHC6650,HOME CARE,5505-Homecare,608.58
13-MAY-2022,Adults & Communities (P),CARE STAFFING LTD&&ISHC6650,HOME CARE,5505-Homecare,"6,395.93"
20-MAY-2022,Adults & Communities (P),CARE STAFFING LTD&&ISHC6650,HOME CARE,5505-Homecare,"6,193.07"
05-MAY-2022,C&FS (P),Care Today Children Services,TRADE SUPPLIER,5411-Private Contractors - General,"22,032.01"
05-MAY-2022,C&FS (P),Care Today Children Services,TRADE SUPPLIER,5411-Private Contractors - General,"12,792.78"
17-MAY-2022,Balance Sheet Cost Centres (P),CARE UK COMMUNITY PARTNERSHIPS LTD&&SSARO6319,GENERAL,9642-Reserved Debtors - Non Public Sector,"32,000.00"
04-MAY-2022,Adults & Communities (P),Care2Assess Ltd,TRADE SUPPLIER,5443-Agency & Contracted Services,"8,640.00"
25-MAY-2022,Adults & Communities (P),Care2Assess Ltd,TRADE SUPPLIER,5443-Agency & Contracted Services,"9,120.00"
06-MAY-2022,Adults & Communities (P),CARELINK HEALTHCARE PROFESSIONALS LTD&&ISHC3871,HOME CARE,5505-Homecare,"13,845.81"
13-MAY-2022,Adults & Communities (P),CARELINK HEALTHCARE PROFESSIONALS LTD&&ISHC3871,HOME CARE,5505-Homecare,889.83
19-MAY-2022,Balance Sheet Cost Centres (P),CARELINK HEALTHCARE PROFESSIONALS LTD&&ISHC3871,GENERAL,9642-Reserved Debtors - Non Public Sector,"24,565.00"
20-MAY-2022,Adults & Communities (P),CARELINK HEALTHCARE PROFESSIONALS LTD&&ISHC3871,HOME CARE,5505-Homecare,"15,786.11"
26-MAY-2022,Balance Sheet Cost Centres (P),CARELINK HEALTHCARE PROFESSIONALS LTD&&ISHC3871,GENERAL,9642-Reserved Debtors - Non Public Sector,"23,735.00"
27-MAY-2022,Adults & Communities (P),CARELINK HEALTHCARE PROFESSIONALS LTD&&ISHC3871,HOME CARE,5505-Homecare,"14,464.39"
27-MAY-2022,Adults & Communities (P),CARELINK HEALTHCARE PROFESSIONALS LTD&&ISHC3871,HOME CARE,5505-Homecare,"15,865.78"
13-MAY-2022,Adults & Communities (P),CAREMARK HINCKLEY BOSWORTH & BLABY&&ISHC3015,HOME CARE,5505-Homecare,"13,226.45"
13-MAY-2022,Adults & Communities (P),CAREMARK HINCKLEY BOSWORTH & BLABY&&ISHC3015,HOME CARE,5505-Homecare,"13,361.45"
20-MAY-2022,Adults & Communities (P),CAREMARK HINCKLEY BOSWORTH & BLABY&&ISHC3015,HOME CARE,5505-Homecare,"11,988.54"
27-MAY-2022,Adults & Communities (P),CAREMARK HINCKLEY BOSWORTH & BLABY&&ISHC3015,HOME CARE,5505-Homecare,"12,273.68"
13-MAY-2022,C&FS (P),Carers Direct Homecare Ltd,TRADE SUPPLIER,5429-Community/Domiciliary,"3,094.40"
05-MAY-2022,Adults & Communities (P),Carers UK,TRADE SUPPLIER,4909-Subscriptions,"5,500.00"
06-MAY-2022,Adults & Communities (P),CARING HANDS DOMICILIARY CARE LTD&&ISHC3229,HOME CARE,5505-Homecare,"18,805.51"
13-MAY-2022,Adults & Communities (P),CARING HANDS DOMICILIARY CARE LTD&&ISHC3229,HOME CARE,5505-Homecare,"18,364.31"
20-MAY-2022,Adults & Communities (P),CARING HANDS DOMICILIARY CARE LTD&&ISHC3229,HOME CARE,5505-Homecare,"17,792.46"
27-MAY-2022,Adults & Communities (P),CARING HANDS DOMICILIARY CARE LTD&&ISHC3229,HOME CARE,5505-Homecare,"17,603.95"
27-MAY-2022,Balance Sheet Cost Centres (P),CARING HANDS DOMICILIARY CARE LTD&&ISHC3229,GENERAL,9642-Reserved Debtors - Non Public Sector,"5,148.00"
06-MAY-2022,Adults & Communities (P),CARING HANDS LEICESTER LTD&&ISHC3209,HOME CARE,5505-Homecare,"23,936.53"
13-MAY-2022,Adults & Communities (P),CARING HANDS LEICESTER LTD&&ISHC3209,HOME CARE,5505-Homecare,755.25
13-MAY-2022,Adults & Communities (P),CARING HANDS LEICESTER LTD&&ISHC3209,HOME CARE,5505-Homecare,"24,191.32"
20-MAY-2022,Adults & Communities (P),CARING HANDS LEICESTER LTD&&ISHC3209,HOME CARE,5505-Homecare,"25,077.11"
27-MAY-2022,Adults & Communities (P),CARING HANDS LEICESTER LTD&&ISHC3209,HOME CARE,5505-Homecare,"24,138.72"
20-MAY-2022,Balance Sheet Cost Centres (P),Carlton Construction Services,SUBCONTRACTOR,9729-Suspense (Current Liability),"8,244.00"
20-MAY-2022,Adults & Communities (P),Carlton Construction Services,SUBCONTRACTOR,5411-Private Contractors - General,"17,148.00"
24-MAY-2022,Chief Executives (P),Carlton Glasgow Partnership,TRADE SUPPLIER,"4503-Advertising, Publicity & Marketing",561.60
20-MAY-2022,C&FS (P),CAROL CARTWRIGHT&&EYRS2018,EARLY YEARS,4908-Grants,869.55
20-MAY-2022,C&FS (P),CAROLINE & CLAIRES PRE SCHOOL&&EYRS1659,EARLY YEARS,4908-Grants,"3,121.36"
03-MAY-2022,C&FS (P),Carter Brown The Expert Service Ltd,TRADE SUPPLIER,4507-Consultants & Specialists,"2,450.00"
03-MAY-2022,C&FS (P),Carter Brown The Expert Service Ltd,TRADE SUPPLIER,4507-Consultants & Specialists,"1,200.00"
03-MAY-2022,C&FS (P),Carter Brown The Expert Service Ltd,TRADE SUPPLIER,4507-Consultants & Specialists,"2,400.00"
03-MAY-2022,C&FS (P),Carter Brown The Expert Service Ltd,TRADE SUPPLIER,4507-Consultants & Specialists,"2,400.00"
03-MAY-2022,C&FS (P),Carter Brown The Expert Service Ltd,TRADE SUPPLIER,4507-Consultants & Specialists,"2,400.00"
16-MAY-2022,Chief Executives (P),Carter Brown The Expert Service Ltd,TRADE SUPPLIER,4905-Legal Expenses,"1,123.20"
16-MAY-2022,Chief Executives (P),Carter Brown The Expert Service Ltd,TRADE SUPPLIER,4905-Legal Expenses,"1,123.20"
20-MAY-2022,Chief Executives (P),Carter Brown The Expert Service Ltd,TRADE SUPPLIER,4905-Legal Expenses,"2,040.60"
25-MAY-2022,Chief Executives (P),Carter Brown The Expert Service Ltd,TRADE SUPPLIER,4905-Legal Expenses,"2,451.50"
27-MAY-2022,C&FS (P),Carter Brown The Expert Service Ltd,TRADE SUPPLIER,4507-Consultants & Specialists,"2,400.00"
04-MAY-2022,C&FS (P),Casaegis Ltd,TRADE INDIVIDUAL,5411-Private Contractors - General,"15,500.00"
04-MAY-2022,C&FS (P),Casaegis Ltd,TRADE INDIVIDUAL,5411-Private Contractors - General,"3,851.50"
04-MAY-2022,C&FS (P),Casaegis Ltd,TRADE INDIVIDUAL,5411-Private Contractors - General,"15,500.00"
23-MAY-2022,Chief Executives (P),Cass Industries Ltd,TRADE SUPPLIER,4507-Consultants & Specialists,544.00
12-MAY-2022,Adults & Communities (P),Cassa Assura Ltd,TRADE SUPPLIER,5411-Private Contractors - General,"14,719.30"
06-MAY-2022,Corporate Resources (CR) (P),Castle Catering Engineers Ltd,TRADE SUPPLIER,4102-General Equipment - Purchase & Repairs,500.05
27-MAY-2022,Corporate Resources (CR) (P),Castle Catering Engineers Ltd,TRADE SUPPLIER,4102-General Equipment - Purchase & Repairs,663.01
27-MAY-2022,Corporate Resources (CR) (P),Castle Catering Engineers Ltd,TRADE SUPPLIER,4102-General Equipment - Purchase & Repairs,500.05
31-MAY-2022,C&FS (P),Castle Donington College Academy,GENERAL,5325-External SEN Providers Top Up Fee,"3,659.50"
12-MAY-2022,Environment & Transport (P),Castle Donington Parish Council,OTHER LOCAL AUTHORITIES,4901-Other Expenditure,"2,166.78"
16-MAY-2022,Schools Revenue Cost Centres (P),Castle Donington St Edwards CE Primary School,GENERAL,9667-Cash - School Allowances,"7,787.00"
23-MAY-2022,Public Health (P),Castle Donington Surgery,TRADE SUPPLIER,5447-General Practioners,"3,875.00"
16-MAY-2022,C&FS (P),CASTLE LANE DAY NURSERY&&EYRS1393,GENERAL,4908-Grants,"1,761.48"
20-MAY-2022,C&FS (P),CASTLE LANE DAY NURSERY&&EYRS1393,EARLY YEARS,4908-Grants,"15,858.01"
23-MAY-2022,Public Health (P),Castle Medical Group,TRADE SUPPLIER,5447-General Practioners,"5,628.00"
20-MAY-2022,C&FS (P),CASTLE PLAYGROUP&&EYRS1394,EARLY YEARS,4908-Grants,"2,971.48"
31-MAY-2022,C&FS (P),Castle Rock High Academy,GENERAL,6101-Support Services,600.00
31-MAY-2022,C&FS (P),Castle Rock High Academy,GENERAL,5325-External SEN Providers Top Up Fee,"14,301.43"
17-MAY-2022,C&FS (P),CASTLE VIEW DAY NURSERY&&EYRS1758,GENERAL,4908-Grants,"1,342.06"
20-MAY-2022,C&FS (P),CASTLE VIEW DAY NURSERY&&EYRS1758,EARLY YEARS,4908-Grants,"13,086.11"
20-MAY-2022,C&FS (P),CATERPILLAR PRE SCHOOL&&EYRS1789,EARLY YEARS,4908-Grants,"1,625.14"
30-MAY-2022,Chief Executives (P),REDACTED PERSONAL DATA,TRADE SUPPLIER,4529-Post Mortem Exams,"1,998.00"
11-MAY-2022,C&FS (P),REDACTED PERSONAL DATA,TRADE INDIVIDUAL,5445-Adoption Support,"1,685.00"
27-MAY-2022,Corporate Resources (CR) (P),CCS Media Ltd,TRADE SUPPLIER,4601-IT Equipment Hardware,"4,135.13"
20-MAY-2022,C&FS (P),REDACTED PERSONAL DATA,EARLY YEARS,4908-Grants,584.76
17-MAY-2022,Balance Sheet Cost Centres (P),CEDAR HOUSE CARE HOME LTD&&SSAROE40413,GENERAL,9642-Reserved Debtors - Non Public Sector,"13,733.00"
30-MAY-2022,Adults & Communities (P),CEDAR HOUSE CARE HOME LTD&&SSAROE40413,S/S HOMES,5502-Residential,"16,228.00"
27-MAY-2022,Balance Sheet Cost Centres (P),CEDAR HOUSE CARE HOME LTD&&SSAROE40413,GENERAL,9642-Reserved Debtors - Non Public Sector,"5,130.00"
31-MAY-2022,C&FS (P),Cedars Academy Lionheart Academies Trust,GENERAL,5325-External SEN Providers Top Up Fee,"3,139.10"
31-MAY-2022,C&FS (P),Cedars Academy Lionheart Academies Trust,GENERAL,5325-External SEN Providers Top Up Fee,"8,873.15"
25-MAY-2022,Public Health (P),CEL Sports Ltd,TRADE SUPPLIER,4908-Grants,700.00
09-MAY-2022,Corporate Resources (CR) (P),Celloglas Ltd,TRADE SUPPLIER,4401-Printing,"2,103.12"
17-MAY-2022,Environment & Transport (P),Central Coaches Ltd,TRADE SUPPLIER,3113-Home to Sch Trans Contract Buses Sec,"13,896.26"
27-MAY-2022,Environment & Transport (P),Central Crane Technicians,TRADE SUPPLIER,3102-Vehicle & Plant Repairs & Maintenance,529.23
27-MAY-2022,Corporate Resources (CR) (P),Central Mailing Services Ltd,TRADE SUPPLIER,4401-Printing,"2,829.27"
06-MAY-2022,Environment & Transport (P),Centrebus Holdings Ltd T/A Hinckley Bus,TRADE SUPPLIER,3124-Other Transport Costs,"1,577.00"
06-MAY-2022,Environment & Transport (P),Centrebus Holdings Ltd T/A Hinckley Bus,TRADE SUPPLIER,3124-Other Transport Costs,"1,576.60"
06-MAY-2022,Environment & Transport (P),Centrebus Holdings Ltd T/A Hinckley Bus,TRADE SUPPLIER,3124-Other Transport Costs,761.60
06-MAY-2022,Environment & Transport (P),Centrebus Holdings Ltd T/A Hinckley Bus,TRADE SUPPLIER,3124-Other Transport Costs,"9,011.52"
06-MAY-2022,Environment & Transport (P),Centrebus Holdings Ltd T/A Hinckley Bus,TRADE SUPPLIER,3124-Other Transport Costs,"1,576.60"
13-MAY-2022,Environment & Transport (P),Centrebus Holdings Ltd T/A Hinckley Bus,TRADE SUPPLIER,3113-Home to Sch Trans Contract Buses Sec,"4,485.00"
20-MAY-2022,Environment & Transport (P),Centrebus Holdings Ltd T/A Hinckley Bus,TRADE SUPPLIER,3124-Other Transport Costs,"9,762.48"
20-MAY-2022,Environment & Transport (P),Centrebus Holdings Ltd T/A Hinckley Bus,TRADE SUPPLIER,3124-Other Transport Costs,"1,734.26"
20-MAY-2022,Environment & Transport (P),Centrebus Holdings Ltd T/A Hinckley Bus,TRADE SUPPLIER,3124-Other Transport Costs,837.76
20-MAY-2022,Environment & Transport (P),Centrebus Holdings Ltd T/A Hinckley Bus,TRADE SUPPLIER,3124-Other Transport Costs,"1,577.00"
20-MAY-2022,Environment & Transport (P),Centrebus Holdings Ltd T/A Hinckley Bus,TRADE SUPPLIER,3124-Other Transport Costs,"1,734.26"
04-MAY-2022,Environment & Transport (P),Centrebus Ltd,TRADE SUPPLIER,3124-Other Transport Costs,"5,527.82"
16-MAY-2022,Environment & Transport (P),Centrebus Ltd,TRADE SUPPLIER,3124-Other Transport Costs,"9,598.85"
16-MAY-2022,Environment & Transport (P),Centrebus Ltd,TRADE SUPPLIER,3124-Other Transport Costs,"6,736.77"
16-MAY-2022,Environment & Transport (P),Centrebus Ltd,TRADE SUPPLIER,3124-Other Transport Costs,993.20
19-MAY-2022,Environment & Transport (P),Centrebus Ltd,TRADE SUPPLIER,3124-Other Transport Costs,"19,210.76"
06-MAY-2022,Environment & Transport (P),Centrewire Ltd,TRADE SUPPLIER,5411-Private Contractors - General,"4,896.00"
03-MAY-2022,Environment & Transport (P),Certas Energy UK Ltd,TRADE SUPPLIER,3104-Petrol / Oil / Types / Spares,"30,489.50"
05-MAY-2022,Environment & Transport (P),Certas Energy UK Ltd,TRADE SUPPLIER,3104-Petrol / Oil / Types / Spares,"13,706.00"
13-MAY-2022,Balance Sheet Cost Centres (P),Certas Energy UK Ltd,TRADE SUPPLIER,"9634-Inventories - LHD Fuel White, Diesel","10,511.20"
13-MAY-2022,Corporate Resources (CR) (P),Certas Energy UK Ltd,TRADE SUPPLIER,2501-Grounds Maintenance,"2,652.00"
13-MAY-2022,Balance Sheet Cost Centres (P),Certas Energy UK Ltd,TRADE SUPPLIER,9635-Inventories - LHD Fuel Adblue,780.00
13-MAY-2022,Corporate Resources (CR) (P),Certas Energy UK Ltd,TRADE SUPPLIER,2501-Grounds Maintenance,"1,158.92"
13-MAY-2022,Corporate Resources (CR) (P),Certas Energy UK Ltd,TRADE SUPPLIER,2501-Grounds Maintenance,"1,053.98"
20-MAY-2022,Balance Sheet Cost Centres (P),Certas Energy UK Ltd,TRADE SUPPLIER,"9634-Inventories - LHD Fuel White, Diesel","6,805.22"
20-MAY-2022,Balance Sheet Cost Centres (P),Certas Energy UK Ltd,TRADE SUPPLIER,9635-Inventories - LHD Fuel Adblue,"1,541.54"
20-MAY-2022,Balance Sheet Cost Centres (P),Certas Energy UK Ltd,TRADE SUPPLIER,"9634-Inventories - LHD Fuel White, Diesel","13,452.00"
20-MAY-2022,Environment & Transport (P),Certas Energy UK Ltd,TRADE SUPPLIER,3104-Petrol / Oil / Types / Spares,"47,080.65"
20-MAY-2022,Corporate Resources (CR) (P),Certas Energy UK Ltd,TRADE SUPPLIER,2501-Grounds Maintenance,"1,345.20"
26-MAY-2022,Environment & Transport (P),Certas Energy UK Ltd,TRADE SUPPLIER,3104-Petrol / Oil / Types / Spares,"13,653.00"
26-MAY-2022,Environment & Transport (P),Certas Energy UK Ltd,TRADE SUPPLIER,3104-Petrol / Oil / Types / Spares,"12,029.00"
27-MAY-2022,Balance Sheet Cost Centres (P),Certas Energy UK Ltd,TRADE SUPPLIER,"9634-Inventories - LHD Fuel White, Diesel","6,237.90"
30-MAY-2022,Balance Sheet Cost Centres (P),Certas Energy UK Ltd,TRADE SUPPLIER,"9634-Inventories - LHD Fuel White, Diesel","3,363.00"
06-MAY-2022,Environment & Transport (P),CF Construction (Collingham) Ltd,TRADE SUPPLIER,4901-Other Expenditure,"48,396.66"
09-MAY-2022,Environment & Transport (P),CF Construction (Collingham) Ltd,TRADE SUPPLIER,5411-Private Contractors - General,"53,360.42"
13-MAY-2022,Environment & Transport (P),CF Construction (Collingham) Ltd,TRADE SUPPLIER,4901-Other Expenditure,"1,374.00"
27-MAY-2022,Environment & Transport (P),CF Construction (Collingham) Ltd,TRADE SUPPLIER,5411-Private Contractors - General,"46,724.88"
19-MAY-2022,Balance Sheet Cost Centres (P),REDACTED PERSONAL DATA,GENERAL,9642-Reserved Debtors - Non Public Sector,500.00
20-MAY-2022,C&FS (P),REDACTED PERSONAL DATA,EARLY YEARS,4908-Grants,"1,923.02"
25-MAY-2022,C&FS (P),REDACTED PERSONAL DATA,TRADE INDIVIDUAL,5445-Adoption Support,"1,320.00"
03-MAY-2022,C&FS (P),Charnwood Arts Therapy Service Ltd,TRADE SUPPLIER,5411-Private Contractors - General,"1,050.00"
12-MAY-2022,Environment & Transport (P),Charnwood Borough Council,TRADE SUPPLIER,5211-Other Local Authorities,"2,153.88"
09-MAY-2022,C&FS (P),CHARNWOOD COLLEGE&&EYRS1392,GENERAL,4908-Grants,655.00
20-MAY-2022,C&FS (P),CHARNWOOD FOREST NURSERY&&EYRSEY496442,EARLY YEARS,4908-Grants,568.37
30-MAY-2022,Adults & Communities (P),CHARNWOOD PARK RESIDENTIAL HOME LTD&&SSARO6712,S/S HOMES,5502-Residential,"12,851.80"
26-MAY-2022,Corporate Resources (CR) (P),Charterhouse Voice & Data Ltd,TRADE SUPPLIER,4603-IT Software Licenses/Subscription,"50,217.00"
26-MAY-2022,Balance Sheet Cost Centres (P),CHARTWELL TRUST CARE PLC&&SSARO2345,GENERAL,9642-Reserved Debtors - Non Public Sector,"3,101.00"
30-MAY-2022,Adults & Communities (P),CHARTWELL TRUST CARE PLC&&SSARO2345,S/S HOMES,5502-Residential,"8,058.20"
30-MAY-2022,Adults & Communities (P),CHARTWELL TRUST CARE PLC&&SSARO2345,S/S HOMES,5502-Residential,"9,539.08"
17-MAY-2022,C&FS (P),CHEEKY MONKEYS PRE SCHOOL&&EYRS1689,GENERAL,4908-Grants,671.04
20-MAY-2022,C&FS (P),CHEEKY MONKEYS PRE SCHOOL&&EYRS1689,EARLY YEARS,4908-Grants,"1,996.06"
20-MAY-2022,C&FS (P),CHEEKY MONKEYS PRE SCHOOL&&EYRS1689,EARLY YEARS,4908-Grants,663.45
17-MAY-2022,Balance Sheet Cost Centres (P),REDACTED PERSONAL DATA,GENERAL,9642-Reserved Debtors - Non Public Sector,"5,027.00"
30-MAY-2022,Adults & Communities (P),REDACTED PERSONAL DATA,S/S HOMES,5502-Residential,636.00
30-MAY-2022,Adults & Communities (P),REDACTED PERSONAL DATA,S/S HOMES,5502-Residential,636.00
30-MAY-2022,Adults & Communities (P),REDACTED PERSONAL DATA,S/S HOMES,5502-Residential,"3,975.00"
30-MAY-2022,Adults & Communities (P),REDACTED PERSONAL DATA,S/S HOMES,5502-Residential,636.00
30-MAY-2022,Adults & Communities (P),REDACTED PERSONAL DATA,S/S HOMES,5502-Residential,636.00
30-MAY-2022,Adults & Communities (P),REDACTED PERSONAL DATA,S/S HOMES,5502-Residential,"1,225.71"
30-MAY-2022,Adults & Communities (P),REDACTED PERSONAL DATA,S/S HOMES,5502-Residential,"7,590.28"
30-MAY-2022,Adults & Communities (P),REDACTED PERSONAL DATA,S/S HOMES,5502-Residential,"7,971.43"
30-MAY-2022,Adults & Communities (P),REDACTED PERSONAL DATA,S/S HOMES,5502-Residential,636.00
30-MAY-2022,Adults & Communities (P),REDACTED PERSONAL DATA,S/S HOMES,5502-Residential,636.00
30-MAY-2022,Adults & Communities (P),REDACTED PERSONAL DATA,S/S HOMES,5502-Residential,"20,847.68"
17-MAY-2022,Balance Sheet Cost Centres (P),CHERRYTREE CARE LTD&&SSAROE40314,GENERAL,9642-Reserved Debtors - Non Public Sector,"1,732.33"
17-MAY-2022,Balance Sheet Cost Centres (P),CHERRYTREE CARE LTD&&SSAROE40314,GENERAL,9642-Reserved Debtors - Non Public Sector,"13,953.00"
17-MAY-2022,Balance Sheet Cost Centres (P),CHERRYTREE CARE LTD&&SSAROE40314,GENERAL,9642-Reserved Debtors - Non Public Sector,"8,600.00"
26-MAY-2022,Balance Sheet Cost Centres (P),CHERRYTREE CARE LTD&&SSAROE40314,GENERAL,9642-Reserved Debtors - Non Public Sector,"12,050.00"
30-MAY-2022,Adults & Communities (P),CHERRYTREE CARE LTD&&SSAROE40314,S/S HOMES,5502-Residential,"45,908.00"
30-MAY-2022,Adults & Communities (P),CHERRYTREE CARE LTD&&SSAROE40314,S/S HOMES,5502-Residential,"1,628.57"
30-MAY-2022,Adults & Communities (P),CHESTNUTS ARNESBY LTD&&SSAROE40279,S/S HOMES,5502-Residential,"58,030.41"
30-MAY-2022,Adults & Communities (P),CHESTNUTS ARNESBY LTD&&SSAROE40279,S/S HOMES,5502-Residential,"2,997.88"
31-MAY-2022,C&FS (P),Child Care Bureau Ltd,TRADE SUPPLIER,5446-Independent Fostering Agencies,"3,387.86"
31-MAY-2022,C&FS (P),Child Care Bureau Ltd,TRADE SUPPLIER,5446-Independent Fostering Agencies,"3,432.14"
04-MAY-2022,C&FS (P),Child Psychology Service,TRADE SUPPLIER,5445-Adoption Support,815.70
26-MAY-2022,C&FS (P),Child Psychology Service,TRADE SUPPLIER,5445-Adoption Support,"2,379.95"
27-MAY-2022,C&FS (P),Child Psychology Service,TRADE SUPPLIER,5445-Adoption Support,"2,444.07"
27-MAY-2022,C&FS (P),Child Psychology Service,TRADE SUPPLIER,5445-Adoption Support,"2,426.50"
27-MAY-2022,C&FS (P),Child Psychology Service,TRADE SUPPLIER,5445-Adoption Support,"2,310.00"
27-MAY-2022,C&FS (P),Child Psychology Service,TRADE SUPPLIER,5445-Adoption Support,"2,442.94"
27-MAY-2022,C&FS (P),Child Psychology Service,TRADE SUPPLIER,5445-Adoption Support,"1,432.62"
27-MAY-2022,C&FS (P),Child Psychology Service,TRADE SUPPLIER,5445-Adoption Support,"2,444.07"
27-MAY-2022,C&FS (P),Child Psychology Service,TRADE SUPPLIER,5445-Adoption Support,"2,455.11"
20-MAY-2022,C&FS (P),CHILDREN 1ST @ BIRSTALL&&EYRSEY561767,EARLY YEARS,4908-Grants,"55,141.01"
09-MAY-2022,C&FS (P),CHILDREN 1ST @ HATHERN &&EYRSEY561772,GENERAL,4908-Grants,632.50
20-MAY-2022,C&FS (P),CHILDREN 1ST @ HATHERN &&EYRSEY561772,EARLY YEARS,4908-Grants,"32,504.55"
20-MAY-2022,C&FS (P),CHILDREN 1ST @ SYSTON&&EYRSEY561773,EARLY YEARS,4908-Grants,"66,093.85"
09-MAY-2022,C&FS (P),CHILDREN 1ST AT SHEPSHED&&EYRS1705,GENERAL,4908-Grants,910.00
20-MAY-2022,C&FS (P),CHILDREN 1ST AT SHEPSHED&&EYRS1705,EARLY YEARS,4908-Grants,"45,144.14"
20-MAY-2022,C&FS (P),CHILDRENS CO (LEICESTER) LTD&&EYRS1601,EARLY YEARS,4908-Grants,"29,613.81"
31-MAY-2022,C&FS (P),Childrens Family Trust Ltd,TRADE SUPPLIER,5446-Independent Fostering Agencies,"3,454.29"
31-MAY-2022,C&FS (P),Childrens Family Trust Ltd,TRADE SUPPLIER,5446-Independent Fostering Agencies,"3,454.29"
04-MAY-2022,C&FS (P),Childrens Therapy Solutions Ltd,TRADE SUPPLIER,5445-Adoption Support,"1,901.00"
04-MAY-2022,C&FS (P),Childrens Therapy Solutions Ltd,TRADE SUPPLIER,5445-Adoption Support,"1,353.75"
06-MAY-2022,C&FS (P),Childrens Therapy Solutions Ltd,TRADE SUPPLIER,5445-Adoption Support,"1,584.01"
17-MAY-2022,C&FS (P),CHILDS TIME LTD T/A HANDKERCHIEF NURSERY&&EYRS1426,GENERAL,4908-Grants,838.80
20-MAY-2022,C&FS (P),CHILDS TIME LTD T/A HANDKERCHIEF NURSERY&&EYRS1426,EARLY YEARS,4908-Grants,"29,806.92"
30-MAY-2022,Environment & Transport (P),Chipside Ltd,TRADE SUPPLIER,4907-Bank Charges,"1,396.46"
04-MAY-2022,C&FS (P),REDACTED PERSONAL DATA,GENERAL,5627-Transfer Payments Education Costs,"1,000.00"
16-MAY-2022,Balance Sheet Cost Centres (P),REDACTED PERSONAL DATA,GENERAL,9642-Reserved Debtors - Non Public Sector,500.00
06-MAY-2022,Adults & Communities (P),CHOICES FOR LIFE (UK)LTD&&CLCD3323,CLC,5504-Day/CLC Services,"14,375.27"
19-MAY-2022,Balance Sheet Cost Centres (P),CHOICES FOR LIFE (UK)LTD&&CLCD3323,GENERAL,9642-Reserved Debtors - Non Public Sector,"14,912.00"
20-MAY-2022,Adults & Communities (P),CHOICES FOR LIFE (UK)LTD&&CLCD3323,CLC,5504-Day/CLC Services,"13,816.67"
20-MAY-2022,Adults & Communities (P),CHOICES FOR LIFE (UK)LTD&&CLCD3323,CLC,5504-Day/CLC Services,"9,417.86"
27-MAY-2022,Adults & Communities (P),CHOICES FOR LIFE (UK)LTD&&CLCD3323,CLC,5504-Day/CLC Services,"15,057.69"
13-MAY-2022,Environment & Transport (P),Chris Johnson Ltd,TRADE SUPPLIER,3301-Vehicle & Plant Hire,"1,640.00"
18-MAY-2022,Environment & Transport (P),Chris Johnson Ltd,TRADE SUPPLIER,5411-Private Contractors - General,"1,360.00"
24-MAY-2022,Environment & Transport (P),Chris Johnson Ltd,TRADE SUPPLIER,5411-Private Contractors - General,"1,380.00"
31-MAY-2022,Environment & Transport (P),Chris Johnson Ltd,TRADE SUPPLIER,5411-Private Contractors - General,"1,680.00"
31-MAY-2022,C&FS (P),Christ Church & St Peters CE Primary School Academy,GENERAL,5325-External SEN Providers Top Up Fee,"5,251.00"
31-MAY-2022,C&FS (P),Christ Church & St Peters CE Primary School Academy,GENERAL,5325-External SEN Providers Top Up Fee,"5,251.00"
31-MAY-2022,C&FS (P),Christ Church & St Peters CE Primary School Academy,GENERAL,5325-External SEN Providers Top Up Fee,"7,127.00"
31-MAY-2022,C&FS (P),Christ Church & St Peters CE Primary School Academy,GENERAL,5325-External SEN Providers Top Up Fee,"9,027.00"
31-MAY-2022,C&FS (P),Christ Church & St Peters CE Primary School Academy,GENERAL,5325-External SEN Providers Top Up Fee,"8,400.00"
31-MAY-2022,C&FS (P),Christ Church & St Peters CE Primary School Academy,GENERAL,5324-External SEN Providers Place Fee,"1,903.00"
31-MAY-2022,C&FS (P),Christ Church & St Peters CE Primary School Academy,GENERAL,5324-External SEN Providers Place Fee,"1,389.00"
17-MAY-2022,C&FS (P),REDACTED PERSONAL DATA,GENERAL,5642-Foster Parents Fostering Allowances,611.14
06-MAY-2022,Corporate Resources (CR) (P),REDACTED PERSONAL DATA,TRADE INDIVIDUAL,4507-Consultants & Specialists,"1,456.00"
27-MAY-2022,Corporate Resources (CR) (P),REDACTED PERSONAL DATA,TRADE INDIVIDUAL,2101-R&M Buildings,"1,000.00"
31-MAY-2022,Corporate Resources (CR) (P),Chubb Fire & Security Ltd,TRADE SUPPLIER,2102-R&M Buildings Service Contracts,655.95
30-MAY-2022,Adults & Communities (P),CHURCH FARM NURSING HOME LTD&&SSAROE61089,S/S HOMES,5502-Residential,"3,200.00"
20-MAY-2022,C&FS (P),CHURCH HALL PLAYGROUP&&EYRS1399,EARLY YEARS,4908-Grants,"1,402.04"
31-MAY-2022,C&FS (P),Church Hill Infant School Academy,GENERAL,5325-External SEN Providers Top Up Fee,"1,566.00"
31-MAY-2022,C&FS (P),Church Langton Primary School (Academy),GENERAL,5325-External SEN Providers Top Up Fee,"2,969.00"
09-MAY-2022,Balance Sheet Cost Centres (P),CID Products LLP,TRADE SUPPLIER,9631-Inventories - General,531.68
04-MAY-2022,Corporate Resources (CR) (P),CIPFA Business Ltd,TRADE SUPPLIER,4507-Consultants & Specialists,"1,075.00"
31-MAY-2022,Corporate Resources (CR) (P),CIPFA Business Ltd,TRADE SUPPLIER,4909-Subscriptions,870.00
04-MAY-2022,Environment & Transport (P),Circle Taxis Ltd,TRADE SUPPLIER,3303-Taxi Hire,"2,394.00"
04-MAY-2022,Environment & Transport (P),Circle Taxis Ltd,TRADE SUPPLIER,3303-Taxi Hire,"2,380.00"
04-MAY-2022,Environment & Transport (P),Circle Taxis Ltd,TRADE SUPPLIER,3303-Taxi Hire,"2,254.00"
04-MAY-2022,Environment & Transport (P),Circle Taxis Ltd,TRADE SUPPLIER,3303-Taxi Hire,"1,748.00"
04-MAY-2022,Environment & Transport (P),Circle Taxis Ltd,TRADE SUPPLIER,3203-Pooled Transport Recharge Contractors,"1,591.00"
04-MAY-2022,Environment & Transport (P),Circle Taxis Ltd,TRADE SUPPLIER,3303-Taxi Hire,"2,070.00"
04-MAY-2022,Environment & Transport (P),Circle Taxis Ltd,TRADE SUPPLIER,3303-Taxi Hire,"1,806.00"
04-MAY-2022,Balance Sheet Cost Centres (P),Circle Taxis Ltd,TRADE SUPPLIER,9722-Reserved Creditors - Non Public Sector,"1,008.00"
04-MAY-2022,Environment & Transport (P),Circle Taxis Ltd,TRADE SUPPLIER,3303-Taxi Hire,"3,910.00"
04-MAY-2022,Environment & Transport (P),Circle Taxis Ltd,TRADE SUPPLIER,3303-Taxi Hire,"1,840.00"
06-MAY-2022,Adults & Communities (P),CITY & COUNTY CARE SERVICES LTD&&ISHCHC486,HOME CARE,5505-Homecare,"1,371.60"
06-MAY-2022,Adults & Communities (P),CITY & COUNTY CARE SERVICES LTD&&ISHCHC486,HOME CARE,5505-Homecare,"7,383.78"
13-MAY-2022,Adults & Communities (P),CITY & COUNTY CARE SERVICES LTD&&ISHCHC486,HOME CARE,5505-Homecare,"7,334.37"
20-MAY-2022,Adults & Communities (P),CITY & COUNTY CARE SERVICES LTD&&ISHCHC486,HOME CARE,5505-Homecare,501.78
20-MAY-2022,Adults & Communities (P),CITY & COUNTY CARE SERVICES LTD&&ISHCHC486,HOME CARE,5505-Homecare,"7,889.89"
27-MAY-2022,Adults & Communities (P),CITY & COUNTY CARE SERVICES LTD&&ISHCHC486,HOME CARE,5505-Homecare,"7,191.11"
10-MAY-2022,Environment & Transport (P),City Access Scaffold Hire,TRADE SUPPLIER,4901-Other Expenditure,648.00
20-MAY-2022,Corporate Resources (CR) (P),Civica UK Ltd,TRADE SUPPLIER,1703-Training Expenses,"1,790.00"
27-MAY-2022,Environment & Transport (P),REDACTED PERSONAL DATA,TRADE INDIVIDUAL,3303-Taxi Hire,667.57
16-MAY-2022,Chief Executives (P),REDACTED PERSONAL DATA,TRADE INDIVIDUAL,4905-Legal Expenses,"1,425.00"
25-MAY-2022,C&FS (P),REDACTED PERSONAL DATA,GENERAL,4908-Grants,566.19
30-MAY-2022,Adults & Communities (P),CLAREGRANGE TRADING LTD ASLOCKTON HALL&&SSAROE47217,S/S HOMES,5502-Residential,"2,584.00"
17-MAY-2022,Balance Sheet Cost Centres (P),CLAREGRANGE TRADING LTD T/A WALTHAM HALL&&SARO5107,GENERAL,9642-Reserved Debtors - Non Public Sector,"13,220.00"
30-MAY-2022,Adults & Communities (P),CLAREGRANGE TRADING LTD T/A WALTHAM HALL&&SARO5107,S/S HOMES,5502-Residential,"2,057.14"
30-MAY-2022,Adults & Communities (P),CLAREGRANGE TRADING LTD T/A WALTHAM HALL&&SARO5107,S/S HOMES,5502-Residential,"62,637.94"
30-MAY-2022,Adults & Communities (P),CLAREGRANGE TRADING LTD T/A WALTHAM HALL&&SARO5107,S/S HOMES,5502-Residential,"3,076.86"
30-MAY-2022,Adults & Communities (P),CLARENDON MEWS CARE LTD&&SSARO3356,S/S HOMES,5502-Residential,628.57
30-MAY-2022,Adults & Communities (P),CLARENDON MEWS CARE LTD&&SSARO3356,S/S HOMES,5502-Residential,971.43
30-MAY-2022,Adults & Communities (P),CLARENDON MEWS CARE LTD&&SSARO3356,S/S HOMES,5502-Residential,"35,994.40"
30-MAY-2022,Adults & Communities (P),CLARENDON MEWS CARE LTD&&SSARO3356,S/S HOMES,5502-Residential,"5,365.42"
16-MAY-2022,C&FS (P),CLARENDON PLAYGROUP&&EYRS1564,GENERAL,4908-Grants,"1,845.36"
17-MAY-2022,C&FS (P),CLARENDON PLAYGROUP&&EYRS1564,GENERAL,4908-Grants,503.28
20-MAY-2022,C&FS (P),CLARENDON PLAYGROUP&&EYRS1564,EARLY YEARS,4908-Grants,"3,352.08"
27-MAY-2022,Environment & Transport (P),Clarity Information Solutions Ltd,TRADE SUPPLIER,4602-IT Services,602.35
27-MAY-2022,Environment & Transport (P),Clarity Information Solutions Ltd,TRADE SUPPLIER,4532-Other Services,"3,353.06"
31-MAY-2022,C&FS (P),Claybrooke Primary School Academy,GENERAL,5325-External SEN Providers Top Up Fee,522.00
10-MAY-2022,Corporate Resources (CR) (P),Clear Communication,TRADE SUPPLIER,4507-Consultants & Specialists,"1,125.00"
30-MAY-2022,Adults & Communities (P),CLEARVISION (GB) T/A CHATAWAY RESIDENTIAL HOME LTD&&SSAROE40294,S/S HOMES,5502-Residential,"18,452.00"
27-MAY-2022,Adults & Communities (P),Click Netherfield Ltd,TRADE SUPPLIER,"4501-Exhibitions, Displays, Events & Performances","3,958.00"
31-MAY-2022,C&FS (P),Clifford House Fostering Ltd,TRADE SUPPLIER,5446-Independent Fostering Agencies,"3,994.57"
27-MAY-2022,Public Health (P),Close Brothers Vehicle Hire Ltd,TRADE SUPPLIER,4901-Other Expenditure,"1,045.48"
24-MAY-2022,C&FS (P),Clovelly House School,TRADE SUPPLIER,5323-External SEN Providers Independent Sch,"2,520.00"
24-MAY-2022,C&FS (P),Clovelly House School,TRADE SUPPLIER,5323-External SEN Providers Independent Sch,"3,126.00"
26-MAY-2022,C&FS (P),Clubszone CZ Ltd,GENERAL,4908-Grants,"4,320.00"
16-MAY-2022,Schools Revenue Cost Centres (P),Coalville All Saints CE Primary School,GENERAL,9667-Cash - School Allowances,"9,603.00"
16-MAY-2022,Schools Revenue Cost Centres (P),Coalville Belvoirdale CP School,GENERAL,9667-Cash - School Allowances,"11,499.00"
04-MAY-2022,Environment & Transport (P),Coalville Cabs Ltd,TRADE SUPPLIER,3303-Taxi Hire,"2,313.80"
04-MAY-2022,Environment & Transport (P),Coalville Cabs Ltd,TRADE SUPPLIER,3303-Taxi Hire,"2,727.80"
04-MAY-2022,Environment & Transport (P),Coalville Cabs Ltd,TRADE SUPPLIER,3303-Taxi Hire,"2,208.00"
04-MAY-2022,Environment & Transport (P),Coalville Cabs Ltd,TRADE SUPPLIER,3303-Taxi Hire,"1,116.00"
04-MAY-2022,Environment & Transport (P),Coalville Cabs Ltd,TRADE SUPPLIER,3113-Home to Sch Trans Contract Buses Sec,"1,255.80"
04-MAY-2022,Environment & Transport (P),Coalville Cabs Ltd,TRADE SUPPLIER,3113-Home to Sch Trans Contract Buses Sec,"1,715.80"
04-MAY-2022,Environment & Transport (P),Coalville Cabs Ltd,TRADE SUPPLIER,3112-Home to Sch Trans Contract Buses Prim,"1,725.00"
04-MAY-2022,Environment & Transport (P),Coalville Cabs Ltd,TRADE SUPPLIER,3112-Home to Sch Trans Contract Buses Prim,"1,950.40"
04-MAY-2022,Environment & Transport (P),Coalville Cabs Ltd,TRADE SUPPLIER,3303-Taxi Hire,"2,016.00"
04-MAY-2022,Environment & Transport (P),Coalville Cabs Ltd,TRADE SUPPLIER,3303-Taxi Hire,"1,711.80"
04-MAY-2022,Environment & Transport (P),Coalville Cabs Ltd,TRADE SUPPLIER,3303-Taxi Hire,"1,991.80"
04-MAY-2022,Environment & Transport (P),Coalville Cabs Ltd,TRADE SUPPLIER,3113-Home to Sch Trans Contract Buses Sec,644.00
04-MAY-2022,Environment & Transport (P),Coalville Cabs Ltd,TRADE SUPPLIER,3303-Taxi Hire,"2,272.40"
04-MAY-2022,Environment & Transport (P),Coalville Cabs Ltd,TRADE SUPPLIER,3303-Taxi Hire,"2,131.20"
04-MAY-2022,Environment & Transport (P),Coalville Cabs Ltd,TRADE SUPPLIER,3303-Taxi Hire,"1,370.80"
04-MAY-2022,Environment & Transport (P),Coalville Cabs Ltd,TRADE SUPPLIER,3303-Taxi Hire,"1,918.00"
04-MAY-2022,Environment & Transport (P),Coalville Cabs Ltd,TRADE SUPPLIER,3303-Taxi Hire,"2,635.80"
04-MAY-2022,Environment & Transport (P),Coalville Cabs Ltd,TRADE SUPPLIER,3303-Taxi Hire,"1,535.80"
04-MAY-2022,Environment & Transport (P),Coalville Cabs Ltd,TRADE SUPPLIER,3303-Taxi Hire,715.00
04-MAY-2022,Environment & Transport (P),Coalville Cabs Ltd,TRADE SUPPLIER,3303-Taxi Hire,"1,786.50"
04-MAY-2022,Environment & Transport (P),Coalville Cabs Ltd,TRADE SUPPLIER,3303-Taxi Hire,"1,715.80"
04-MAY-2022,Environment & Transport (P),Coalville Cabs Ltd,TRADE SUPPLIER,3303-Taxi Hire,"2,029.20"
04-MAY-2022,Environment & Transport (P),Coalville Cabs Ltd,TRADE SUPPLIER,3112-Home to Sch Trans Contract Buses Prim,"1,577.80"
04-MAY-2022,Environment & Transport (P),Coalville Cabs Ltd,TRADE SUPPLIER,3303-Taxi Hire,"2,709.40"
04-MAY-2022,Environment & Transport (P),Coalville Cabs Ltd,TRADE SUPPLIER,3303-Taxi Hire,"1,339.60"
04-MAY-2022,Environment & Transport (P),Coalville Cabs Ltd,TRADE SUPPLIER,3303-Taxi Hire,"2,757.70"
04-MAY-2022,Environment & Transport (P),Coalville Cabs Ltd,TRADE SUPPLIER,3303-Taxi Hire,"1,720.40"
04-MAY-2022,Environment & Transport (P),Coalville Cabs Ltd,TRADE SUPPLIER,3303-Taxi Hire,"2,152.80"
04-MAY-2022,Environment & Transport (P),Coalville Cabs Ltd,TRADE SUPPLIER,3303-Taxi Hire,842.40
04-MAY-2022,Environment & Transport (P),Coalville Cabs Ltd,TRADE SUPPLIER,3303-Taxi Hire,"1,150.00"
04-MAY-2022,Environment & Transport (P),Coalville Cabs Ltd,TRADE SUPPLIER,3303-Taxi Hire,"2,620.80"
04-MAY-2022,Environment & Transport (P),Coalville Cabs Ltd,TRADE SUPPLIER,3303-Taxi Hire,901.60
04-MAY-2022,Environment & Transport (P),Coalville Cabs Ltd,TRADE SUPPLIER,3303-Taxi Hire,"1,998.00"
04-MAY-2022,Environment & Transport (P),Coalville Cabs Ltd,TRADE SUPPLIER,3303-Taxi Hire,"2,428.80"
04-MAY-2022,Environment & Transport (P),Coalville Cabs Ltd,TRADE SUPPLIER,3303-Taxi Hire,"1,472.00"
04-MAY-2022,Environment & Transport (P),Coalville Cabs Ltd,TRADE SUPPLIER,3303-Taxi Hire,"2,015.76"
04-MAY-2022,Environment & Transport (P),Coalville Cabs Ltd,TRADE SUPPLIER,3303-Taxi Hire,"3,137.20"
04-MAY-2022,Environment & Transport (P),Coalville Cabs Ltd,TRADE SUPPLIER,3303-Taxi Hire,"2,458.75"
04-MAY-2022,Environment & Transport (P),Coalville Cabs Ltd,TRADE SUPPLIER,3303-Taxi Hire,"1,953.60"
04-MAY-2022,Environment & Transport (P),Coalville Cabs Ltd,TRADE SUPPLIER,3303-Taxi Hire,"2,295.40"
04-MAY-2022,Environment & Transport (P),Coalville Cabs Ltd,TRADE SUPPLIER,3303-Taxi Hire,"1,826.20"
04-MAY-2022,Environment & Transport (P),Coalville Cabs Ltd,TRADE SUPPLIER,3303-Taxi Hire,"1,680.75"
04-MAY-2022,Environment & Transport (P),Coalville Cabs Ltd,TRADE SUPPLIER,3303-Taxi Hire,651.60
04-MAY-2022,Environment & Transport (P),Coalville Cabs Ltd,TRADE SUPPLIER,3303-Taxi Hire,820.00
04-MAY-2022,Environment & Transport (P),Coalville Cabs Ltd,TRADE SUPPLIER,3303-Taxi Hire,"2,405.80"
04-MAY-2022,Environment & Transport (P),Coalville Cabs Ltd,TRADE SUPPLIER,3303-Taxi Hire,"1,761.80"
04-MAY-2022,Environment & Transport (P),Coalville Cabs Ltd,TRADE SUPPLIER,3303-Taxi Hire,"2,571.40"
04-MAY-2022,Environment & Transport (P),Coalville Cabs Ltd,TRADE SUPPLIER,3303-Taxi Hire,"2,107.00"
05-MAY-2022,Environment & Transport (P),Coalville Cabs Ltd,TRADE SUPPLIER,3303-Taxi Hire,"1,813.50"
05-MAY-2022,Environment & Transport (P),Coalville Cabs Ltd,TRADE SUPPLIER,3303-Taxi Hire,828.00
05-MAY-2022,Environment & Transport (P),Coalville Cabs Ltd,TRADE SUPPLIER,3303-Taxi Hire,"1,025.64"
05-MAY-2022,Environment & Transport (P),Coalville Cabs Ltd,TRADE SUPPLIER,3112-Home to Sch Trans Contract Buses Prim,700.00
05-MAY-2022,Environment & Transport (P),Coalville Cabs Ltd,TRADE SUPPLIER,3201-Pooled Transport Recharge Inhouse,918.50
05-MAY-2022,Environment & Transport (P),Coalville Cabs Ltd,TRADE SUPPLIER,3113-Home to Sch Trans Contract Buses Sec,"1,104.00"
06-MAY-2022,Environment & Transport (P),Coalville Cabs Ltd,TRADE SUPPLIER,3201-Pooled Transport Recharge Inhouse,"1,170.00"
06-MAY-2022,Environment & Transport (P),Coalville Cabs Ltd,TRADE SUPPLIER,3201-Pooled Transport Recharge Inhouse,702.00
06-MAY-2022,Environment & Transport (P),Coalville Cabs Ltd,TRADE SUPPLIER,3201-Pooled Transport Recharge Inhouse,"1,065.90"
06-MAY-2022,Environment & Transport (P),Coalville Cabs Ltd,TRADE SUPPLIER,3201-Pooled Transport Recharge Inhouse,560.00
06-MAY-2022,Environment & Transport (P),Coalville Cabs Ltd,TRADE SUPPLIER,3201-Pooled Transport Recharge Inhouse,"1,485.80"
06-MAY-2022,Environment & Transport (P),Coalville Cabs Ltd,TRADE SUPPLIER,3201-Pooled Transport Recharge Inhouse,"1,306.80"
06-MAY-2022,Environment & Transport (P),Coalville Cabs Ltd,TRADE SUPPLIER,3201-Pooled Transport Recharge Inhouse,"2,980.80"
06-MAY-2022,Environment & Transport (P),Coalville Cabs Ltd,TRADE SUPPLIER,3201-Pooled Transport Recharge Inhouse,"1,377.00"
06-MAY-2022,Environment & Transport (P),Coalville Cabs Ltd,TRADE SUPPLIER,3201-Pooled Transport Recharge Inhouse,994.40
06-MAY-2022,Environment & Transport (P),Coalville Cabs Ltd,TRADE SUPPLIER,3201-Pooled Transport Recharge Inhouse,"1,198.80"
06-MAY-2022,Environment & Transport (P),Coalville Cabs Ltd,TRADE SUPPLIER,3201-Pooled Transport Recharge Inhouse,932.50
06-MAY-2022,Environment & Transport (P),Coalville Cabs Ltd,TRADE SUPPLIER,3201-Pooled Transport Recharge Inhouse,551.00
06-MAY-2022,Balance Sheet Cost Centres (P),Coalville Cabs Ltd,TRADE SUPPLIER,9722-Reserved Creditors - Non Public Sector,"1,586.00"
06-MAY-2022,Environment & Transport (P),Coalville Cabs Ltd,TRADE SUPPLIER,3201-Pooled Transport Recharge Inhouse,"1,728.00"
06-MAY-2022,Environment & Transport (P),Coalville Cabs Ltd,TRADE SUPPLIER,3201-Pooled Transport Recharge Inhouse,880.00
18-MAY-2022,Environment & Transport (P),Coalville Cabs Ltd,TRADE SUPPLIER,3201-Pooled Transport Recharge Inhouse,675.00
27-MAY-2022,Environment & Transport (P),Coalville Cabs Ltd,TRADE SUPPLIER,3303-Taxi Hire,"1,103.16"
27-MAY-2022,Environment & Transport (P),Coalville Cabs Ltd,TRADE SUPPLIER,3303-Taxi Hire,"1,193.60"
16-MAY-2022,Schools Revenue Cost Centres (P),Coalville Warren Hills CP School,GENERAL,9667-Cash - School Allowances,"9,928.00"
30-MAY-2022,Adults & Communities (P),COATE WATER CARE COMPANY (CHURCH VIEW NURSING HOME) LTD&&SSARO6776,S/S HOMES,5502-Residential,"3,000.00"
20-MAY-2022,C&FS (P),COBDEN PRESCHOOL&&EYRS1784,EARLY YEARS,4908-Grants,"2,581.63"
31-MAY-2022,C&FS (P),Cobden Primary School Academy,GENERAL,5325-External SEN Providers Top Up Fee,"5,410.00"
17-MAY-2022,Capital - In Year Spend (P),Coeval Ltd,TRADE SUPPLIER,944A-Infr - Infrastructure Exp,"4,109.00"
16-MAY-2022,Environment & Transport (P),Colas Ltd,SUBCONTRACTOR,4901-Other Expenditure,"2,083.68"
16-MAY-2022,Environment & Transport (P),Colas Ltd,SUBCONTRACTOR,4901-Other Expenditure,"25,101.52"
18-MAY-2022,Environment & Transport (P),Colas Ltd,SUBCONTRACTOR,5411-Private Contractors - General,605.19
27-MAY-2022,Environment & Transport (P),Colas Ltd,SUBCONTRACTOR,3301-Vehicle & Plant Hire,670.47
27-MAY-2022,Environment & Transport (P),Colas Ltd,SUBCONTRACTOR,3301-Vehicle & Plant Hire,670.47
31-MAY-2022,Environment & Transport (P),Colas Ltd,SUBCONTRACTOR,4901-Other Expenditure,533.98
20-MAY-2022,C&FS (P),REDACTED PERSONAL DATA,EARLY YEARS,4908-Grants,"1,639.45"
19-MAY-2022,Environment & Transport (P),Coltman Brothers Ltd     1,TRADE SUPPLIER,4109-Materials,585.00
31-MAY-2022,Capital - In Year Spend (P),Combined Office Interiors Ltd,TRADE SUPPLIER,941D-L&B - Building Costs,"38,064.63"
06-MAY-2022,Adults & Communities (P),COMMUNITY CARELINE NORTHWEST LEICESTERSHIRE LTD&&ISHCHC1514,HOME CARE,5505-Homecare,"5,827.57"
06-MAY-2022,Balance Sheet Cost Centres (P),COMMUNITY CARELINE NORTHWEST LEICESTERSHIRE LTD&&ISHCHC1514,GENERAL,9642-Reserved Debtors - Non Public Sector,"6,567.44"
06-MAY-2022,Balance Sheet Cost Centres (P),COMMUNITY CARELINE NORTHWEST LEICESTERSHIRE LTD&&ISHCHC1514,GENERAL,9642-Reserved Debtors - Non Public Sector,"18,250.00"
13-MAY-2022,Adults & Communities (P),COMMUNITY CARELINE NORTHWEST LEICESTERSHIRE LTD&&ISHCHC1514,HOME CARE,5505-Homecare,"5,214.74"
20-MAY-2022,Adults & Communities (P),COMMUNITY CARELINE NORTHWEST LEICESTERSHIRE LTD&&ISHCHC1514,HOME CARE,5505-Homecare,"5,709.83"
27-MAY-2022,Adults & Communities (P),COMMUNITY CARELINE NORTHWEST LEICESTERSHIRE LTD&&ISHCHC1514,HOME CARE,5505-Homecare,"5,792.48"
20-MAY-2022,C&FS (P),COMMUNITY CENTRE PLAYGROUP (STONEY STANTON)&&EYRS1402,EARLY YEARS,4908-Grants,969.69
16-MAY-2022,Public Health (P),Community Dental Services CIC,TRADE SUPPLIER,5443-Agency & Contracted Services,"12,580.25"
03-MAY-2022,C&FS (P),Community Inclusive Trust,GENERAL,6101-Support Services,"104,690.00"
17-MAY-2022,Balance Sheet Cost Centres (P),COMMUNITY LIVING PROJECT&&SSAROE56011,GENERAL,9642-Reserved Debtors - Non Public Sector,"4,000.00"
26-MAY-2022,Balance Sheet Cost Centres (P),COMMUNITY LIVING PROJECT&&SSAROE56011,GENERAL,9642-Reserved Debtors - Non Public Sector,"5,405.00"
30-MAY-2022,Adults & Communities (P),COMMUNITY LIVING PROJECT&&SSAROE56011,S/S HOMES,5502-Residential,"2,101.05"
30-MAY-2022,Adults & Communities (P),COMMUNITY LIVING PROJECT&&SSAROE56011,S/S HOMES,5502-Residential,"2,104.20"
30-MAY-2022,Adults & Communities (P),COMMUNITY LIVING PROJECT&&SSAROE56011,S/S HOMES,5502-Residential,"36,224.64"
26-MAY-2022,Chief Executives (P),Community Research Ltd,TRADE SUPPLIER,4507-Consultants & Specialists,"6,080.00"
20-MAY-2022,C&FS (P),Compass Childrens Homes Ltd,TRADE SUPPLIER,5411-Private Contractors - General,"20,142.90"
20-MAY-2022,C&FS (P),Compass Childrens Homes Ltd,TRADE SUPPLIER,5411-Private Contractors - General,"20,142.90"
31-MAY-2022,C&FS (P),Compass Fostering Central Ltd,TRADE SUPPLIER,5446-Independent Fostering Agencies,"3,764.24"
31-MAY-2022,C&FS (P),Compass Fostering Central Ltd,TRADE SUPPLIER,5446-Independent Fostering Agencies,"3,103.28"
31-MAY-2022,C&FS (P),Compass Fostering Central Ltd,TRADE SUPPLIER,5446-Independent Fostering Agencies,"3,103.23"
31-MAY-2022,C&FS (P),Compass Fostering Central Ltd,TRADE SUPPLIER,5446-Independent Fostering Agencies,"3,103.23"
31-MAY-2022,C&FS (P),Compass Fostering Central Ltd,TRADE SUPPLIER,5446-Independent Fostering Agencies,"3,238.17"
31-MAY-2022,C&FS (P),Compass Fostering Central Ltd,TRADE SUPPLIER,5446-Independent Fostering Agencies,"3,256.86"
31-MAY-2022,C&FS (P),Compass Fostering Central Ltd,TRADE SUPPLIER,5446-Independent Fostering Agencies,"3,238.17"
31-MAY-2022,C&FS (P),Compass Fostering Central Ltd,TRADE SUPPLIER,5446-Independent Fostering Agencies,"3,126.62"
31-MAY-2022,C&FS (P),Compass Fostering Central Ltd,TRADE SUPPLIER,5446-Independent Fostering Agencies,"3,670.13"
31-MAY-2022,C&FS (P),Compass Fostering Central Ltd,TRADE SUPPLIER,5446-Independent Fostering Agencies,"3,764.24"
31-MAY-2022,C&FS (P),Compass Fostering Central Ltd,TRADE SUPPLIER,5446-Independent Fostering Agencies,"3,162.00"
31-MAY-2022,C&FS (P),Compass Fostering Central Ltd,TRADE SUPPLIER,5446-Independent Fostering Agencies,"3,274.84"
31-MAY-2022,C&FS (P),Compass Fostering Central Ltd,TRADE SUPPLIER,5446-Independent Fostering Agencies,"3,238.17"
31-MAY-2022,C&FS (P),Compass Fostering Central Ltd,TRADE SUPPLIER,5446-Independent Fostering Agencies,"3,238.17"
31-MAY-2022,C&FS (P),Compass Fostering Central Ltd,TRADE SUPPLIER,5411-Private Contractors - General,"3,764.29"
31-MAY-2022,C&FS (P),Compass Fostering Central Ltd,TRADE SUPPLIER,5411-Private Contractors - General,"3,764.24"
31-MAY-2022,C&FS (P),Compass Fostering Central Ltd,TRADE SUPPLIER,5446-Independent Fostering Agencies,"3,387.86"
31-MAY-2022,C&FS (P),Compass Fostering Central Ltd,TRADE SUPPLIER,5446-Independent Fostering Agencies,"3,670.18"
31-MAY-2022,C&FS (P),Compass Fostering Central Ltd,TRADE SUPPLIER,5446-Independent Fostering Agencies,"3,631.38"
31-MAY-2022,C&FS (P),Compass Fostering Central Ltd,TRADE SUPPLIER,5446-Independent Fostering Agencies,"3,321.38"
31-MAY-2022,C&FS (P),Compass Fostering Central Ltd,TRADE SUPPLIER,5446-Independent Fostering Agencies,"3,852.37"
13-MAY-2022,Public Health (P),Compass Group UK & Ireland Ltd,TRADE SUPPLIER,2321-Rent & Room Hire,768.68
19-MAY-2022,Balance Sheet Cost Centres (P),Compassion Care Service Ltd,GENERAL,9642-Reserved Debtors - Non Public Sector,"1,364.00"
13-MAY-2022,Corporate Resources (CR) (P),Complete Background Screening Ltd,TRADE SUPPLIER,1713-Other Allowances / Expenses,"2,301.00"
30-MAY-2022,Corporate Resources (CR) (P),Con Serv (Systems) Ltd,TRADE SUPPLIER,2102-R&M Buildings Service Contracts,"1,200.00"
30-MAY-2022,Adults & Communities (P),CONDOVER COLLEGE LTD&&SSAROE1331,S/S HOMES,5502-Residential,"20,814.12"
16-MAY-2022,Schools Revenue Cost Centres (P),Congerstone CP School,GENERAL,9667-Cash - School Allowances,"7,065.00"
30-MAY-2022,Adults & Communities (P),CONIFER LODGE&&SSAROE40296,S/S HOMES,5502-Residential,"26,024.00"
30-MAY-2022,Adults & Communities (P),CONIFER LODGE&&SSAROE40296,S/S HOMES,5502-Residential,"1,775.14"
05-MAY-2022,Adults & Communities (P),Consam International Ltd,TRADE SUPPLIER,4102-General Equipment - Purchase & Repairs,548.95
27-MAY-2022,Environment & Transport (P),Construction Testing Solutions Ltd,TRADE SUPPLIER,5411-Private Contractors - General,840.00
06-MAY-2022,Adults & Communities (P),CONTINUITY HEALTHCARE SERVICES LTD&&ISHC6572,HOME CARE,5505-Homecare,"8,148.64"
13-MAY-2022,Adults & Communities (P),CONTINUITY HEALTHCARE SERVICES LTD&&ISHC6572,HOME CARE,5505-Homecare,"9,006.23"
13-MAY-2022,Adults & Communities (P),CONTINUITY HEALTHCARE SERVICES LTD&&ISHC6572,HOME CARE,5505-Homecare,"1,714.50"
13-MAY-2022,Adults & Communities (P),CONTINUITY HEALTHCARE SERVICES LTD&&ISHC6572,HOME CARE,5505-Homecare,867.72
20-MAY-2022,Adults & Communities (P),CONTINUITY HEALTHCARE SERVICES LTD&&ISHC6572,HOME CARE,5505-Homecare,"8,702.49"
27-MAY-2022,Adults & Communities (P),CONTINUITY HEALTHCARE SERVICES LTD&&ISHC6572,HOME CARE,5505-Homecare,"8,925.23"
27-MAY-2022,Adults & Communities (P),CONTINUITY HEALTHCARE SERVICES LTD&&ISHC6572,HOME CARE,5505-Homecare,"1,226.55"
26-MAY-2022,Environment & Transport (P),CoolerAid Ltd,TRADE SUPPLIER,5411-Private Contractors - General,720.00
03-MAY-2022,C&FS (P),Coram BAAF,NON TRADE,4909-Subscriptions,"12,101.44"
27-MAY-2022,C&FS (P),Coram Childrens Legal Centre Ltd,TRADE SUPPLIER,4507-Consultants & Specialists,"2,591.00"
13-MAY-2022,Corporate Resources (CR) (P),Corden Hardware Co Ltd,TRADE SUPPLIER,2101-R&M Buildings,"1,207.00"
31-MAY-2022,C&FS (P),Cornerstone NE Adoption & Fostering Service,TRADE SUPPLIER,5446-Independent Fostering Agencies,"3,472.00"
11-MAY-2022,C&FS (P),Cornerstones Group Ltd,TRADE SUPPLIER,5411-Private Contractors - General,"4,200.00"
11-MAY-2022,C&FS (P),Cornerstones Group Ltd,TRADE SUPPLIER,5411-Private Contractors - General,"5,357.14"
11-MAY-2022,C&FS (P),Cornerstones Group Ltd,TRADE SUPPLIER,5411-Private Contractors - General,"5,142.86"
11-MAY-2022,C&FS (P),Cornerstones Group Ltd,TRADE SUPPLIER,5451-LCT/LAC (Not Fostered),"5,142.86"
11-MAY-2022,C&FS (P),Cornerstones Group Ltd,TRADE SUPPLIER,5411-Private Contractors - General,"5,142.86"
11-MAY-2022,C&FS (P),Cornerstones Group Ltd,TRADE SUPPLIER,5451-LCT/LAC (Not Fostered),"4,200.00"
11-MAY-2022,C&FS (P),Cornerstones Group Ltd,TRADE SUPPLIER,5411-Private Contractors - General,"5,142.86"
11-MAY-2022,C&FS (P),Cornerstones Group Ltd,TRADE SUPPLIER,5411-Private Contractors - General,"5,142.86"
11-MAY-2022,C&FS (P),Cornerstones Group Ltd,TRADE SUPPLIER,5411-Private Contractors - General,"5,142.86"
11-MAY-2022,C&FS (P),Cornerstones Group Ltd,TRADE SUPPLIER,5411-Private Contractors - General,"5,142.86"
11-MAY-2022,C&FS (P),Cornerstones Group Ltd,TRADE SUPPLIER,5411-Private Contractors - General,"5,142.86"
11-MAY-2022,C&FS (P),Cornerstones Group Ltd,TRADE SUPPLIER,5411-Private Contractors - General,"5,142.86"
20-MAY-2022,C&FS (P),Cornerstones Group Ltd,TRADE SUPPLIER,5411-Private Contractors - General,"5,142.86"
20-MAY-2022,C&FS (P),Cornerstones Group Ltd,TRADE SUPPLIER,5411-Private Contractors - General,"5,535.71"
17-MAY-2022,C&FS (P),COSBY PRIMARY SCHOOL PRE-SCHOOL&&EYRSEXMT0107,GENERAL,4908-Grants,789.92
20-MAY-2022,C&FS (P),COSBY PRIMARY SCHOOL PRE-SCHOOL&&EYRSEXMT0107,EARLY YEARS,4908-Grants,"1,018.96"
16-MAY-2022,Schools Revenue Cost Centres (P),Cossington CE Primary School,GENERAL,9667-Cash - School Allowances,"4,497.00"
16-MAY-2022,Schools Revenue Cost Centres (P),Countesthorpe Greenfields Primary School,GENERAL,9667-Cash - School Allowances,"5,782.00"
23-MAY-2022,Public Health (P),Countesthorpe Health Centre,NON TRADE,5447-General Practioners,"2,401.00"
31-MAY-2022,C&FS (P),Countesthorpe Leysland Community College (Life Multi Academy Trust),GENERAL,6101-Support Services,500.00
31-MAY-2022,C&FS (P),Countesthorpe Leysland Community College (Life Multi Academy Trust),GENERAL,5325-External SEN Providers Top Up Fee,"3,142.43"
30-MAY-2022,Adults & Communities (P),COUNTRY COURT CARE HOMES LTD&&SSARO6542,S/S HOMES,5502-Residential,"2,348.00"
26-MAY-2022,Corporate Resources (CR) (P),County Drains Leicester Ltd,FACTOR,2106-Reactive Maint Buildings,674.00
04-MAY-2022,Environment & Transport (P),Coventry & Solihull Waste Disposal Co Ltd,TRADE SUPPLIER,5411-Private Contractors - General,"264,224.26"
24-MAY-2022,Environment & Transport (P),Coventry & Solihull Waste Disposal Co Ltd,TRADE SUPPLIER,5411-Private Contractors - General,"59,575.07"
24-MAY-2022,Environment & Transport (P),Coventry & Solihull Waste Disposal Co Ltd,TRADE SUPPLIER,5411-Private Contractors - General,"202,261.09"
25-MAY-2022,Environment & Transport (P),Coventry & Solihull Waste Disposal Co Ltd,TRADE SUPPLIER,5411-Private Contractors - General,"171,854.09"
17-MAY-2022,Balance Sheet Cost Centres (P),CRAEGMOOR FACILITIES CO LTD RE CHARNWOOD LODGE&&SSAROE346,GENERAL,9642-Reserved Debtors - Non Public Sector,"8,500.00"
30-MAY-2022,Adults & Communities (P),CRAEGMOOR FACILITIES CO LTD RE CHARNWOOD LODGE&&SSAROE346,S/S HOMES,5502-Residential,"6,379.44"
30-MAY-2022,Adults & Communities (P),CRAEGMOOR FACILITIES CO LTD RE HALIFAX DRIVE&&SSAROE29669A,S/S HOMES,5502-Residential,821.69
30-MAY-2022,Adults & Communities (P),CRAEGMOOR FACILITIES CO LTD RE HALIFAX DRIVE&&SSAROE29669A,S/S HOMES,5502-Residential,"16,265.80"
17-MAY-2022,Balance Sheet Cost Centres (P),CRAEGMOOR FACILITIES CO LTD RE MAR LODGE&&SSAROE66405,GENERAL,9642-Reserved Debtors - Non Public Sector,"3,500.00"
30-MAY-2022,Adults & Communities (P),CRAEGMOOR FACILITIES CO LTD RE MAR LODGE&&SSAROE66405,S/S HOMES,5502-Residential,"19,872.19"
17-MAY-2022,Balance Sheet Cost Centres (P),CRAEGMOOR FACILITIES CO LTD RE MEADOWS&&SSAROE40227,GENERAL,9642-Reserved Debtors - Non Public Sector,"17,000.00"
30-MAY-2022,Adults & Communities (P),CRAEGMOOR FACILITIES CO LTD RE MEADOWS&&SSAROE40227,S/S HOMES,5502-Residential,"1,084.29"
30-MAY-2022,Adults & Communities (P),CRAEGMOOR FACILITIES CO LTD RE MEADOWS&&SSAROE40227,S/S HOMES,5502-Residential,"51,457.75"
30-MAY-2022,Adults & Communities (P),CRAEGMOOR FACILITIES CO LTD RE MEADOWS&&SSAROE40227,S/S HOMES,5502-Residential,560.57
30-MAY-2022,Adults & Communities (P),CRAEGMOOR FACILITIES CO LTD RE MEADOWS&&SSAROE40227,S/S HOMES,5502-Residential,729.00
30-MAY-2022,Adults & Communities (P),CRAEGMOOR FACILITIES COMPANY LTD&&SSAROE8,S/S HOMES,5502-Residential,"6,782.92"
24-MAY-2022,C&FS (P),Creating Tomorrow Multi Academy Trust,NON TRADE,5212-OLEA Recoupment,"16,635.66"
06-MAY-2022,Public Health (P),Creative 62 Ltd,TRADE SUPPLIER,4507-Consultants & Specialists,700.00
27-MAY-2022,Public Health (P),Creative 62 Ltd,TRADE SUPPLIER,"4503-Advertising, Publicity & Marketing","5,666.00"
06-MAY-2022,Adults & Communities (P),CREATIVE CARE (LEICESTER) LTD&&SUPL6195,SUPPORTED LIVING,5506-Supported Living,883.68
06-MAY-2022,Adults & Communities (P),CREATIVE CARE (LEICESTER) LTD&&SUPL6195,SUPPORTED LIVING,5506-Supported Living,"40,319.84"
06-MAY-2022,Adults & Communities (P),CREATIVE CARE (LEICESTER) LTD&&SUPL6195,SUPPORTED LIVING,5506-Supported Living,"57,304.98"
06-MAY-2022,Adults & Communities (P),CREATIVE SUPPORT&&SUPL4190,SUPPORTED LIVING,5506-Supported Living,"1,731.75"
06-MAY-2022,Adults & Communities (P),CREATIVE SUPPORT&&SUPL4190,SUPPORTED LIVING,5506-Supported Living,"23,552.31"
06-MAY-2022,Adults & Communities (P),CREATIVE SUPPORT&&SUPL4190,SUPPORTED LIVING,5506-Supported Living,"86,668.04"
06-MAY-2022,Adults & Communities (P),CREATIVE SUPPORT&&SUPL4190,SUPPORTED LIVING,5506-Supported Living,"1,230.00"
06-MAY-2022,Adults & Communities (P),CREATIVE SUPPORT&&SUPL4190,SUPPORTED LIVING,5506-Supported Living,"116,191.07"
31-MAY-2022,C&FS (P),Credo Care Ltd,FACTOR,5446-Independent Fostering Agencies,"6,961.71"
31-MAY-2022,C&FS (P),Credo Care Ltd,FACTOR,5446-Independent Fostering Agencies,"15,036.72"
17-MAY-2022,C&FS (P),CROFT C OF E COMMUNITY PLAYGROUP&&EYRS1405,GENERAL,4908-Grants,503.28
20-MAY-2022,C&FS (P),CROFT C OF E COMMUNITY PLAYGROUP&&EYRS1405,EARLY YEARS,4908-Grants,"4,931.49"
26-MAY-2022,C&FS (P),Croft Church of England Primary School,TRADE SUPPLIER,8301-Sales (Traded),"2,142.00"
31-MAY-2022,Corporate Resources (CR) (P),Croner I Ltd,TRADE SUPPLIER,2102-R&M Buildings Service Contracts,"2,079.00"
05-MAY-2022,Environment & Transport (P),Crown Cars (Leic) Ltd,TRADE SUPPLIER,3201-Pooled Transport Recharge Inhouse,903.00
05-MAY-2022,Environment & Transport (P),Crown Cars (Leic) Ltd,TRADE SUPPLIER,3303-Taxi Hire,"2,397.00"
05-MAY-2022,Environment & Transport (P),Crown Cars (Leic) Ltd,TRADE SUPPLIER,3303-Taxi Hire,"1,365.00"
05-MAY-2022,Environment & Transport (P),Crown Cars (Leic) Ltd,TRADE SUPPLIER,3303-Taxi Hire,"1,482.00"
06-MAY-2022,Adults & Communities (P),CSN CARE GROUP LTD&&ISHC6573,HOME CARE,5505-Homecare,"1,204.71"
30-MAY-2022,Adults & Communities (P),CSS LTD T/A GRETTON HOMES&&SARO3372,S/S HOMES,5502-Residential,"7,183.48"
26-MAY-2022,Balance Sheet Cost Centres (P),CT CARE LTD T/A BLUE RIBBON (LEICESTERSHIRE & RUTLAND)&&ISHC6604,GENERAL,9642-Reserved Debtors - Non Public Sector,"1,597.00"
18-MAY-2022,C&FS (P),Currys Business T/A Currys Group Ltd,TRADE SUPPLIER,4602-IT Services,"13,474.50"
10-MAY-2022,Public Health (P),Cuttlefish Multimedia Ltd,TRADE SUPPLIER,"4501-Exhibitions, Displays, Events & Performances","7,378.50"
20-MAY-2022,Public Health (P),Cyber Media Solutions Ltd,TRADE SUPPLIER,4602-IT Services,620.00
30-MAY-2022,Adults & Communities (P),CYGNET (DH) LTD T/A TOLLER ROAD&&SARO5736,S/S HOMES,5502-Residential,"10,911.78"
30-MAY-2022,Adults & Communities (P),CYGNET HEALTH T/A 15 THE SYCAMORES&&SARO8633,S/S HOMES,5502-Residential,"15,306.48"
20-MAY-2022,C&FS (P),REDACTED PERSONAL DATA,EARLY YEARS,4908-Grants,"1,428.21"
13-MAY-2022,Environment & Transport (P),REDACTED PERSONAL DATA,TRADE INDIVIDUAL,3201-Pooled Transport Recharge Inhouse,"1,633.50"
20-MAY-2022,C&FS (P),REDACTED PERSONAL DATA,EARLY YEARS,4908-Grants,"1,062.34"
19-MAY-2022,Environment & Transport (P),REDACTED PERSONAL DATA,TRADE SUPPLIER,3303-Taxi Hire,"1,023.66"
06-MAY-2022,Adults & Communities (P),D&H COMMUNITY SUPPORT LTD&&CLCD3309,CLC,5504-Day/CLC Services,"21,340.02"
13-MAY-2022,Adults & Communities (P),D&H COMMUNITY SUPPORT LTD&&CLCD3309,CLC,5504-Day/CLC Services,"26,097.74"
20-MAY-2022,Adults & Communities (P),D&H COMMUNITY SUPPORT LTD&&CLCD3309,CLC,5504-Day/CLC Services,"21,506.23"
27-MAY-2022,Adults & Communities (P),D&H COMMUNITY SUPPORT LTD&&CLCD3309,CLC,5504-Day/CLC Services,"27,409.41"
06-MAY-2022,Environment & Transport (P),REDACTED PERSONAL DATA,TRADE SUPPLIER,3301-Vehicle & Plant Hire,504.00
03-MAY-2022,C&FS (P),DA Languages Ltd,TRADE SUPPLIER,4507-Consultants & Specialists,"5,212.30"
03-MAY-2022,C&FS (P),DA Languages Ltd,TRADE SUPPLIER,4507-Consultants & Specialists,"12,177.35"
31-MAY-2022,C&FS (P),DA Languages Ltd,TRADE SUPPLIER,4507-Consultants & Specialists,"17,596.56"
20-MAY-2022,C&FS (P),DAIRY FARM DAY NURSERY&&EYRS1813,EARLY YEARS,4908-Grants,"2,844.60"
09-MAY-2022,C&FS (P),Daisybrook Ltd,TRADE SUPPLIER,5411-Private Contractors - General,"13,714.20"
12-MAY-2022,C&FS (P),Dame Elizabeth Cadbury School T/A Matrix Academy Trust,GENERAL,6101-Support Services,559.00
04-MAY-2022,Corporate Resources (CR) (P),REDACTED PERSONAL DATA,TRADE SUPPLIER,4507-Consultants & Specialists,"1,584.00"
17-MAY-2022,C&FS (P),REDACTED PERSONAL DATA,GENERAL,2104-Other Premises expenses,"6,050.00"
20-MAY-2022,C&FS (P),REDACTED PERSONAL DATA,GENERAL,5621-Transfer Payments,897.27
05-MAY-2022,Environment & Transport (P),REDACTED PERSONAL DATA,TRADE INDIVIDUAL,3201-Pooled Transport Recharge Inhouse,"1,586.29"
20-MAY-2022,Balance Sheet Cost Centres (P),DAS Law Ltd,TRADE SUPPLIER,9321-Expenditure,"12,276.07"
27-MAY-2022,Capital - In Year Spend (P),Data & Voice Cabling Ltd,TRADE SUPPLIER,943C-VPE - Equipment (Furniture/ IT) Exp,"1,508.00"
04-MAY-2022,Corporate Resources (CR) (P),Data Centre Response Ltd,TRADE SUPPLIER,2102-R&M Buildings Service Contracts,"18,400.00"
11-MAY-2022,Environment & Transport (P),REDACTED PERSONAL DATA,TRADE SUPPLIER,3112-Home to Sch Trans Contract Buses Prim,"3,220.00"
03-MAY-2022,Adults & Communities (P),REDACTED PERSONAL DATA,NON TRADE,8402-Residential -Client Income,"1,098.15"
30-MAY-2022,Adults & Communities (P),DAVID LEWIS CENTRE&&SSAROE72,S/S HOMES,5502-Residential,"2,269.24"
31-MAY-2022,C&FS (P),David Ross Education Trust Re Charnwood College,GENERAL,5325-External SEN Providers Top Up Fee,"4,007.79"
30-MAY-2022,Corporate Resources (CR) (P),David Stanley Sales Ltd,FACTOR,2102-R&M Buildings Service Contracts,"1,300.00"
05-MAY-2022,Environment & Transport (P),REDACTED PERSONAL DATA,TRADE INDIVIDUAL,3303-Taxi Hire,"1,610.00"
20-MAY-2022,C&FS (P),REDACTED PERSONAL DATA,EARLY YEARS,4908-Grants,679.50
20-MAY-2022,C&FS (P),REDACTED PERSONAL DATA,EARLY YEARS,4908-Grants,"3,541.75"
31-MAY-2022,C&FS (P),De Lisle College (St Thomas Aquinas Catholic Multi Academy Trust),GENERAL,5325-External SEN Providers Top Up Fee,"9,424.37"
20-MAY-2022,C&FS (P),DE VERDUN CHILDRENS NURSERY&&EYRS1718,EARLY YEARS,4908-Grants,"6,253.40"
31-MAY-2022,C&FS (P),REDACTED PERSONAL DATA,TRADE SUPPLIER,5445-Adoption Support,"1,780.00"
30-MAY-2022,Environment & Transport (P),REDACTED PERSONAL DATA,TRADE INDIVIDUAL,4507-Consultants & Specialists,"1,316.00"
20-MAY-2022,C&FS (P),REDACTED PERSONAL DATA,EARLY YEARS,4908-Grants,827.52
20-MAY-2022,C&FS (P),REDACTED PERSONAL DATA,EARLY YEARS,4908-Grants,732.27
27-MAY-2022,Corporate Resources (CR) (P),Dell Corporation Ltd,TRADE SUPPLIER,4601-IT Equipment Hardware,"24,996.00"
20-MAY-2022,C&FS (P),DEN FARMSIDE&&EYRSEY556945,EARLY YEARS,4908-Grants,"11,696.75"
06-MAY-2022,Environment & Transport (P),Denham Procurement & Sourcing Solutions Ltd,TRADE SUPPLIER,4109-Materials,"1,950.00"
06-MAY-2022,Balance Sheet Cost Centres (P),Denham Procurement & Sourcing Solutions Ltd,TRADE SUPPLIER,9631-Inventories - General,"1,033.28"
06-MAY-2022,Environment & Transport (P),Denham Procurement & Sourcing Solutions Ltd,TRADE SUPPLIER,4901-Other Expenditure,"1,360.00"
12-MAY-2022,Balance Sheet Cost Centres (P),Denham Procurement & Sourcing Solutions Ltd,TRADE SUPPLIER,9631-Inventories - General,796.12
20-MAY-2022,Balance Sheet Cost Centres (P),Denham Procurement & Sourcing Solutions Ltd,TRADE SUPPLIER,9631-Inventories - General,"1,600.30"
20-MAY-2022,Environment & Transport (P),Denham Procurement & Sourcing Solutions Ltd,TRADE SUPPLIER,4109-Materials,"1,105.80"
20-MAY-2022,Environment & Transport (P),Denham Procurement & Sourcing Solutions Ltd,TRADE SUPPLIER,4109-Materials,"1,142.24"
20-MAY-2022,Environment & Transport (P),Denham Procurement & Sourcing Solutions Ltd,TRADE SUPPLIER,4109-Materials,"2,164.30"
20-MAY-2022,Balance Sheet Cost Centres (P),Denham Procurement & Sourcing Solutions Ltd,TRADE SUPPLIER,9631-Inventories - General,"1,008.00"
20-MAY-2022,Balance Sheet Cost Centres (P),Denham Procurement & Sourcing Solutions Ltd,TRADE SUPPLIER,9631-Inventories - General,"2,232.00"
23-MAY-2022,Balance Sheet Cost Centres (P),Department For Work & Pensions,GENERAL,9321-Expenditure,743.00
26-MAY-2022,Adults & Communities (P),Department of Health & Social Care Income (HGC),GENERAL,8133-DoH Grant,"16,283.00"
26-MAY-2022,Adults & Communities (P),Department of Health & Social Care Income (HGC),GENERAL,8133-DoH Grant,"24,776.00"
17-MAY-2022,Balance Sheet Cost Centres (P),Department of Work and Pensions CMS Employers,GENERAL,9729-Suspense (Current Liability),692.79
27-MAY-2022,C&FS (P),Derby College,TRADE SUPPLIER,5325-External SEN Providers Top Up Fee,"2,696.62"
26-MAY-2022,Public Health (P),Derbyshire Community Health Services NHS Trust,NON TRADE,5211-Other Local Authorities,"2,768.93"
26-MAY-2022,Public Health (P),Derbyshire Community Health Services NHS Trust,NON TRADE,5211-Other Local Authorities,736.11
24-MAY-2022,C&FS (P),Derbyshire County Council,OTHER LOCAL AUTHORITIES,5212-OLEA Recoupment,"5,578.00"
30-MAY-2022,Adults & Communities (P),DERRIFORD HOUSE LTD&&SARO6557,S/S HOMES,5502-Residential,"3,340.00"
30-MAY-2022,C&FS (P),Derrymount School,GENERAL,6101-Support Services,700.00
30-MAY-2022,Adults & Communities (P),DERWEN COLLEGE&&SSAROE205,S/S HOMES,5502-Residential,"3,950.24"
16-MAY-2022,Schools Revenue Cost Centres (P),Desford CP School,GENERAL,9667-Cash - School Allowances,"15,845.00"
03-MAY-2022,Corporate Resources (CR) (P),DestiNet Ltd,TRADE SUPPLIER,"4503-Advertising, Publicity & Marketing","4,725.00"
09-MAY-2022,C&FS (P),DFD Care and Support Services Ltd,TRADE SUPPLIER,5411-Private Contractors - General,"7,307.14"
03-MAY-2022,C&FS (P),DFD Care and Support Services Ltd,TRADE SUPPLIER,5451-LCT/LAC (Not Fostered),"7,975.00"
31-MAY-2022,C&FS (P),DFD Care and Support Services Ltd,TRADE SUPPLIER,5451-LCT/LAC (Not Fostered),"6,409.50"
31-MAY-2022,C&FS (P),DFD Care and Support Services Ltd,TRADE SUPPLIER,5451-LCT/LAC (Not Fostered),"6,424.29"
31-MAY-2022,C&FS (P),DFD Care and Support Services Ltd,TRADE SUPPLIER,5411-Private Contractors - General,"6,233.74"
31-MAY-2022,C&FS (P),DFD Care and Support Services Ltd,TRADE SUPPLIER,5411-Private Contractors - General,"6,234.17"
31-MAY-2022,C&FS (P),DFD Care and Support Services Ltd,TRADE SUPPLIER,5451-LCT/LAC (Not Fostered),"7,285.80"
31-MAY-2022,C&FS (P),DFD Care and Support Services Ltd,TRADE SUPPLIER,5451-LCT/LAC (Not Fostered),"8,250.00"
31-MAY-2022,C&FS (P),DFD Care and Support Services Ltd,TRADE SUPPLIER,5411-Private Contractors - General,"6,023.10"
31-MAY-2022,C&FS (P),DFD Care and Support Services Ltd,TRADE SUPPLIER,5411-Private Contractors - General,"6,040.89"
13-MAY-2022,Corporate Resources (CR) (P),Digital Id Limited,TRADE SUPPLIER,4301-Protective Clothing & Uniforms,"3,849.50"
06-MAY-2022,Balance Sheet Cost Centres (P),DIGNUS HEALTHCARE LTD T/A 39 SCHOOL LANE&&SARO6181,GENERAL,9642-Reserved Debtors - Non Public Sector,"1,155.00"
06-MAY-2022,Balance Sheet Cost Centres (P),DIGNUS HEALTHCARE LTD T/A 39 SCHOOL LANE&&SARO6181,GENERAL,9642-Reserved Debtors - Non Public Sector,727.25
06-MAY-2022,Balance Sheet Cost Centres (P),DIGNUS HEALTHCARE LTD T/A 39 SCHOOL LANE&&SARO6181,GENERAL,9642-Reserved Debtors - Non Public Sector,"10,181.54"
06-MAY-2022,Balance Sheet Cost Centres (P),DIGNUS HEALTHCARE LTD T/A 39 SCHOOL LANE&&SARO6181,GENERAL,9642-Reserved Debtors - Non Public Sector,"1,155.00"
06-MAY-2022,Balance Sheet Cost Centres (P),DIGNUS HEALTHCARE LTD T/A 39 SCHOOL LANE&&SARO6181,GENERAL,9642-Reserved Debtors - Non Public Sector,805.00
30-MAY-2022,Adults & Communities (P),DIGNUS HEALTHCARE LTD T/A 39 SCHOOL LANE&&SARO6181,S/S HOMES,5502-Residential,"7,040.00"
30-MAY-2022,Environment & Transport (P),Direct Cabs,TRADE SUPPLIER,3201-Pooled Transport Recharge Inhouse,791.50
06-MAY-2022,Adults & Communities (P),DIRECT CARE WORKS LTD&&CLCD3327,CLC,5504-Day/CLC Services,"2,580.49"
13-MAY-2022,Adults & Communities (P),DIRECT CARE WORKS LTD&&CLCD3327,CLC,5504-Day/CLC Services,"2,621.66"
19-MAY-2022,Balance Sheet Cost Centres (P),DIRECT CARE WORKS LTD&&CLCD3327,GENERAL,9642-Reserved Debtors - Non Public Sector,"13,000.00"
20-MAY-2022,Adults & Communities (P),DIRECT CARE WORKS LTD&&CLCD3327,CLC,5504-Day/CLC Services,"2,425.60"
26-MAY-2022,Balance Sheet Cost Centres (P),DIRECT CARE WORKS LTD&&CLCD3327,GENERAL,9642-Reserved Debtors - Non Public Sector,"22,000.00"
05-MAY-2022,C&FS (P),Direct Healthcare Group,TRADE SUPPLIER,4102-General Equipment - Purchase & Repairs,"1,330.00"
27-MAY-2022,Environment & Transport (P),Direct Tyre Management Ltd,TRADE SUPPLIER,3102-Vehicle & Plant Repairs & Maintenance,"18,288.44"
20-MAY-2022,C&FS (P),DISCOVER OUTDOORS LTD T/A NATURES WAY FOREST KINDERGARTEN&&EYRS2636719,EARLY YEARS,4908-Grants,"2,258.93"
20-MAY-2022,C&FS (P),DISCOVERY SCHOOLS AC T/A WOOLDEN FERNS PRESCHOOL&&EYRSEXMT0137,EARLY YEARS,4908-Grants,547.24
26-MAY-2022,C&FS (P),Discovery Schools Academy Trust,GENERAL,4908-Grants,"2,712.00"
16-MAY-2022,Schools Revenue Cost Centres (P),Diseworth C E Primary School,GENERAL,9667-Cash - School Allowances,"3,958.00"
19-MAY-2022,Public Health (P),Dishley Grange Medical Practice,TRADE SUPPLIER,5447-General Practioners,"9,835.00"
06-MAY-2022,Environment & Transport (P),Dishley Residents Association,NON TRADE,4908-Grants,"3,886.00"
30-MAY-2022,Adults & Communities (P),DIWALI LTD&&SSAROE40425,S/S HOMES,5502-Residential,"10,264.00"
09-MAY-2022,Chief Executives (P),DK Independent Social Work Ltd,TRADE SUPPLIER,4905-Legal Expenses,502.86
30-MAY-2022,Adults & Communities (P),REDACTED PERSONAL DATA,S/S HOMES,5502-Residential,"40,857.72"
30-MAY-2022,Adults & Communities (P),REDACTED PERSONAL DATA,S/S HOMES,5502-Residential,824.83
19-MAY-2022,Chief Executives (P),DNA Legal,TRADE SUPPLIER,4905-Legal Expenses,639.00
30-MAY-2022,Chief Executives (P),DNA Legal,TRADE SUPPLIER,4905-Legal Expenses,750.00
03-MAY-2022,Chief Executives (P),Dodds Solicitors LLP,TRADE SUPPLIER,4507-Consultants & Specialists,"2,085.79"
06-MAY-2022,Chief Executives (P),Dodds Solicitors LLP,TRADE SUPPLIER,4905-Legal Expenses,"1,139.33"
20-MAY-2022,Chief Executives (P),Dodds Solicitors LLP,TRADE SUPPLIER,4507-Consultants & Specialists,"2,056.49"
25-MAY-2022,Chief Executives (P),Dodds Solicitors LLP,TRADE SUPPLIER,4507-Consultants & Specialists,"4,543.54"
16-MAY-2022,Schools Revenue Cost Centres (P),Donisthorpe CP School,GENERAL,9667-Cash - School Allowances,"8,156.00"
20-MAY-2022,C&FS (P),REDACTED PERSONAL DATA,GENERAL,5621-Transfer Payments,"1,149.57"
30-MAY-2022,Adults & Communities (P),Doran Scott Williams & Co Ltd,TRADE SUPPLIER,4912-Educational Bodies Exam Fees,650.00
30-MAY-2022,Adults & Communities (P),Doran Scott Williams & Co Ltd,TRADE SUPPLIER,4912-Educational Bodies Exam Fees,650.00
16-MAY-2022,C&FS (P),Dorothy Goodman School Academy,GENERAL,5325-External SEN Providers Top Up Fee,"1,057,669.00"
16-MAY-2022,C&FS (P),Dorothy Goodman School Academy,GENERAL,5325-External SEN Providers Top Up Fee,"244,543.00"
31-MAY-2022,C&FS (P),Dorothy Goodman School Academy,GENERAL,5325-External SEN Providers Top Up Fee,"86,133.00"
24-MAY-2022,C&FS (P),Dovetree School (division of Witherslack Group Ltd),TRADE SUPPLIER,5323-External SEN Providers Independent Sch,"27,884.00"
24-MAY-2022,C&FS (P),Dovetree School (division of Witherslack Group Ltd),TRADE SUPPLIER,5323-External SEN Providers Independent Sch,"11,006.84"
05-MAY-2022,Environment & Transport (P),Drive4it,TRADE SUPPLIER,3113-Home to Sch Trans Contract Buses Sec,955.00
05-MAY-2022,Environment & Transport (P),Drive4it,TRADE SUPPLIER,3201-Pooled Transport Recharge Inhouse,600.00
05-MAY-2022,Environment & Transport (P),Drive4it,TRADE SUPPLIER,3113-Home to Sch Trans Contract Buses Sec,"1,702.00"
16-MAY-2022,Environment & Transport (P),Driving Talent Ltd,TRADE SUPPLIER,5443-Agency & Contracted Services,"1,852.84"
16-MAY-2022,Environment & Transport (P),Driving Talent Ltd,TRADE SUPPLIER,5443-Agency & Contracted Services,"1,732.92"
20-MAY-2022,C&FS (P),Dudley Lodge Safeguarding Children Services,NON TRADE,5411-Private Contractors - General,"17,464.29"
30-MAY-2022,Adults & Communities (P),DUNELM (NORTH EAST AUTISM SOCIETY)&&SSAROE66277,S/S HOMES,5502-Residential,"8,161.32"
30-MAY-2022,Adults & Communities (P),DUNSFORD (LINKAGE COMMUNITY TRUST)&&SSARO5724,S/S HOMES,5502-Residential,"3,082.24"
26-MAY-2022,Corporate Resources (CR) (P),Dura Sport (Leisure Care) Ltd,TRADE SUPPLIER,2101-R&M Buildings,895.00
17-MAY-2022,Balance Sheet Cost Centres (P),DWP Debt Management,GENERAL,9729-Suspense (Current Liability),"1,628.24"
04-MAY-2022,C&FS (P),Dyslexia Network,TRADE SUPPLIER,5323-External SEN Providers Independent Sch,727.35
20-MAY-2022,C&FS (P),EARLY YEARS NURSERY&&EYRS1679,EARLY YEARS,4908-Grants,"2,381.54"
17-MAY-2022,C&FS (P),EARLY YEARS NURSERY&&EYRS1697,GENERAL,4908-Grants,"1,509.84"
20-MAY-2022,C&FS (P),EARLY YEARS NURSERY&&EYRS1697,EARLY YEARS,4908-Grants,"5,755.49"
03-MAY-2022,Adults & Communities (P),East Midlands Care Limited,TRADE SUPPLIER,4507-Consultants & Specialists,"70,000.00"
09-MAY-2022,Balance Sheet Cost Centres (P),East Midlands Care Limited,GENERAL,9642-Reserved Debtors - Non Public Sector,"6,000.00"
16-MAY-2022,C&FS (P),East Midlands Crossroads Caring for Carers T/A TuVida,TRADE SUPPLIER,5429-Community/Domiciliary,806.00
31-MAY-2022,C&FS (P),East Midlands Education Trust T/A Limehurst Academy,GENERAL,5325-External SEN Providers Top Up Fee,"13,692.66"
19-MAY-2022,Chief Executives (P),East Midlands Funding Forum,NON TRADE,4908-Grants,500.00
19-MAY-2022,Balance Sheet Cost Centres (P),East Midlands Homecare Ltd,GENERAL,9642-Reserved Debtors - Non Public Sector,600.00
26-MAY-2022,Balance Sheet Cost Centres (P),East Midlands Homecare Ltd,GENERAL,9642-Reserved Debtors - Non Public Sector,600.00
30-MAY-2022,Adults & Communities (P),EAST VIEW HOUSING MANAGEMENT LTD&&SSARO6222,S/S HOMES,5502-Residential,"6,728.00"
31-MAY-2022,C&FS (P),Eastfield Primary School Academy,GENERAL,5325-External SEN Providers Top Up Fee,"7,408.00"
06-MAY-2022,Environment & Transport (P),REDACTED PERSONAL DATA,TRADE INDIVIDUAL,3112-Home to Sch Trans Contract Buses Prim,"2,415.00"
11-MAY-2022,C&FS (P),Ebuyer UK Ltd,TRADE SUPPLIER,4601-IT Equipment Hardware,"1,182.80"
30-MAY-2022,Environment & Transport (P),EcoPro Ltd,TRADE SUPPLIER,4532-Other Services,"2,970.00"
19-MAY-2022,Corporate Resources (CR) (P),Edenred UK Group Ltd,TRADE SUPPLIER,8391-Free Pupil Meals � Elig,"100,000.00"
31-MAY-2022,Corporate Resources (CR) (P),Edenred UK Group Ltd,TRADE SUPPLIER,8391-Free Pupil Meals � Elig,"100,000.00"
26-MAY-2022,Environment & Transport (P),Effect Digital Ltd,TRADE SUPPLIER,4109-Materials,"1,000.00"
20-MAY-2022,Corporate Resources (CR) (P),Efile Ready Ltd,TRADE SUPPLIER,4507-Consultants & Specialists,529.00
17-MAY-2022,Balance Sheet Cost Centres (P),EGERTON LODGE&&SSAROE40415,GENERAL,9642-Reserved Debtors - Non Public Sector,"19,600.00"
26-MAY-2022,Balance Sheet Cost Centres (P),EGERTON LODGE&&SSAROE40415,GENERAL,9642-Reserved Debtors - Non Public Sector,"15,000.00"
30-MAY-2022,Adults & Communities (P),EGERTON LODGE&&SSAROE40415,S/S HOMES,5502-Residential,"28,745.92"
20-MAY-2022,C&FS (P),REDACTED PERSONAL DATA,EARLY YEARS,4908-Grants,"1,015.61"
20-MAY-2022,C&FS (P),REDACTED PERSONAL DATA,EARLY YEARS,4908-Grants,935.55
20-MAY-2022,C&FS (P),REDACTED PERSONAL DATA,EARLY YEARS,4908-Grants,594.78
17-MAY-2022,Environment & Transport (P),Elaines Taxis Ltd,TRADE SUPPLIER,3113-Home to Sch Trans Contract Buses Sec,646.87
17-MAY-2022,Environment & Transport (P),Elaines Taxis Ltd,TRADE SUPPLIER,3113-Home to Sch Trans Contract Buses Sec,838.53
17-MAY-2022,Environment & Transport (P),Elaines Taxis Ltd,TRADE SUPPLIER,3303-Taxi Hire,874.47
18-MAY-2022,Environment & Transport (P),Elaines Taxis Ltd,TRADE SUPPLIER,3303-Taxi Hire,740.52
18-MAY-2022,Environment & Transport (P),Elaines Taxis Ltd,TRADE SUPPLIER,3303-Taxi Hire,"1,143.45"
03-MAY-2022,C&FS (P),REDACTED PERSONAL DATA,NON TRADE,8354-Recoverable Charges,615.60
31-MAY-2022,Environment & Transport (P),Electric Center Leicester,TRADE SUPPLIER,4109-Materials,968.63
30-MAY-2022,Adults & Communities (P),ELIZABETH FITZROY HOMES (HUWS)&&SSARO3075,S/S HOMES,5502-Residential,"3,269.40"
20-MAY-2022,C&FS (P),REDACTED PERSONAL DATA,EARLY YEARS,4908-Grants,"1,320.41"
20-MAY-2022,C&FS (P),REDACTED PERSONAL DATA,GENERAL,5323-External SEN Providers Independent Sch,526.15
20-MAY-2022,C&FS (P),Elklan Training Ltd T/A Elklan,TRADE SUPPLIER,1703-Training Expenses,"1,080.00"
06-MAY-2022,Corporate Resources (CR) (P),Elliott Baxter & Co Ltd,TRADE SUPPLIER,4102-General Equipment - Purchase & Repairs,632.94
03-MAY-2022,Adults & Communities (P),REDACTED PERSONAL DATA,TRADE INDIVIDUAL,"4501-Exhibitions, Displays, Events & Performances",905.00
30-MAY-2022,Adults & Communities (P),ELLIOTT RESIDENTIAL CARE HOME&&SSAROE40471,S/S HOMES,5502-Residential,"4,788.00"
16-MAY-2022,Schools Revenue Cost Centres (P),Ellistown CP School,GENERAL,9667-Cash - School Allowances,"7,938.00"
20-MAY-2022,C&FS (P),ELLISTOWN PLAYGROUP&&EYRS1585,EARLY YEARS,4908-Grants,729.93
30-MAY-2022,Adults & Communities (P),ELMS CARE HOME T/A BURLINGTON CARE LTD&&SSARO6905,GENERAL,5502-Residential,"1,440.00"
20-MAY-2022,Public Health (P),ELR GP Federation Ltd,TRADE SUPPLIER,5447-General Practioners,"83,123.00"
27-MAY-2022,Chief Executives (P),EMAP Publishing Ltd,TRADE SUPPLIER,4909-Subscriptions,"3,832.01"
27-MAY-2022,Chief Executives (P),EMAP Publishing Ltd,TRADE SUPPLIER,4909-Subscriptions,"7,668.00"
31-MAY-2022,C&FS (P),Embrace Multi Academy Trust T/A Arnesby Church of England Primary School (ARN),GENERAL,5325-External SEN Providers Top Up Fee,"2,239.00"
30-MAY-2022,C&FS (P),Embrace Multi Academy Trust T/A Brockington College Academy (BRO),GENERAL,6101-Support Services,700.00
31-MAY-2022,C&FS (P),Embrace Multi Academy Trust T/A Brockington College Academy (BRO),GENERAL,5325-External SEN Providers Top Up Fee,"12,362.90"
16-MAY-2022,C&FS (P),Embrace Multi Academy Trust T/A Croft C of E Primary School (CRO),GENERAL,4524-Transfers to Schools,"14,042.69"
31-MAY-2022,C&FS (P),Embrace Multi Academy Trust T/A Croft C of E Primary School (CRO),GENERAL,5325-External SEN Providers Top Up Fee,"3,704.00"
31-MAY-2022,C&FS (P),Embrace Multi Academy Trust T/A Manorfield Church of England Primary School (MAN),GENERAL,5325-External SEN Providers Top Up Fee,"3,878.00"
31-MAY-2022,C&FS (P),Embrace Multi Academy Trust T/A Sherrier Church of England Primary School (SHE),GENERAL,5325-External SEN Providers Top Up Fee,"4,102.00"
31-MAY-2022,C&FS (P),Embrace Multi Academy Trust T/A Whetstone St Peters CE Primary School (STP),GENERAL,5325-External SEN Providers Top Up Fee,"4,327.00"
19-MAY-2022,Balance Sheet Cost Centres (P),EMH Care & Support,GENERAL,9642-Reserved Debtors - Non Public Sector,"20,270.00"
26-MAY-2022,Balance Sheet Cost Centres (P),EMH Care & Support,GENERAL,9642-Reserved Debtors - Non Public Sector,"20,510.00"
19-MAY-2022,Adults & Communities (P),EMH Housing and Regeneration Ltd T/A EMH Homes,TRADE SUPPLIER,5506-Supported Living,"4,838.20"
13-MAY-2022,Adults & Communities (P),EMH Housing and Regeneration Ltd T/A EMH Homes,TRADE SUPPLIER,5506-Supported Living,"8,302.47"
31-MAY-2022,Adults & Communities (P),EMH Housing and Regeneration Ltd T/A EMH Homes,TRADE SUPPLIER,5506-Supported Living,"5,233.80"
20-MAY-2022,C&FS (P),REDACTED PERSONAL DATA,GENERAL,5621-Transfer Payments,837.43
20-MAY-2022,C&FS (P),REDACTED PERSONAL DATA,EARLY YEARS,4908-Grants,"1,957.50"
20-MAY-2022,C&FS (P),EMMANUEL PLAYGROUP&&EYRS1106,EARLY YEARS,4908-Grants,993.35
06-MAY-2022,Adults & Communities (P),EMSA HOMEHELP LTD T/A BLUEBIRD CARE LEICS&&ISHC3983,HOME CARE,5505-Homecare,"3,609.16"
13-MAY-2022,Adults & Communities (P),EMSA HOMEHELP LTD T/A BLUEBIRD CARE LEICS&&ISHC3983,HOME CARE,5505-Homecare,"3,902.77"
13-MAY-2022,Adults & Communities (P),EMSA HOMEHELP LTD T/A BLUEBIRD CARE LEICS&&ISHC3983,HOME CARE,5505-Homecare,812.70
20-MAY-2022,Adults & Communities (P),EMSA HOMEHELP LTD T/A BLUEBIRD CARE LEICS&&ISHC3983,HOME CARE,5505-Homecare,"4,079.96"
27-MAY-2022,Adults & Communities (P),EMSA HOMEHELP LTD T/A BLUEBIRD CARE LEICS&&ISHC3983,HOME CARE,5505-Homecare,"4,079.96"
06-MAY-2022,Adults & Communities (P),ENABLE INCLUSIVE SUPPORT &&SUPL6453,SUPPORTED LIVING,5506-Supported Living,"1,206.90"
06-MAY-2022,Adults & Communities (P),ENABLE INCLUSIVE SUPPORT &&SUPL6453,SUPPORTED LIVING,5506-Supported Living,"4,279.44"
06-MAY-2022,Adults & Communities (P),ENABLE INCLUSIVE SUPPORT &&SUPL6453,SUPPORTED LIVING,5506-Supported Living,"5,460.96"
19-MAY-2022,Balance Sheet Cost Centres (P),ENABLE INCLUSIVE SUPPORT &&SUPL6453,GENERAL,9642-Reserved Debtors - Non Public Sector,"1,780.00"
06-MAY-2022,Adults & Communities (P),Enabling Others Ltd&&CLCD6611,SUPPORTED LIVING,5504-Day/CLC Services,"5,085.32"
13-MAY-2022,Adults & Communities (P),Enabling Others Ltd&&CLCD6611,SUPPORTED LIVING,5504-Day/CLC Services,"5,085.32"
27-MAY-2022,Adults & Communities (P),Enabling Others Ltd&&CLCD6611,SUPPORTED LIVING,5504-Day/CLC Services,"5,184.38"
30-MAY-2022,C&FS (P),Endeavour Multi Academy Trust T/A Two Rivers School,TRADE SUPPLIER,5212-OLEA Recoupment,"2,100.39"
20-MAY-2022,C&FS (P),ENDERBY DANEMILL PRE SCHOOL&&EYRS140316,EARLY YEARS,4908-Grants,"1,799.52"
31-MAY-2022,C&FS (P),ENDERBY DANEMILL PRE SCHOOL&&EYRS140316,GENERAL,4908-Grants,"2,083.62"
16-MAY-2022,C&FS (P),Enderby Danemill Primary School T/A Discovery Schools Academies Trust Ltd,GENERAL,4524-Transfers to Schools,"6,858.52"
06-MAY-2022,Chief Executives (P),Engi Psychology Ltd,TRADE SUPPLIER,4905-Legal Expenses,"2,919.50"
06-MAY-2022,Adults & Communities (P),ENRYCH&&CLCD3315,CLC,5504-Day/CLC Services,"7,557.69"
06-MAY-2022,Balance Sheet Cost Centres (P),ENRYCH&&CLCD3315,GENERAL,9642-Reserved Debtors - Non Public Sector,"4,360.46"
13-MAY-2022,Adults & Communities (P),ENRYCH&&CLCD3315,CLC,5504-Day/CLC Services,"9,005.95"
20-MAY-2022,Adults & Communities (P),ENRYCH&&CLCD3315,CLC,5504-Day/CLC Services,"8,545.38"
27-MAY-2022,Adults & Communities (P),ENRYCH&&CLCD3315,CLC,5504-Day/CLC Services,"8,835.45"
24-MAY-2022,C&FS (P),Enstruct Training Ltd,TRADE SUPPLIER,5323-External SEN Providers Independent Sch,"41,800.00"
03-MAY-2022,Environment & Transport (P),Enterprise Flex E Rent,TRADE SUPPLIER,3301-Vehicle & Plant Hire,"1,213.80"
03-MAY-2022,Environment & Transport (P),Enterprise Flex E Rent,TRADE SUPPLIER,3301-Vehicle & Plant Hire,"11,961.00"
03-MAY-2022,Environment & Transport (P),Enterprise Flex E Rent,TRADE SUPPLIER,3301-Vehicle & Plant Hire,"4,365.40"
27-MAY-2022,Environment & Transport (P),Enterprise Flex E Rent,TRADE SUPPLIER,3301-Vehicle & Plant Hire,"3,985.80"
27-MAY-2022,Environment & Transport (P),Enterprise Flex E Rent,TRADE SUPPLIER,3301-Vehicle & Plant Hire,588.00
27-MAY-2022,Environment & Transport (P),Enterprise Flex E Rent,TRADE SUPPLIER,3301-Vehicle & Plant Hire,567.00
27-MAY-2022,Environment & Transport (P),Enterprise Flex E Rent,TRADE SUPPLIER,3301-Vehicle & Plant Hire,567.00
27-MAY-2022,Environment & Transport (P),Enterprise Flex E Rent,TRADE SUPPLIER,3301-Vehicle & Plant Hire,"1,113.00"
27-MAY-2022,Environment & Transport (P),Enterprise Flex E Rent,TRADE SUPPLIER,3301-Vehicle & Plant Hire,588.00
27-MAY-2022,Environment & Transport (P),Enterprise Flex E Rent,TRADE SUPPLIER,3301-Vehicle & Plant Hire,588.00
27-MAY-2022,Environment & Transport (P),Enterprise Flex E Rent,TRADE SUPPLIER,3301-Vehicle & Plant Hire,541.80
27-MAY-2022,Environment & Transport (P),Enterprise Flex E Rent,TRADE SUPPLIER,3301-Vehicle & Plant Hire,541.80
27-MAY-2022,Environment & Transport (P),Enterprise Flex E Rent,TRADE SUPPLIER,3301-Vehicle & Plant Hire,541.80
27-MAY-2022,Environment & Transport (P),Enterprise Flex E Rent,TRADE SUPPLIER,3301-Vehicle & Plant Hire,"3,985.80"
27-MAY-2022,Environment & Transport (P),Enterprise Flex E Rent,TRADE SUPPLIER,3301-Vehicle & Plant Hire,541.80
27-MAY-2022,Environment & Transport (P),Enterprise Flex E Rent,TRADE SUPPLIER,3301-Vehicle & Plant Hire,"1,507.80"
27-MAY-2022,Environment & Transport (P),Enterprise Flex E Rent,TRADE SUPPLIER,3301-Vehicle & Plant Hire,567.00
27-MAY-2022,Environment & Transport (P),Enterprise Flex E Rent,TRADE SUPPLIER,3301-Vehicle & Plant Hire,588.00
27-MAY-2022,Environment & Transport (P),Enterprise Flex E Rent,TRADE SUPPLIER,3301-Vehicle & Plant Hire,505.20
30-MAY-2022,Environment & Transport (P),Enterprise Flex E Rent,TRADE SUPPLIER,3301-Vehicle & Plant Hire,"3,491.40"
10-MAY-2022,Environment & Transport (P),Enva England Ltd,TRADE SUPPLIER,5411-Private Contractors - General,"1,900.10"
19-MAY-2022,Environment & Transport (P),Enva England Ltd,TRADE SUPPLIER,5411-Private Contractors - General,"30,963.32"
24-MAY-2022,Environment & Transport (P),Enva England Ltd,TRADE SUPPLIER,5411-Private Contractors - General,"2,800.00"
24-MAY-2022,Environment & Transport (P),Enva England Ltd,TRADE SUPPLIER,5411-Private Contractors - General,"35,310.32"
30-MAY-2022,Environment & Transport (P),Enva England Ltd,TRADE SUPPLIER,5411-Private Contractors - General,"11,301.51"
30-MAY-2022,Environment & Transport (P),Enva England Ltd,TRADE SUPPLIER,5411-Private Contractors - General,800.00
04-MAY-2022,Environment & Transport (P),Environment Agency,TRADE SUPPLIER,4521-Site Licenses,"1,053.55"
11-MAY-2022,Environment & Transport (P),Environment Agency,TRADE SUPPLIER,4521-Site Licenses,"1,219.90"
11-MAY-2022,Environment & Transport (P),Environment Agency,TRADE SUPPLIER,4521-Site Licenses,"1,053.55"
13-MAY-2022,Environment & Transport (P),Environment Agency,TRADE SUPPLIER,4521-Site Licenses,"4,169.00"
24-MAY-2022,Environment & Transport (P),Environment Agency,TRADE SUPPLIER,4521-Site Licenses,"1,053.55"
24-MAY-2022,Environment & Transport (P),Environment Agency,TRADE SUPPLIER,4521-Site Licenses,"1,053.55"
24-MAY-2022,Environment & Transport (P),Environment Agency,TRADE SUPPLIER,4521-Site Licenses,"1,053.55"
24-MAY-2022,Environment & Transport (P),Environment Agency,TRADE SUPPLIER,4521-Site Licenses,"1,053.55"
24-MAY-2022,Environment & Transport (P),Environment Agency,TRADE SUPPLIER,4521-Site Licenses,"1,053.55"
24-MAY-2022,Environment & Transport (P),Environment Agency,TRADE SUPPLIER,4521-Site Licenses,"1,053.55"
27-MAY-2022,Environment & Transport (P),Environment Agency,TRADE SUPPLIER,4521-Site Licenses,"1,053.55"
